Workbook

Sheet výsledky
A1: Louny - Olympijský běh, 21.6. 2023 | J1: Do sloupce B se proklikávají výsledné časy (Ctrl+Z/Y)
D2: =COUNTA(prezence!A:A)-1 -> 41 | E2: registrovaných | J2: Do sloupce D zapiš startovní číslo
J3: Tlačítko Start = Ctrl+m (pozor vymaže všechny dosažené časy)
A4: Start | B4: 45098.74999
A5: Poř. | B5: Čas | C5: Ztráta | D5: St. č. | E5: Příjmení | F5: Jméno | G5: Nar. | H5: Klub | I5: Kategorie
A6: 1 | B6: 00:17:10 | C6: - | D6: 20 | E6: =IFERROR(VLOOKUP($D6,prezence!A:F,2,0),"") -> Huja | F6: =IFERROR(VLOOKUP($D6,prezence!A:F,3,0),"") -> Vitezslav | G6: =IFERROR(VLOOKUP($D6,prezence!A:F,4,0),"") -> 1987 | H6: =IFERROR(VLOOKUP($D6,prezence!A:F,5,0),"") -> Vitezslav | I6: =IFERROR(VLOOKUP($D6,prezence!A:F,6,0),"") -> 0
A7: 2 | B7: 00:17:32 | C7: =B7-$B$6 -> 00:00:22 | D7: 10 | E7: =IFERROR(VLOOKUP($D7,prezence!A:F,2,0),"") -> Reiner | F7: =IFERROR(VLOOKUP($D7,prezence!A:F,3,0),"") -> Lukáš | G7: =IFERROR(VLOOKUP($D7,prezence!A:F,4,0),"") -> 1980 | H7: =IFERROR(VLOOKUP($D7,prezence!A:F,5,0),"") -> Lukáš | I7: =IFERROR(VLOOKUP($D7,prezence!A:F,6,0),"") -> 0
A8: 3 | B8: 00:17:41 | C8: 00:00:31 | D8: 14 | E8: =IFERROR(VLOOKUP($D8,prezence!A:F,2,0),"") -> Karasová | F8: =IFERROR(VLOOKUP($D8,prezence!A:F,3,0),"") -> Anna | G8: =IFERROR(VLOOKUP($D8,prezence!A:F,4,0),"") -> 1984 | H8: =IFERROR(VLOOKUP($D8,prezence!A:F,5,0),"") -> Anna | I8: =IFERROR(VLOOKUP($D8,prezence!A:F,6,0),"") -> 0
A9: 4 | B9: 00:18:56 | C9: 00:01:46 | D9: 27 | E9: =IFERROR(VLOOKUP($D9,prezence!A:F,2,0),"") -> Gaube | F9: =IFERROR(VLOOKUP($D9,prezence!A:F,3,0),"") -> Jitka | G9: =IFERROR(VLOOKUP($D9,prezence!A:F,4,0),"") -> 1983 | H9: =IFERROR(VLOOKUP($D9,prezence!A:F,5,0),"") -> Jíťa | I9: =IFERROR(VLOOKUP($D9,prezence!A:F,6,0),"") -> 0
A10: 5 | B10: 00:19:23 | C10: 00:02:13 | D10: 37 | E10: =IFERROR(VLOOKUP($D10,prezence!A:F,2,0),"") -> Kosina | F10: =IFERROR(VLOOKUP($D10,prezence!A:F,3,0),"") -> Jakub | G10: =IFERROR(VLOOKUP($D10,prezence!A:F,4,0),"") -> 1990 | H10: =IFERROR(VLOOKUP($D10,prezence!A:F,5,0),"") -> Jakub | I10: =IFERROR(VLOOKUP($D10,prezence!A:F,6,0),"") -> 0
A11: 6 | B11: 00:19:35 | C11: 00:02:25 | D11: 13 | E11: =IFERROR(VLOOKUP($D11,prezence!A:F,2,0),"") -> Burianová | F11: =IFERROR(VLOOKUP($D11,prezence!A:F,3,0),"") -> Denisa | G11: =IFERROR(VLOOKUP($D11,prezence!A:F,4,0),"") -> 1993 | H11: =IFERROR(VLOOKUP($D11,prezence!A:F,5,0),"") -> Denda | I11: =IFERROR(VLOOKUP($D11,prezence!A:F,6,0),"") -> 0
A12: 7 | B12: 00:20:07 | C12: =B12-$B$6 -> 00:02:57 | D12: 34 | E12: =IFERROR(VLOOKUP($D12,prezence!A:F,2,0),"") -> Odvárka | F12: =IFERROR(VLOOKUP($D12,prezence!A:F,3,0),"") -> Lukáš | G12: =IFERROR(VLOOKUP($D12,prezence!A:F,4,0),"") -> 1985 | H12: =IFERROR(VLOOKUP($D12,prezence!A:F,5,0),"") -> Lukáš | I12: =IFERROR(VLOOKUP($D12,prezence!A:F,6,0),"") -> 0
A13: 8 | B13: 00:20:21 | C13: 00:03:11 | D13: 33 | E13: =IFERROR(VLOOKUP($D13,prezence!A:F,2,0),"") -> Petrmichl | F13: =IFERROR(VLOOKUP($D13,prezence!A:F,3,0),"") -> Vít | G13: =IFERROR(VLOOKUP($D13,prezence!A:F,4,0),"") -> 1987 | H13: =IFERROR(VLOOKUP($D13,prezence!A:F,5,0),"") -> Vít | I13: =IFERROR(VLOOKUP($D13,prezence!A:F,6,0),"") -> 0
A14: 9 | B14: 00:20:24 | C14: 00:03:14 | D14: 39 | E14: =IFERROR(VLOOKUP($D14,prezence!A:F,2,0),"") -> Pásztor | F14: =IFERROR(VLOOKUP($D14,prezence!A:F,3,0),"") -> Michal | G14: =IFERROR(VLOOKUP($D14,prezence!A:F,4,0),"") -> 1981 | H14: =IFERROR(VLOOKUP($D14,prezence!A:F,5,0),"") -> Michal | I14: =IFERROR(VLOOKUP($D14,prezence!A:F,6,0),"") -> 0
A15: 10 | B15: 00:20:26 | C15: 00:03:16 | D15: 15 | E15: =IFERROR(VLOOKUP($D15,prezence!A:F,2,0),"") -> Karas | F15: =IFERROR(VLOOKUP($D15,prezence!A:F,3,0),"") -> Václav | G15: =IFERROR(VLOOKUP($D15,prezence!A:F,4,0),"") -> 1980 | H15: =IFERROR(VLOOKUP($D15,prezence!A:F,5,0),"") -> Václav | I15: =IFERROR(VLOOKUP($D15,prezence!A:F,6,0),"") -> 0
A16: 11 | B16: 00:20:59 | C16: 00:03:49 | D16: 17 | E16: =IFERROR(VLOOKUP($D16,prezence!A:F,2,0),"") -> Sainer | F16: =IFERROR(VLOOKUP($D16,prezence!A:F,3,0),"") -> Jiri | G16: =IFERROR(VLOOKUP($D16,prezence!A:F,4,0),"") -> 1983 | H16: =IFERROR(VLOOKUP($D16,prezence!A:F,5,0),"") -> Sainy | I16: =IFERROR(VLOOKUP($D16,prezence!A:F,6,0),"") -> 0
A17: 12 | B17: 00:21:11 | C17: 00:04:01 | D17: 6 | E17: =IFERROR(VLOOKUP($D17,prezence!A:F,2,0),"") -> Riedl | F17: =IFERROR(VLOOKUP($D17,prezence!A:F,3,0),"") -> Lukas | G17: =IFERROR(VLOOKUP($D17,prezence!A:F,4,0),"") -> 1983 | H17: =IFERROR(VLOOKUP($D17,prezence!A:F,5,0),"") -> PEKY | I17: =IFERROR(VLOOKUP($D17,prezence!A:F,6,0),"") -> 0
A18: 13 | B18: 00:21:27 | C18: 00:04:17 | D18: 26 | E18: =IFERROR(VLOOKUP($D18,prezence!A:F,2,0),"") -> Kusý | F18: =IFERROR(VLOOKUP($D18,prezence!A:F,3,0),"") -> Jan | G18: =IFERROR(VLOOKUP($D18,prezence!A:F,4,0),"") -> 1974 | H18: =IFERROR(VLOOKUP($D18,prezence!A:F,5,0),"") -> kusič | I18: =IFERROR(VLOOKUP($D18,prezence!A:F,6,0),"") -> 0
A19: 14 | B19: 00:21:31 | C19: 00:04:21 | D19: 19 | E19: =IFERROR(VLOOKUP($D19,prezence!A:F,2,0),"") -> Sejvalová | F19: =IFERROR(VLOOKUP($D19,prezence!A:F,3,0),"") -> Veronika | G19: =IFERROR(VLOOKUP($D19,prezence!A:F,4,0),"") -> 1986 | H19: =IFERROR(VLOOKUP($D19,prezence!A:F,5,0),"") -> Veronika | I19: =IFERROR(VLOOKUP($D19,prezence!A:F,6,0),"") -> 0
A20: 15 | B20: 00:21:37 | C20: 00:04:27 | D20: 9 | E20: =IFERROR(VLOOKUP($D20,prezence!A:F,2,0),"") -> Macháčková | F20: =IFERROR(VLOOKUP($D20,prezence!A:F,3,0),"") -> Michaela | G20: =IFERROR(VLOOKUP($D20,prezence!A:F,4,0),"") -> 1980 | H20: =IFERROR(VLOOKUP($D20,prezence!A:F,5,0),"") -> Michaela | I20: =IFERROR(VLOOKUP($D20,prezence!A:F,6,0),"") -> 0
A21: 16 | B21: 00:21:54 | C21: 00:04:44 | D21: 1 | E21: =IFERROR(VLOOKUP($D21,prezence!A:F,2,0),"") -> Müller | F21: =IFERROR(VLOOKUP($D21,prezence!A:F,3,0),"") -> Josef | G21: =IFERROR(VLOOKUP($D21,prezence!A:F,4,0),"") -> 1974 | H21: =IFERROR(VLOOKUP($D21,prezence!A:F,5,0),"") -> PEPINO | I21: =IFERROR(VLOOKUP($D21,prezence!A:F,6,0),"") -> 0
A22: 17 | B22: 00:22:36 | C22: 00:05:26 | D22: 7 | E22: =IFERROR(VLOOKUP($D22,prezence!A:F,2,0),"") -> Horská | F22: =IFERROR(VLOOKUP($D22,prezence!A:F,3,0),"") -> Kateřina | G22: =IFERROR(VLOOKUP($D22,prezence!A:F,4,0),"") -> 1991 | H22: =IFERROR(VLOOKUP($D22,prezence!A:F,5,0),"") -> Khaty | I22: =IFERROR(VLOOKUP($D22,prezence!A:F,6,0),"") -> 0
A23: 18 | B23: 00:23:00 | C23: 00:05:50 | D23: 8 | E23: =IFERROR(VLOOKUP($D23,prezence!A:F,2,0),"") -> Deverová | F23: =IFERROR(VLOOKUP($D23,prezence!A:F,3,0),"") -> Lenka | G23: =IFERROR(VLOOKUP($D23,prezence!A:F,4,0),"") -> 1992 | H23: =IFERROR(VLOOKUP($D23,prezence!A:F,5,0),"") -> Deverka | I23: =IFERROR(VLOOKUP($D23,prezence!A:F,6,0),"") -> 0
A24: 19 | B24: 00:23:12 | C24: 00:06:02 | D24: 31 | E24: =IFERROR(VLOOKUP($D24,prezence!A:F,2,0),"") -> Klánová | F24: =IFERROR(VLOOKUP($D24,prezence!A:F,3,0),"") -> Michaela | G24: =IFERROR(VLOOKUP($D24,prezence!A:F,4,0),"") -> 1991 | H24: =IFERROR(VLOOKUP($D24,prezence!A:F,5,0),"") -> Michaela | I24: =IFERROR(VLOOKUP($D24,prezence!A:F,6,0),"") -> 0
A25: 20 | B25: 00:23:12 | C25: 00:06:02 | D25: 35 | E25: =IFERROR(VLOOKUP($D25,prezence!A:F,2,0),"") -> Světlý | F25: =IFERROR(VLOOKUP($D25,prezence!A:F,3,0),"") -> Ondřej | G25: =IFERROR(VLOOKUP($D25,prezence!A:F,4,0),"") -> 1979 | H25: =IFERROR(VLOOKUP($D25,prezence!A:F,5,0),"") -> Ondřej | I25: =IFERROR(VLOOKUP($D25,prezence!A:F,6,0),"") -> 0
A26: 21 | B26: 00:23:49 | C26: 00:06:39 | D26: 41 | E26: =IFERROR(VLOOKUP($D26,prezence!A:F,2,0),"") -> Sedláčková | F26: =IFERROR(VLOOKUP($D26,prezence!A:F,3,0),"") -> Petra | G26: =IFERROR(VLOOKUP($D26,prezence!A:F,4,0),"") -> 1993 | H26: =IFERROR(VLOOKUP($D26,prezence!A:F,5,0),"") -> Petra | I26: =IFERROR(VLOOKUP($D26,prezence!A:F,6,0),"") -> 0
A27: 22 | B27: 00:23:49 | C27: 00:06:39 | D27: 43 | E27: =IFERROR(VLOOKUP($D27,prezence!A:F,2,0),"") -> Honka | F27: =IFERROR(VLOOKUP($D27,prezence!A:F,3,0),"") -> Adela | G27: =IFERROR(VLOOKUP($D27,prezence!A:F,4,0),"") -> 1994 | H27: =IFERROR(VLOOKUP($D27,prezence!A:F,5,0),"") -> Adela | I27: =IFERROR(VLOOKUP($D27,prezence!A:F,6,0),"") -> 0
A28: 23 | B28: 00:24:06 | C28: 00:06:56 | D28: 30 | E28: =IFERROR(VLOOKUP($D28,prezence!A:F,2,0),"") -> Charvátová | F28: =IFERROR(VLOOKUP($D28,prezence!A:F,3,0),"") -> Michaela | G28: =IFERROR(VLOOKUP($D28,prezence!A:F,4,0),"") -> 1991 | H28: =IFERROR(VLOOKUP($D28,prezence!A:F,5,0),"") -> Michaela | I28: =IFERROR(VLOOKUP($D28,prezence!A:F,6,0),"") -> 0
A29: 24 | B29: 00:24:10 | C29: 00:07:00 | D29: 23 | E29: =IFERROR(VLOOKUP($D29,prezence!A:F,2,0),"") -> Lukšík | F29: =IFERROR(VLOOKUP($D29,prezence!A:F,3,0),"") -> Václav | G29: =IFERROR(VLOOKUP($D29,prezence!A:F,4,0),"") -> 1977 | H29: =IFERROR(VLOOKUP($D29,prezence!A:F,5,0),"") -> Čáryfuk | I29: =IFERROR(VLOOKUP($D29,prezence!A:F,6,0),"") -> 0
A30: 25 | B30: 00:24:16 | C30: 00:07:06 | D30: 25 | E30: =IFERROR(VLOOKUP($D30,prezence!A:F,2,0),"") -> Kusá | F30: =IFERROR(VLOOKUP($D30,prezence!A:F,3,0),"") -> Lenka | G30: =IFERROR(VLOOKUP($D30,prezence!A:F,4,0),"") -> 1973 | H30: =IFERROR(VLOOKUP($D30,prezence!A:F,5,0),"") -> kusička | I30: =IFERROR(VLOOKUP($D30,prezence!A:F,6,0),"") -> 0
A31: 26 | B31: 00:24:31 | C31: 00:07:21 | D31: 21 | E31: =IFERROR(VLOOKUP($D31,prezence!A:F,2,0),"") -> Urbanová | F31: =IFERROR(VLOOKUP($D31,prezence!A:F,3,0),"") -> Jaroslava | G31: =IFERROR(VLOOKUP($D31,prezence!A:F,4,0),"") -> 1964 | H31: =IFERROR(VLOOKUP($D31,prezence!A:F,5,0),"") -> Jaroslava | I31: =IFERROR(VLOOKUP($D31,prezence!A:F,6,0),"") -> 0
A32: 27 | B32: 00:24:31 | C32: 00:07:21 | D32: 22 | E32: =IFERROR(VLOOKUP($D32,prezence!A:F,2,0),"") -> Vitovský | F32: =IFERROR(VLOOKUP($D32,prezence!A:F,3,0),"") -> Petr | G32: =IFERROR(VLOOKUP($D32,prezence!A:F,4,0),"") -> 1964 | H32: =IFERROR(VLOOKUP($D32,prezence!A:F,5,0),"") -> Cukrar | I32: =IFERROR(VLOOKUP($D32,prezence!A:F,6,0),"") -> 0
A33: 28 | B33: 00:25:19 | C33: 00:08:09 | D33: 38 | E33: =IFERROR(VLOOKUP($D33,prezence!A:F,2,0),"") -> Jirmus | F33: =IFERROR(VLOOKUP($D33,prezence!A:F,3,0),"") -> Michal | G33: =IFERROR(VLOOKUP($D33,prezence!A:F,4,0),"") -> 1992 | H33: =IFERROR(VLOOKUP($D33,prezence!A:F,5,0),"") -> Michal | I33: =IFERROR(VLOOKUP($D33,prezence!A:F,6,0),"") -> 0
A34: 29 | B34: 00:25:23 | C34: 00:08:13 | D34: 28 | E34: =IFERROR(VLOOKUP($D34,prezence!A:F,2,0),"") -> RŮŽIČKA | F34: =IFERROR(VLOOKUP($D34,prezence!A:F,3,0),"") -> PAVEL | G34: =IFERROR(VLOOKUP($D34,prezence!A:F,4,0),"") -> 1964 | H34: =IFERROR(VLOOKUP($D34,prezence!A:F,5,0),"") -> PAVEL | I34: =IFERROR(VLOOKUP($D34,prezence!A:F,6,0),"") -> 0
A35: 30 | B35: 00:25:28 | C35: 00:08:18 | D35: 5 | E35: =IFERROR(VLOOKUP($D35,prezence!A:F,2,0),"") -> Gavelčík | F35: =IFERROR(VLOOKUP($D35,prezence!A:F,3,0),"") -> Tomáš | G35: =IFERROR(VLOOKUP($D35,prezence!A:F,4,0),"") -> 1985 | H35: =IFERROR(VLOOKUP($D35,prezence!A:F,5,0),"") -> Tomáš | I35: =IFERROR(VLOOKUP($D35,prezence!A:F,6,0),"") -> 0
A36: 31 | B36: 00:26:54 | C36: 00:09:44 | D36: 18 | E36: =IFERROR(VLOOKUP($D36,prezence!A:F,2,0),"") -> Sejval | F36: =IFERROR(VLOOKUP($D36,prezence!A:F,3,0),"") -> Jan | G36: =IFERROR(VLOOKUP($D36,prezence!A:F,4,0),"") -> 1979 | H36: =IFERROR(VLOOKUP($D36,prezence!A:F,5,0),"") -> Jan | I36: =IFERROR(VLOOKUP($D36,prezence!A:F,6,0),"") -> 0
A37: 32 | B37: 00:26:55 | C37: 00:09:45 | D37: 40 | E37: =IFERROR(VLOOKUP($D37,prezence!A:F,2,0),"") -> Doležalová | F37: =IFERROR(VLOOKUP($D37,prezence!A:F,3,0),"") -> Michaela | G37: =IFERROR(VLOOKUP($D37,prezence!A:F,4,0),"") -> 1980 | H37: =IFERROR(VLOOKUP($D37,prezence!A:F,5,0),"") -> Michaela | I37: =IFERROR(VLOOKUP($D37,prezence!A:F,6,0),"") -> 0
A38: 33 | B38: 00:28:15 | C38: 00:11:05 | D38: 2 | E38: =IFERROR(VLOOKUP($D38,prezence!A:F,2,0),"") -> Peštová | F38: =IFERROR(VLOOKUP($D38,prezence!A:F,3,0),"") -> Jana | G38: =IFERROR(VLOOKUP($D38,prezence!A:F,4,0),"") -> 1980 | H38: =IFERROR(VLOOKUP($D38,prezence!A:F,5,0),"") -> TÉRA | I38: =IFERROR(VLOOKUP($D38,prezence!A:F,6,0),"") -> 0
A39: 34 | B39: 00:28:30 | C39: 00:11:20 | D39: 12 | E39: =IFERROR(VLOOKUP($D39,prezence!A:F,2,0),"") -> Rousova | F39: =IFERROR(VLOOKUP($D39,prezence!A:F,3,0),"") -> Lucie | G39: =IFERROR(VLOOKUP($D39,prezence!A:F,4,0),"") -> 2002 | H39: =IFERROR(VLOOKUP($D39,prezence!A:F,5,0),"") -> Lucie | I39: =IFERROR(VLOOKUP($D39,prezence!A:F,6,0),"") -> 0
A40: 35 | B40: 00:28:30 | C40: 00:11:20 | D40: 11 | E40: =IFERROR(VLOOKUP($D40,prezence!A:F,2,0),"") -> Rousova | F40: =IFERROR(VLOOKUP($D40,prezence!A:F,3,0),"") -> Julie | G40: =IFERROR(VLOOKUP($D40,prezence!A:F,4,0),"") -> 1999 | H40: =IFERROR(VLOOKUP($D40,prezence!A:F,5,0),"") -> Julie | I40: =IFERROR(VLOOKUP($D40,prezence!A:F,6,0),"") -> 0
A41: 36 | B41: 00:29:59 | C41: 00:12:49 | D41: 36 | E41: =IFERROR(VLOOKUP($D41,prezence!A:F,2,0),"") -> Pfeiferová | F41: =IFERROR(VLOOKUP($D41,prezence!A:F,3,0),"") -> Veronika | G41: =IFERROR(VLOOKUP($D41,prezence!A:F,4,0),"") -> 1992 | H41: =IFERROR(VLOOKUP($D41,prezence!A:F,5,0),"") -> Veronika | I41: =IFERROR(VLOOKUP($D41,prezence!A:F,6,0),"") -> 0
A42: 37 | B42: 00:31:46 | C42: 00:14:36 | D42: 4 | E42: =IFERROR(VLOOKUP($D42,prezence!A:F,2,0),"") -> Sejvalová | F42: =IFERROR(VLOOKUP($D42,prezence!A:F,3,0),"") -> Petra | G42: =IFERROR(VLOOKUP($D42,prezence!A:F,4,0),"") -> 1978 | H42: =IFERROR(VLOOKUP($D42,prezence!A:F,5,0),"") -> Peťuška | I42: =IFERROR(VLOOKUP($D42,prezence!A:F,6,0),"") -> 0
A43: 38 | B43: 00:34:55 | C43: 00:17:45 | D43: 42 | E43: =IFERROR(VLOOKUP($D43,prezence!A:F,2,0),"") -> Vajová | F43: =IFERROR(VLOOKUP($D43,prezence!A:F,3,0),"") -> Klára | G43: =IFERROR(VLOOKUP($D43,prezence!A:F,4,0),"") -> 2003 | H43: =IFERROR(VLOOKUP($D43,prezence!A:F,5,0),"") -> Klára | I43: =IFERROR(VLOOKUP($D43,prezence!A:F,6,0),"") -> 0
A44: 39 | C44: -0.0119212963 | E44: =IFERROR(VLOOKUP($D44,prezence!A:F,2,0),"") ->  | F44: =IFERROR(VLOOKUP($D44,prezence!A:F,3,0),"") ->  | G44: =IFERROR(VLOOKUP($D44,prezence!A:F,4,0),"") ->  | H44: =IFERROR(VLOOKUP($D44,prezence!A:F,5,0),"") ->  | I44: =IFERROR(VLOOKUP($D44,prezence!A:F,6,0),"") -> 
A45: 40 | C45: -0.0119212963 | E45: =IFERROR(VLOOKUP($D45,prezence!A:F,2,0),"") ->  | F45: =IFERROR(VLOOKUP($D45,prezence!A:F,3,0),"") ->  | G45: =IFERROR(VLOOKUP($D45,prezence!A:F,4,0),"") ->  | H45: =IFERROR(VLOOKUP($D45,prezence!A:F,5,0),"") ->  | I45: =IFERROR(VLOOKUP($D45,prezence!A:F,6,0),"") -> 
A46: 41 | C46: -0.0119212963 | E46: =IFERROR(VLOOKUP($D46,prezence!A:F,2,0),"") ->  | F46: =IFERROR(VLOOKUP($D46,prezence!A:F,3,0),"") ->  | G46: =IFERROR(VLOOKUP($D46,prezence!A:F,4,0),"") ->  | H46: =IFERROR(VLOOKUP($D46,prezence!A:F,5,0),"") ->  | I46: =IFERROR(VLOOKUP($D46,prezence!A:F,6,0),"") -> 
A47: 42 | C47: -0.0119212963 | E47: =IFERROR(VLOOKUP($D47,prezence!A:F,2,0),"") ->  | F47: =IFERROR(VLOOKUP($D47,prezence!A:F,3,0),"") ->  | G47: =IFERROR(VLOOKUP($D47,prezence!A:F,4,0),"") ->  | H47: =IFERROR(VLOOKUP($D47,prezence!A:F,5,0),"") ->  | I47: =IFERROR(VLOOKUP($D47,prezence!A:F,6,0),"") -> 
A48: 43 | C48: -0.0119212963 | E48: =IFERROR(VLOOKUP($D48,prezence!A:F,2,0),"") ->  | F48: =IFERROR(VLOOKUP($D48,prezence!A:F,3,0),"") ->  | G48: =IFERROR(VLOOKUP($D48,prezence!A:F,4,0),"") ->  | H48: =IFERROR(VLOOKUP($D48,prezence!A:F,5,0),"") ->  | I48: =IFERROR(VLOOKUP($D48,prezence!A:F,6,0),"") -> 
A49: 44 | C49: -0.0119212963 | E49: =IFERROR(VLOOKUP($D49,prezence!A:F,2,0),"") ->  | F49: =IFERROR(VLOOKUP($D49,prezence!A:F,3,0),"") ->  | G49: =IFERROR(VLOOKUP($D49,prezence!A:F,4,0),"") ->  | H49: =IFERROR(VLOOKUP($D49,prezence!A:F,5,0),"") ->  | I49: =IFERROR(VLOOKUP($D49,prezence!A:F,6,0),"") -> 
A50: 45 | C50: -0.0119212963 | E50: =IFERROR(VLOOKUP($D50,prezence!A:F,2,0),"") ->  | F50: =IFERROR(VLOOKUP($D50,prezence!A:F,3,0),"") ->  | G50: =IFERROR(VLOOKUP($D50,prezence!A:F,4,0),"") ->  | H50: =IFERROR(VLOOKUP($D50,prezence!A:F,5,0),"") ->  | I50: =IFERROR(VLOOKUP($D50,prezence!A:F,6,0),"") -> 
A51: 46 | C51: -0.0119212963 | E51: =IFERROR(VLOOKUP($D51,prezence!A:F,2,0),"") ->  | F51: =IFERROR(VLOOKUP($D51,prezence!A:F,3,0),"") ->  | G51: =IFERROR(VLOOKUP($D51,prezence!A:F,4,0),"") ->  | H51: =IFERROR(VLOOKUP($D51,prezence!A:F,5,0),"") ->  | I51: =IFERROR(VLOOKUP($D51,prezence!A:F,6,0),"") -> 
A52: 47 | C52: -0.0119212963 | E52: =IFERROR(VLOOKUP($D52,prezence!A:F,2,0),"") ->  | F52: =IFERROR(VLOOKUP($D52,prezence!A:F,3,0),"") ->  | G52: =IFERROR(VLOOKUP($D52,prezence!A:F,4,0),"") ->  | H52: =IFERROR(VLOOKUP($D52,prezence!A:F,5,0),"") ->  | I52: =IFERROR(VLOOKUP($D52,prezence!A:F,6,0),"") -> 
A53: 48 | C53: -0.0119212963 | E53: =IFERROR(VLOOKUP($D53,prezence!A:F,2,0),"") ->  | F53: =IFERROR(VLOOKUP($D53,prezence!A:F,3,0),"") ->  | G53: =IFERROR(VLOOKUP($D53,prezence!A:F,4,0),"") ->  | H53: =IFERROR(VLOOKUP($D53,prezence!A:F,5,0),"") ->  | I53: =IFERROR(VLOOKUP($D53,prezence!A:F,6,0),"") -> 
A54: 49 | C54: -0.0119212963 | E54: =IFERROR(VLOOKUP($D54,prezence!A:F,2,0),"") ->  | F54: =IFERROR(VLOOKUP($D54,prezence!A:F,3,0),"") ->  | G54: =IFERROR(VLOOKUP($D54,prezence!A:F,4,0),"") ->  | H54: =IFERROR(VLOOKUP($D54,prezence!A:F,5,0),"") ->  | I54: =IFERROR(VLOOKUP($D54,prezence!A:F,6,0),"") -> 
A55: 50 | C55: -0.0119212963 | E55: =IFERROR(VLOOKUP($D55,prezence!A:F,2,0),"") ->  | F55: =IFERROR(VLOOKUP($D55,prezence!A:F,3,0),"") ->  | G55: =IFERROR(VLOOKUP($D55,prezence!A:F,4,0),"") ->  | H55: =IFERROR(VLOOKUP($D55,prezence!A:F,5,0),"") ->  | I55: =IFERROR(VLOOKUP($D55,prezence!A:F,6,0),"") -> 
A56: 51 | C56: -0.0119212963 | E56: =IFERROR(VLOOKUP($D56,prezence!A:F,2,0),"") ->  | F56: =IFERROR(VLOOKUP($D56,prezence!A:F,3,0),"") ->  | G56: =IFERROR(VLOOKUP($D56,prezence!A:F,4,0),"") ->  | H56: =IFERROR(VLOOKUP($D56,prezence!A:F,5,0),"") ->  | I56: =IFERROR(VLOOKUP($D56,prezence!A:F,6,0),"") -> 
A57: 52 | C57: -0.0119212963 | E57: =IFERROR(VLOOKUP($D57,prezence!A:F,2,0),"") ->  | F57: =IFERROR(VLOOKUP($D57,prezence!A:F,3,0),"") ->  | G57: =IFERROR(VLOOKUP($D57,prezence!A:F,4,0),"") ->  | H57: =IFERROR(VLOOKUP($D57,prezence!A:F,5,0),"") ->  | I57: =IFERROR(VLOOKUP($D57,prezence!A:F,6,0),"") -> 
A58: 53 | C58: -0.0119212963 | E58: =IFERROR(VLOOKUP($D58,prezence!A:F,2,0),"") ->  | F58: =IFERROR(VLOOKUP($D58,prezence!A:F,3,0),"") ->  | G58: =IFERROR(VLOOKUP($D58,prezence!A:F,4,0),"") ->  | H58: =IFERROR(VLOOKUP($D58,prezence!A:F,5,0),"") ->  | I58: =IFERROR(VLOOKUP($D58,prezence!A:F,6,0),"") -> 
A59: 54 | C59: -0.0119212963 | E59: =IFERROR(VLOOKUP($D59,prezence!A:F,2,0),"") ->  | F59: =IFERROR(VLOOKUP($D59,prezence!A:F,3,0),"") ->  | G59: =IFERROR(VLOOKUP($D59,prezence!A:F,4,0),"") ->  | H59: =IFERROR(VLOOKUP($D59,prezence!A:F,5,0),"") ->  | I59: =IFERROR(VLOOKUP($D59,prezence!A:F,6,0),"") -> 
A60: 55 | C60: -0.0119212963 | E60: =IFERROR(VLOOKUP($D60,prezence!A:F,2,0),"") ->  | F60: =IFERROR(VLOOKUP($D60,prezence!A:F,3,0),"") ->  | G60: =IFERROR(VLOOKUP($D60,prezence!A:F,4,0),"") ->  | H60: =IFERROR(VLOOKUP($D60,prezence!A:F,5,0),"") ->  | I60: =IFERROR(VLOOKUP($D60,prezence!A:F,6,0),"") -> 
A61: 56 | C61: -0.0119212963 | E61: =IFERROR(VLOOKUP($D61,prezence!A:F,2,0),"") ->  | F61: =IFERROR(VLOOKUP($D61,prezence!A:F,3,0),"") ->  | G61: =IFERROR(VLOOKUP($D61,prezence!A:F,4,0),"") ->  | H61: =IFERROR(VLOOKUP($D61,prezence!A:F,5,0),"") ->  | I61: =IFERROR(VLOOKUP($D61,prezence!A:F,6,0),"") -> 
A62: 57 | C62: -0.0119212963 | E62: =IFERROR(VLOOKUP($D62,prezence!A:F,2,0),"") ->  | F62: =IFERROR(VLOOKUP($D62,prezence!A:F,3,0),"") ->  | G62: =IFERROR(VLOOKUP($D62,prezence!A:F,4,0),"") ->  | H62: =IFERROR(VLOOKUP($D62,prezence!A:F,5,0),"") ->  | I62: =IFERROR(VLOOKUP($D62,prezence!A:F,6,0),"") -> 
A63: 58 | C63: -0.0119212963 | E63: =IFERROR(VLOOKUP($D63,prezence!A:F,2,0),"") ->  | F63: =IFERROR(VLOOKUP($D63,prezence!A:F,3,0),"") ->  | G63: =IFERROR(VLOOKUP($D63,prezence!A:F,4,0),"") ->  | H63: =IFERROR(VLOOKUP($D63,prezence!A:F,5,0),"") ->  | I63: =IFERROR(VLOOKUP($D63,prezence!A:F,6,0),"") -> 
A64: 59 | C64: -0.0119212963 | E64: =IFERROR(VLOOKUP($D64,prezence!A:F,2,0),"") ->  | F64: =IFERROR(VLOOKUP($D64,prezence!A:F,3,0),"") ->  | G64: =IFERROR(VLOOKUP($D64,prezence!A:F,4,0),"") ->  | H64: =IFERROR(VLOOKUP($D64,prezence!A:F,5,0),"") ->  | I64: =IFERROR(VLOOKUP($D64,prezence!A:F,6,0),"") -> 
A65: 60 | C65: -0.0119212963 | E65: =IFERROR(VLOOKUP($D65,prezence!A:F,2,0),"") ->  | F65: =IFERROR(VLOOKUP($D65,prezence!A:F,3,0),"") ->  | G65: =IFERROR(VLOOKUP($D65,prezence!A:F,4,0),"") ->  | H65: =IFERROR(VLOOKUP($D65,prezence!A:F,5,0),"") ->  | I65: =IFERROR(VLOOKUP($D65,prezence!A:F,6,0),"") -> 
A66: 61 | C66: -0.0119212963 | E66: =IFERROR(VLOOKUP($D66,prezence!A:F,2,0),"") ->  | F66: =IFERROR(VLOOKUP($D66,prezence!A:F,3,0),"") ->  | G66: =IFERROR(VLOOKUP($D66,prezence!A:F,4,0),"") ->  | H66: =IFERROR(VLOOKUP($D66,prezence!A:F,5,0),"") ->  | I66: =IFERROR(VLOOKUP($D66,prezence!A:F,6,0),"") -> 
A67: 62 | C67: -0.0119212963 | E67: =IFERROR(VLOOKUP($D67,prezence!A:F,2,0),"") ->  | F67: =IFERROR(VLOOKUP($D67,prezence!A:F,3,0),"") ->  | G67: =IFERROR(VLOOKUP($D67,prezence!A:F,4,0),"") ->  | H67: =IFERROR(VLOOKUP($D67,prezence!A:F,5,0),"") ->  | I67: =IFERROR(VLOOKUP($D67,prezence!A:F,6,0),"") -> 
A68: 63 | C68: -0.0119212963 | E68: =IFERROR(VLOOKUP($D68,prezence!A:F,2,0),"") ->  | F68: =IFERROR(VLOOKUP($D68,prezence!A:F,3,0),"") ->  | G68: =IFERROR(VLOOKUP($D68,prezence!A:F,4,0),"") ->  | H68: =IFERROR(VLOOKUP($D68,prezence!A:F,5,0),"") ->  | I68: =IFERROR(VLOOKUP($D68,prezence!A:F,6,0),"") -> 
A69: 64 | C69: -0.0119212963 | E69: =IFERROR(VLOOKUP($D69,prezence!A:F,2,0),"") ->  | F69: =IFERROR(VLOOKUP($D69,prezence!A:F,3,0),"") ->  | G69: =IFERROR(VLOOKUP($D69,prezence!A:F,4,0),"") ->  | H69: =IFERROR(VLOOKUP($D69,prezence!A:F,5,0),"") ->  | I69: =IFERROR(VLOOKUP($D69,prezence!A:F,6,0),"") -> 
A70: 65 | C70: =B70-$B$6 -> -0.0119212963 | E70: =IFERROR(VLOOKUP($D70,prezence!A:F,2,0),"") ->  | F70: =IFERROR(VLOOKUP($D70,prezence!A:F,3,0),"") ->  | G70: =IFERROR(VLOOKUP($D70,prezence!A:F,4,0),"") ->  | H70: =IFERROR(VLOOKUP($D70,prezence!A:F,5,0),"") ->  | I70: =IFERROR(VLOOKUP($D70,prezence!A:F,6,0),"") -> 
A71: 66 | C71: -0.0119212963 | E71: =IFERROR(VLOOKUP($D71,prezence!A:F,2,0),"") ->  | F71: =IFERROR(VLOOKUP($D71,prezence!A:F,3,0),"") ->  | G71: =IFERROR(VLOOKUP($D71,prezence!A:F,4,0),"") ->  | H71: =IFERROR(VLOOKUP($D71,prezence!A:F,5,0),"") ->  | I71: =IFERROR(VLOOKUP($D71,prezence!A:F,6,0),"") -> 
A72: 67 | C72: -0.0119212963 | E72: =IFERROR(VLOOKUP($D72,prezence!A:F,2,0),"") ->  | F72: =IFERROR(VLOOKUP($D72,prezence!A:F,3,0),"") ->  | G72: =IFERROR(VLOOKUP($D72,prezence!A:F,4,0),"") ->  | H72: =IFERROR(VLOOKUP($D72,prezence!A:F,5,0),"") ->  | I72: =IFERROR(VLOOKUP($D72,prezence!A:F,6,0),"") -> 
A73: 68 | C73: -0.0119212963 | E73: =IFERROR(VLOOKUP($D73,prezence!A:F,2,0),"") ->  | F73: =IFERROR(VLOOKUP($D73,prezence!A:F,3,0),"") ->  | G73: =IFERROR(VLOOKUP($D73,prezence!A:F,4,0),"") ->  | H73: =IFERROR(VLOOKUP($D73,prezence!A:F,5,0),"") ->  | I73: =IFERROR(VLOOKUP($D73,prezence!A:F,6,0),"") -> 
A74: 69 | C74: -0.0119212963 | E74: =IFERROR(VLOOKUP($D74,prezence!A:F,2,0),"") ->  | F74: =IFERROR(VLOOKUP($D74,prezence!A:F,3,0),"") ->  | G74: =IFERROR(VLOOKUP($D74,prezence!A:F,4,0),"") ->  | H74: =IFERROR(VLOOKUP($D74,prezence!A:F,5,0),"") ->  | I74: =IFERROR(VLOOKUP($D74,prezence!A:F,6,0),"") -> 
A75: 70 | C75: -0.0119212963 | E75: =IFERROR(VLOOKUP($D75,prezence!A:F,2,0),"") ->  | F75: =IFERROR(VLOOKUP($D75,prezence!A:F,3,0),"") ->  | G75: =IFERROR(VLOOKUP($D75,prezence!A:F,4,0),"") ->  | H75: =IFERROR(VLOOKUP($D75,prezence!A:F,5,0),"") ->  | I75: =IFERROR(VLOOKUP($D75,prezence!A:F,6,0),"") -> 
A76: 71 | C76: -0.0119212963 | E76: =IFERROR(VLOOKUP($D76,prezence!A:F,2,0),"") ->  | F76: =IFERROR(VLOOKUP($D76,prezence!A:F,3,0),"") ->  | G76: =IFERROR(VLOOKUP($D76,prezence!A:F,4,0),"") ->  | H76: =IFERROR(VLOOKUP($D76,prezence!A:F,5,0),"") ->  | I76: =IFERROR(VLOOKUP($D76,prezence!A:F,6,0),"") -> 
A77: 72 | C77: -0.0119212963 | E77: =IFERROR(VLOOKUP($D77,prezence!A:F,2,0),"") ->  | F77: =IFERROR(VLOOKUP($D77,prezence!A:F,3,0),"") ->  | G77: =IFERROR(VLOOKUP($D77,prezence!A:F,4,0),"") ->  | H77: =IFERROR(VLOOKUP($D77,prezence!A:F,5,0),"") ->  | I77: =IFERROR(VLOOKUP($D77,prezence!A:F,6,0),"") -> 
A78: 73 | C78: -0.0119212963 | E78: =IFERROR(VLOOKUP($D78,prezence!A:F,2,0),"") ->  | F78: =IFERROR(VLOOKUP($D78,prezence!A:F,3,0),"") ->  | G78: =IFERROR(VLOOKUP($D78,prezence!A:F,4,0),"") ->  | H78: =IFERROR(VLOOKUP($D78,prezence!A:F,5,0),"") ->  | I78: =IFERROR(VLOOKUP($D78,prezence!A:F,6,0),"") -> 
A79: 74 | C79: -0.0119212963 | E79: =IFERROR(VLOOKUP($D79,prezence!A:F,2,0),"") ->  | F79: =IFERROR(VLOOKUP($D79,prezence!A:F,3,0),"") ->  | G79: =IFERROR(VLOOKUP($D79,prezence!A:F,4,0),"") ->  | H79: =IFERROR(VLOOKUP($D79,prezence!A:F,5,0),"") ->  | I79: =IFERROR(VLOOKUP($D79,prezence!A:F,6,0),"") -> 
A80: 75 | C80: -0.0119212963 | E80: =IFERROR(VLOOKUP($D80,prezence!A:F,2,0),"") ->  | F80: =IFERROR(VLOOKUP($D80,prezence!A:F,3,0),"") ->  | G80: =IFERROR(VLOOKUP($D80,prezence!A:F,4,0),"") ->  | H80: =IFERROR(VLOOKUP($D80,prezence!A:F,5,0),"") ->  | I80: =IFERROR(VLOOKUP($D80,prezence!A:F,6,0),"") -> 
A81: 76 | C81: -0.0119212963 | E81: =IFERROR(VLOOKUP($D81,prezence!A:F,2,0),"") ->  | F81: =IFERROR(VLOOKUP($D81,prezence!A:F,3,0),"") ->  | G81: =IFERROR(VLOOKUP($D81,prezence!A:F,4,0),"") ->  | H81: =IFERROR(VLOOKUP($D81,prezence!A:F,5,0),"") ->  | I81: =IFERROR(VLOOKUP($D81,prezence!A:F,6,0),"") -> 
A82: 77 | C82: -0.0119212963 | E82: =IFERROR(VLOOKUP($D82,prezence!A:F,2,0),"") ->  | F82: =IFERROR(VLOOKUP($D82,prezence!A:F,3,0),"") ->  | G82: =IFERROR(VLOOKUP($D82,prezence!A:F,4,0),"") ->  | H82: =IFERROR(VLOOKUP($D82,prezence!A:F,5,0),"") ->  | I82: =IFERROR(VLOOKUP($D82,prezence!A:F,6,0),"") -> 
A83: 78 | C83: -0.0119212963 | E83: =IFERROR(VLOOKUP($D83,prezence!A:F,2,0),"") ->  | F83: =IFERROR(VLOOKUP($D83,prezence!A:F,3,0),"") ->  | G83: =IFERROR(VLOOKUP($D83,prezence!A:F,4,0),"") ->  | H83: =IFERROR(VLOOKUP($D83,prezence!A:F,5,0),"") ->  | I83: =IFERROR(VLOOKUP($D83,prezence!A:F,6,0),"") -> 
A84: 79 | C84: -0.0119212963 | E84: =IFERROR(VLOOKUP($D84,prezence!A:F,2,0),"") ->  | F84: =IFERROR(VLOOKUP($D84,prezence!A:F,3,0),"") ->  | G84: =IFERROR(VLOOKUP($D84,prezence!A:F,4,0),"") ->  | H84: =IFERROR(VLOOKUP($D84,prezence!A:F,5,0),"") ->  | I84: =IFERROR(VLOOKUP($D84,prezence!A:F,6,0),"") -> 
A85: 80 | C85: -0.0119212963 | E85: =IFERROR(VLOOKUP($D85,prezence!A:F,2,0),"") ->  | F85: =IFERROR(VLOOKUP($D85,prezence!A:F,3,0),"") ->  | G85: =IFERROR(VLOOKUP($D85,prezence!A:F,4,0),"") ->  | H85: =IFERROR(VLOOKUP($D85,prezence!A:F,5,0),"") ->  | I85: =IFERROR(VLOOKUP($D85,prezence!A:F,6,0),"") -> 
A86: 81 | C86: -0.0119212963 | E86: =IFERROR(VLOOKUP($D86,prezence!A:F,2,0),"") ->  | F86: =IFERROR(VLOOKUP($D86,prezence!A:F,3,0),"") ->  | G86: =IFERROR(VLOOKUP($D86,prezence!A:F,4,0),"") ->  | H86: =IFERROR(VLOOKUP($D86,prezence!A:F,5,0),"") ->  | I86: =IFERROR(VLOOKUP($D86,prezence!A:F,6,0),"") -> 
A87: 82 | C87: -0.0119212963 | E87: =IFERROR(VLOOKUP($D87,prezence!A:F,2,0),"") ->  | F87: =IFERROR(VLOOKUP($D87,prezence!A:F,3,0),"") ->  | G87: =IFERROR(VLOOKUP($D87,prezence!A:F,4,0),"") ->  | H87: =IFERROR(VLOOKUP($D87,prezence!A:F,5,0),"") ->  | I87: =IFERROR(VLOOKUP($D87,prezence!A:F,6,0),"") -> 
A88: 83 | C88: -0.0119212963 | E88: =IFERROR(VLOOKUP($D88,prezence!A:F,2,0),"") ->  | F88: =IFERROR(VLOOKUP($D88,prezence!A:F,3,0),"") ->  | G88: =IFERROR(VLOOKUP($D88,prezence!A:F,4,0),"") ->  | H88: =IFERROR(VLOOKUP($D88,prezence!A:F,5,0),"") ->  | I88: =IFERROR(VLOOKUP($D88,prezence!A:F,6,0),"") -> 
A89: 84 | C89: -0.0119212963 | E89: =IFERROR(VLOOKUP($D89,prezence!A:F,2,0),"") ->  | F89: =IFERROR(VLOOKUP($D89,prezence!A:F,3,0),"") ->  | G89: =IFERROR(VLOOKUP($D89,prezence!A:F,4,0),"") ->  | H89: =IFERROR(VLOOKUP($D89,prezence!A:F,5,0),"") ->  | I89: =IFERROR(VLOOKUP($D89,prezence!A:F,6,0),"") -> 
A90: 85 | C90: -0.0119212963 | E90: =IFERROR(VLOOKUP($D90,prezence!A:F,2,0),"") ->  | F90: =IFERROR(VLOOKUP($D90,prezence!A:F,3,0),"") ->  | G90: =IFERROR(VLOOKUP($D90,prezence!A:F,4,0),"") ->  | H90: =IFERROR(VLOOKUP($D90,prezence!A:F,5,0),"") ->  | I90: =IFERROR(VLOOKUP($D90,prezence!A:F,6,0),"") -> 
A91: 86 | C91: -0.0119212963 | E91: =IFERROR(VLOOKUP($D91,prezence!A:F,2,0),"") ->  | F91: =IFERROR(VLOOKUP($D91,prezence!A:F,3,0),"") ->  | G91: =IFERROR(VLOOKUP($D91,prezence!A:F,4,0),"") ->  | H91: =IFERROR(VLOOKUP($D91,prezence!A:F,5,0),"") ->  | I91: =IFERROR(VLOOKUP($D91,prezence!A:F,6,0),"") -> 
A92: 87 | C92: -0.0119212963 | E92: =IFERROR(VLOOKUP($D92,prezence!A:F,2,0),"") ->  | F92: =IFERROR(VLOOKUP($D92,prezence!A:F,3,0),"") ->  | G92: =IFERROR(VLOOKUP($D92,prezence!A:F,4,0),"") ->  | H92: =IFERROR(VLOOKUP($D92,prezence!A:F,5,0),"") ->  | I92: =IFERROR(VLOOKUP($D92,prezence!A:F,6,0),"") -> 
A93: 88 | C93: -0.0119212963 | E93: =IFERROR(VLOOKUP($D93,prezence!A:F,2,0),"") ->  | F93: =IFERROR(VLOOKUP($D93,prezence!A:F,3,0),"") ->  | G93: =IFERROR(VLOOKUP($D93,prezence!A:F,4,0),"") ->  | H93: =IFERROR(VLOOKUP($D93,prezence!A:F,5,0),"") ->  | I93: =IFERROR(VLOOKUP($D93,prezence!A:F,6,0),"") -> 
A94: 89 | C94: -0.0119212963 | E94: =IFERROR(VLOOKUP($D94,prezence!A:F,2,0),"") ->  | F94: =IFERROR(VLOOKUP($D94,prezence!A:F,3,0),"") ->  | G94: =IFERROR(VLOOKUP($D94,prezence!A:F,4,0),"") ->  | H94: =IFERROR(VLOOKUP($D94,prezence!A:F,5,0),"") ->  | I94: =IFERROR(VLOOKUP($D94,prezence!A:F,6,0),"") -> 
A95: 90 | C95: -0.0119212963 | E95: =IFERROR(VLOOKUP($D95,prezence!A:F,2,0),"") ->  | F95: =IFERROR(VLOOKUP($D95,prezence!A:F,3,0),"") ->  | G95: =IFERROR(VLOOKUP($D95,prezence!A:F,4,0),"") ->  | H95: =IFERROR(VLOOKUP($D95,prezence!A:F,5,0),"") ->  | I95: =IFERROR(VLOOKUP($D95,prezence!A:F,6,0),"") -> 
A96: 91 | C96: -0.0119212963 | E96: =IFERROR(VLOOKUP($D96,prezence!A:F,2,0),"") ->  | F96: =IFERROR(VLOOKUP($D96,prezence!A:F,3,0),"") ->  | G96: =IFERROR(VLOOKUP($D96,prezence!A:F,4,0),"") ->  | H96: =IFERROR(VLOOKUP($D96,prezence!A:F,5,0),"") ->  | I96: =IFERROR(VLOOKUP($D96,prezence!A:F,6,0),"") -> 
A97: 92 | C97: -0.0119212963 | E97: =IFERROR(VLOOKUP($D97,prezence!A:F,2,0),"") ->  | F97: =IFERROR(VLOOKUP($D97,prezence!A:F,3,0),"") ->  | G97: =IFERROR(VLOOKUP($D97,prezence!A:F,4,0),"") ->  | H97: =IFERROR(VLOOKUP($D97,prezence!A:F,5,0),"") ->  | I97: =IFERROR(VLOOKUP($D97,prezence!A:F,6,0),"") -> 
A98: 93 | C98: -0.0119212963 | E98: =IFERROR(VLOOKUP($D98,prezence!A:F,2,0),"") ->  | F98: =IFERROR(VLOOKUP($D98,prezence!A:F,3,0),"") ->  | G98: =IFERROR(VLOOKUP($D98,prezence!A:F,4,0),"") ->  | H98: =IFERROR(VLOOKUP($D98,prezence!A:F,5,0),"") ->  | I98: =IFERROR(VLOOKUP($D98,prezence!A:F,6,0),"") -> 
A99: 94 | C99: -0.0119212963 | E99: =IFERROR(VLOOKUP($D99,prezence!A:F,2,0),"") ->  | F99: =IFERROR(VLOOKUP($D99,prezence!A:F,3,0),"") ->  | G99: =IFERROR(VLOOKUP($D99,prezence!A:F,4,0),"") ->  | H99: =IFERROR(VLOOKUP($D99,prezence!A:F,5,0),"") ->  | I99: =IFERROR(VLOOKUP($D99,prezence!A:F,6,0),"") -> 
A100: 95 | C100: -0.0119212963 | E100: =IFERROR(VLOOKUP($D100,prezence!A:F,2,0),"") ->  | F100: =IFERROR(VLOOKUP($D100,prezence!A:F,3,0),"") ->  | G100: =IFERROR(VLOOKUP($D100,prezence!A:F,4,0),"") ->  | H100: =IFERROR(VLOOKUP($D100,prezence!A:F,5,0),"") ->  | I100: =IFERROR(VLOOKUP($D100,prezence!A:F,6,0),"") -> 
A101: 96 | C101: -0.0119212963 | E101: =IFERROR(VLOOKUP($D101,prezence!A:F,2,0),"") ->  | F101: =IFERROR(VLOOKUP($D101,prezence!A:F,3,0),"") ->  | G101: =IFERROR(VLOOKUP($D101,prezence!A:F,4,0),"") ->  | H101: =IFERROR(VLOOKUP($D101,prezence!A:F,5,0),"") ->  | I101: =IFERROR(VLOOKUP($D101,prezence!A:F,6,0),"") -> 
A102: 97 | C102: -0.0119212963 | E102: =IFERROR(VLOOKUP($D102,prezence!A:F,2,0),"") ->  | F102: =IFERROR(VLOOKUP($D102,prezence!A:F,3,0),"") ->  | G102: =IFERROR(VLOOKUP($D102,prezence!A:F,4,0),"") ->  | H102: =IFERROR(VLOOKUP($D102,prezence!A:F,5,0),"") ->  | I102: =IFERROR(VLOOKUP($D102,prezence!A:F,6,0),"") -> 
A103: 98 | C103: -0.0119212963 | E103: =IFERROR(VLOOKUP($D103,prezence!A:F,2,0),"") ->  | F103: =IFERROR(VLOOKUP($D103,prezence!A:F,3,0),"") ->  | G103: =IFERROR(VLOOKUP($D103,prezence!A:F,4,0),"") ->  | H103: =IFERROR(VLOOKUP($D103,prezence!A:F,5,0),"") ->  | I103: =IFERROR(VLOOKUP($D103,prezence!A:F,6,0),"") -> 
A104: 99 | C104: -0.0119212963 | E104: =IFERROR(VLOOKUP($D104,prezence!A:F,2,0),"") ->  | F104: =IFERROR(VLOOKUP($D104,prezence!A:F,3,0),"") ->  | G104: =IFERROR(VLOOKUP($D104,prezence!A:F,4,0),"") ->  | H104: =IFERROR(VLOOKUP($D104,prezence!A:F,5,0),"") ->  | I104: =IFERROR(VLOOKUP($D104,prezence!A:F,6,0),"") -> 
A105: 100 | C105: -0.0119212963 | E105: =IFERROR(VLOOKUP($D105,prezence!A:F,2,0),"") ->  | F105: =IFERROR(VLOOKUP($D105,prezence!A:F,3,0),"") ->  | G105: =IFERROR(VLOOKUP($D105,prezence!A:F,4,0),"") ->  | H105: =IFERROR(VLOOKUP($D105,prezence!A:F,5,0),"") ->  | I105: =IFERROR(VLOOKUP($D105,prezence!A:F,6,0),"") -> 
A106: 101 | C106: -0.0119212963 | E106: =IFERROR(VLOOKUP($D106,prezence!A:F,2,0),"") ->  | F106: =IFERROR(VLOOKUP($D106,prezence!A:F,3,0),"") ->  | G106: =IFERROR(VLOOKUP($D106,prezence!A:F,4,0),"") ->  | H106: =IFERROR(VLOOKUP($D106,prezence!A:F,5,0),"") ->  | I106: =IFERROR(VLOOKUP($D106,prezence!A:F,6,0),"") -> 
A107: 102 | C107: -0.0119212963 | E107: =IFERROR(VLOOKUP($D107,prezence!A:F,2,0),"") ->  | F107: =IFERROR(VLOOKUP($D107,prezence!A:F,3,0),"") ->  | G107: =IFERROR(VLOOKUP($D107,prezence!A:F,4,0),"") ->  | H107: =IFERROR(VLOOKUP($D107,prezence!A:F,5,0),"") ->  | I107: =IFERROR(VLOOKUP($D107,prezence!A:F,6,0),"") -> 
A108: 103 | C108: -0.0119212963 | E108: =IFERROR(VLOOKUP($D108,prezence!A:F,2,0),"") ->  | F108: =IFERROR(VLOOKUP($D108,prezence!A:F,3,0),"") ->  | G108: =IFERROR(VLOOKUP($D108,prezence!A:F,4,0),"") ->  | H108: =IFERROR(VLOOKUP($D108,prezence!A:F,5,0),"") ->  | I108: =IFERROR(VLOOKUP($D108,prezence!A:F,6,0),"") -> 
A109: 104 | C109: -0.0119212963 | E109: =IFERROR(VLOOKUP($D109,prezence!A:F,2,0),"") ->  | F109: =IFERROR(VLOOKUP($D109,prezence!A:F,3,0),"") ->  | G109: =IFERROR(VLOOKUP($D109,prezence!A:F,4,0),"") ->  | H109: =IFERROR(VLOOKUP($D109,prezence!A:F,5,0),"") ->  | I109: =IFERROR(VLOOKUP($D109,prezence!A:F,6,0),"") -> 
A110: 105 | C110: -0.0119212963 | E110: =IFERROR(VLOOKUP($D110,prezence!A:F,2,0),"") ->  | F110: =IFERROR(VLOOKUP($D110,prezence!A:F,3,0),"") ->  | G110: =IFERROR(VLOOKUP($D110,prezence!A:F,4,0),"") ->  | H110: =IFERROR(VLOOKUP($D110,prezence!A:F,5,0),"") ->  | I110: =IFERROR(VLOOKUP($D110,prezence!A:F,6,0),"") -> 
A111: 106 | C111: -0.0119212963 | E111: =IFERROR(VLOOKUP($D111,prezence!A:F,2,0),"") ->  | F111: =IFERROR(VLOOKUP($D111,prezence!A:F,3,0),"") ->  | G111: =IFERROR(VLOOKUP($D111,prezence!A:F,4,0),"") ->  | H111: =IFERROR(VLOOKUP($D111,prezence!A:F,5,0),"") ->  | I111: =IFERROR(VLOOKUP($D111,prezence!A:F,6,0),"") -> 
A112: 107 | C112: -0.0119212963 | E112: =IFERROR(VLOOKUP($D112,prezence!A:F,2,0),"") ->  | F112: =IFERROR(VLOOKUP($D112,prezence!A:F,3,0),"") ->  | G112: =IFERROR(VLOOKUP($D112,prezence!A:F,4,0),"") ->  | H112: =IFERROR(VLOOKUP($D112,prezence!A:F,5,0),"") ->  | I112: =IFERROR(VLOOKUP($D112,prezence!A:F,6,0),"") -> 
A113: 108 | C113: -0.0119212963 | E113: =IFERROR(VLOOKUP($D113,prezence!A:F,2,0),"") ->  | F113: =IFERROR(VLOOKUP($D113,prezence!A:F,3,0),"") ->  | G113: =IFERROR(VLOOKUP($D113,prezence!A:F,4,0),"") ->  | H113: =IFERROR(VLOOKUP($D113,prezence!A:F,5,0),"") ->  | I113: =IFERROR(VLOOKUP($D113,prezence!A:F,6,0),"") -> 
A114: 109 | C114: -0.0119212963 | E114: =IFERROR(VLOOKUP($D114,prezence!A:F,2,0),"") ->  | F114: =IFERROR(VLOOKUP($D114,prezence!A:F,3,0),"") ->  | G114: =IFERROR(VLOOKUP($D114,prezence!A:F,4,0),"") ->  | H114: =IFERROR(VLOOKUP($D114,prezence!A:F,5,0),"") ->  | I114: =IFERROR(VLOOKUP($D114,prezence!A:F,6,0),"") -> 
A115: 110 | C115: -0.0119212963 | E115: =IFERROR(VLOOKUP($D115,prezence!A:F,2,0),"") ->  | F115: =IFERROR(VLOOKUP($D115,prezence!A:F,3,0),"") ->  | G115: =IFERROR(VLOOKUP($D115,prezence!A:F,4,0),"") ->  | H115: =IFERROR(VLOOKUP($D115,prezence!A:F,5,0),"") ->  | I115: =IFERROR(VLOOKUP($D115,prezence!A:F,6,0),"") -> 
A116: 111 | C116: -0.0119212963 | E116: =IFERROR(VLOOKUP($D116,prezence!A:F,2,0),"") ->  | F116: =IFERROR(VLOOKUP($D116,prezence!A:F,3,0),"") ->  | G116: =IFERROR(VLOOKUP($D116,prezence!A:F,4,0),"") ->  | H116: =IFERROR(VLOOKUP($D116,prezence!A:F,5,0),"") ->  | I116: =IFERROR(VLOOKUP($D116,prezence!A:F,6,0),"") -> 
A117: 112 | C117: -0.0119212963 | E117: =IFERROR(VLOOKUP($D117,prezence!A:F,2,0),"") ->  | F117: =IFERROR(VLOOKUP($D117,prezence!A:F,3,0),"") ->  | G117: =IFERROR(VLOOKUP($D117,prezence!A:F,4,0),"") ->  | H117: =IFERROR(VLOOKUP($D117,prezence!A:F,5,0),"") ->  | I117: =IFERROR(VLOOKUP($D117,prezence!A:F,6,0),"") -> 
A118: 113 | C118: -0.0119212963 | E118: =IFERROR(VLOOKUP($D118,prezence!A:F,2,0),"") ->  | F118: =IFERROR(VLOOKUP($D118,prezence!A:F,3,0),"") ->  | G118: =IFERROR(VLOOKUP($D118,prezence!A:F,4,0),"") ->  | H118: =IFERROR(VLOOKUP($D118,prezence!A:F,5,0),"") ->  | I118: =IFERROR(VLOOKUP($D118,prezence!A:F,6,0),"") -> 
A119: 114 | C119: -0.0119212963 | E119: =IFERROR(VLOOKUP($D119,prezence!A:F,2,0),"") ->  | F119: =IFERROR(VLOOKUP($D119,prezence!A:F,3,0),"") ->  | G119: =IFERROR(VLOOKUP($D119,prezence!A:F,4,0),"") ->  | H119: =IFERROR(VLOOKUP($D119,prezence!A:F,5,0),"") ->  | I119: =IFERROR(VLOOKUP($D119,prezence!A:F,6,0),"") -> 
A120: 115 | C120: -0.0119212963 | E120: =IFERROR(VLOOKUP($D120,prezence!A:F,2,0),"") ->  | F120: =IFERROR(VLOOKUP($D120,prezence!A:F,3,0),"") ->  | G120: =IFERROR(VLOOKUP($D120,prezence!A:F,4,0),"") ->  | H120: =IFERROR(VLOOKUP($D120,prezence!A:F,5,0),"") ->  | I120: =IFERROR(VLOOKUP($D120,prezence!A:F,6,0),"") -> 
A121: 116 | C121: -0.0119212963 | E121: =IFERROR(VLOOKUP($D121,prezence!A:F,2,0),"") ->  | F121: =IFERROR(VLOOKUP($D121,prezence!A:F,3,0),"") ->  | G121: =IFERROR(VLOOKUP($D121,prezence!A:F,4,0),"") ->  | H121: =IFERROR(VLOOKUP($D121,prezence!A:F,5,0),"") ->  | I121: =IFERROR(VLOOKUP($D121,prezence!A:F,6,0),"") -> 
A122: 117 | C122: -0.0119212963 | E122: =IFERROR(VLOOKUP($D122,prezence!A:F,2,0),"") ->  | F122: =IFERROR(VLOOKUP($D122,prezence!A:F,3,0),"") ->  | G122: =IFERROR(VLOOKUP($D122,prezence!A:F,4,0),"") ->  | H122: =IFERROR(VLOOKUP($D122,prezence!A:F,5,0),"") ->  | I122: =IFERROR(VLOOKUP($D122,prezence!A:F,6,0),"") -> 
A123: 118 | C123: -0.0119212963 | E123: =IFERROR(VLOOKUP($D123,prezence!A:F,2,0),"") ->  | F123: =IFERROR(VLOOKUP($D123,prezence!A:F,3,0),"") ->  | G123: =IFERROR(VLOOKUP($D123,prezence!A:F,4,0),"") ->  | H123: =IFERROR(VLOOKUP($D123,prezence!A:F,5,0),"") ->  | I123: =IFERROR(VLOOKUP($D123,prezence!A:F,6,0),"") -> 
A124: 119 | C124: -0.0119212963 | E124: =IFERROR(VLOOKUP($D124,prezence!A:F,2,0),"") ->  | F124: =IFERROR(VLOOKUP($D124,prezence!A:F,3,0),"") ->  | G124: =IFERROR(VLOOKUP($D124,prezence!A:F,4,0),"") ->  | H124: =IFERROR(VLOOKUP($D124,prezence!A:F,5,0),"") ->  | I124: =IFERROR(VLOOKUP($D124,prezence!A:F,6,0),"") -> 
A125: 120 | C125: -0.0119212963 | E125: =IFERROR(VLOOKUP($D125,prezence!A:F,2,0),"") ->  | F125: =IFERROR(VLOOKUP($D125,prezence!A:F,3,0),"") ->  | G125: =IFERROR(VLOOKUP($D125,prezence!A:F,4,0),"") ->  | H125: =IFERROR(VLOOKUP($D125,prezence!A:F,5,0),"") ->  | I125: =IFERROR(VLOOKUP($D125,prezence!A:F,6,0),"") -> 
A126: 121 | C126: -0.0119212963 | E126: =IFERROR(VLOOKUP($D126,prezence!A:F,2,0),"") ->  | F126: =IFERROR(VLOOKUP($D126,prezence!A:F,3,0),"") ->  | G126: =IFERROR(VLOOKUP($D126,prezence!A:F,4,0),"") ->  | H126: =IFERROR(VLOOKUP($D126,prezence!A:F,5,0),"") ->  | I126: =IFERROR(VLOOKUP($D126,prezence!A:F,6,0),"") -> 
A127: 122 | C127: -0.0119212963 | E127: =IFERROR(VLOOKUP($D127,prezence!A:F,2,0),"") ->  | F127: =IFERROR(VLOOKUP($D127,prezence!A:F,3,0),"") ->  | G127: =IFERROR(VLOOKUP($D127,prezence!A:F,4,0),"") ->  | H127: =IFERROR(VLOOKUP($D127,prezence!A:F,5,0),"") ->  | I127: =IFERROR(VLOOKUP($D127,prezence!A:F,6,0),"") -> 
A128: 123 | C128: -0.0119212963 | E128: =IFERROR(VLOOKUP($D128,prezence!A:F,2,0),"") ->  | F128: =IFERROR(VLOOKUP($D128,prezence!A:F,3,0),"") ->  | G128: =IFERROR(VLOOKUP($D128,prezence!A:F,4,0),"") ->  | H128: =IFERROR(VLOOKUP($D128,prezence!A:F,5,0),"") ->  | I128: =IFERROR(VLOOKUP($D128,prezence!A:F,6,0),"") -> 
A129: 124 | C129: -0.0119212963 | E129: =IFERROR(VLOOKUP($D129,prezence!A:F,2,0),"") ->  | F129: =IFERROR(VLOOKUP($D129,prezence!A:F,3,0),"") ->  | G129: =IFERROR(VLOOKUP($D129,prezence!A:F,4,0),"") ->  | H129: =IFERROR(VLOOKUP($D129,prezence!A:F,5,0),"") ->  | I129: =IFERROR(VLOOKUP($D129,prezence!A:F,6,0),"") -> 
A130: 125 | C130: -0.0119212963 | E130: =IFERROR(VLOOKUP($D130,prezence!A:F,2,0),"") ->  | F130: =IFERROR(VLOOKUP($D130,prezence!A:F,3,0),"") ->  | G130: =IFERROR(VLOOKUP($D130,prezence!A:F,4,0),"") ->  | H130: =IFERROR(VLOOKUP($D130,prezence!A:F,5,0),"") ->  | I130: =IFERROR(VLOOKUP($D130,prezence!A:F,6,0),"") -> 
A131: 126 | C131: -0.0119212963 | E131: =IFERROR(VLOOKUP($D131,prezence!A:F,2,0),"") ->  | F131: =IFERROR(VLOOKUP($D131,prezence!A:F,3,0),"") ->  | G131: =IFERROR(VLOOKUP($D131,prezence!A:F,4,0),"") ->  | H131: =IFERROR(VLOOKUP($D131,prezence!A:F,5,0),"") ->  | I131: =IFERROR(VLOOKUP($D131,prezence!A:F,6,0),"") -> 
A132: 127 | C132: -0.0119212963 | E132: =IFERROR(VLOOKUP($D132,prezence!A:F,2,0),"") ->  | F132: =IFERROR(VLOOKUP($D132,prezence!A:F,3,0),"") ->  | G132: =IFERROR(VLOOKUP($D132,prezence!A:F,4,0),"") ->  | H132: =IFERROR(VLOOKUP($D132,prezence!A:F,5,0),"") ->  | I132: =IFERROR(VLOOKUP($D132,prezence!A:F,6,0),"") -> 
A133: 128 | C133: -0.0119212963 | E133: =IFERROR(VLOOKUP($D133,prezence!A:F,2,0),"") ->  | F133: =IFERROR(VLOOKUP($D133,prezence!A:F,3,0),"") ->  | G133: =IFERROR(VLOOKUP($D133,prezence!A:F,4,0),"") ->  | H133: =IFERROR(VLOOKUP($D133,prezence!A:F,5,0),"") ->  | I133: =IFERROR(VLOOKUP($D133,prezence!A:F,6,0),"") -> 
A134: 129 | C134: =B134-$B$6 -> -0.0119212963 | E134: =IFERROR(VLOOKUP($D134,prezence!A:F,2,0),"") ->  | F134: =IFERROR(VLOOKUP($D134,prezence!A:F,3,0),"") ->  | G134: =IFERROR(VLOOKUP($D134,prezence!A:F,4,0),"") ->  | H134: =IFERROR(VLOOKUP($D134,prezence!A:F,5,0),"") ->  | I134: =IFERROR(VLOOKUP($D134,prezence!A:F,6,0),"") -> 
A135: 130 | C135: -0.0119212963 | E135: =IFERROR(VLOOKUP($D135,prezence!A:F,2,0),"") ->  | F135: =IFERROR(VLOOKUP($D135,prezence!A:F,3,0),"") ->  | G135: =IFERROR(VLOOKUP($D135,prezence!A:F,4,0),"") ->  | H135: =IFERROR(VLOOKUP($D135,prezence!A:F,5,0),"") ->  | I135: =IFERROR(VLOOKUP($D135,prezence!A:F,6,0),"") -> 
A136: 131 | C136: -0.0119212963 | E136: =IFERROR(VLOOKUP($D136,prezence!A:F,2,0),"") ->  | F136: =IFERROR(VLOOKUP($D136,prezence!A:F,3,0),"") ->  | G136: =IFERROR(VLOOKUP($D136,prezence!A:F,4,0),"") ->  | H136: =IFERROR(VLOOKUP($D136,prezence!A:F,5,0),"") ->  | I136: =IFERROR(VLOOKUP($D136,prezence!A:F,6,0),"") -> 
A137: 132 | C137: -0.0119212963 | E137: =IFERROR(VLOOKUP($D137,prezence!A:F,2,0),"") ->  | F137: =IFERROR(VLOOKUP($D137,prezence!A:F,3,0),"") ->  | G137: =IFERROR(VLOOKUP($D137,prezence!A:F,4,0),"") ->  | H137: =IFERROR(VLOOKUP($D137,prezence!A:F,5,0),"") ->  | I137: =IFERROR(VLOOKUP($D137,prezence!A:F,6,0),"") -> 
A138: 133 | C138: -0.0119212963 | E138: =IFERROR(VLOOKUP($D138,prezence!A:F,2,0),"") ->  | F138: =IFERROR(VLOOKUP($D138,prezence!A:F,3,0),"") ->  | G138: =IFERROR(VLOOKUP($D138,prezence!A:F,4,0),"") ->  | H138: =IFERROR(VLOOKUP($D138,prezence!A:F,5,0),"") ->  | I138: =IFERROR(VLOOKUP($D138,prezence!A:F,6,0),"") -> 
A139: 134 | C139: -0.0119212963 | E139: =IFERROR(VLOOKUP($D139,prezence!A:F,2,0),"") ->  | F139: =IFERROR(VLOOKUP($D139,prezence!A:F,3,0),"") ->  | G139: =IFERROR(VLOOKUP($D139,prezence!A:F,4,0),"") ->  | H139: =IFERROR(VLOOKUP($D139,prezence!A:F,5,0),"") ->  | I139: =IFERROR(VLOOKUP($D139,prezence!A:F,6,0),"") -> 
A140: 135 | C140: -0.0119212963 | E140: =IFERROR(VLOOKUP($D140,prezence!A:F,2,0),"") ->  | F140: =IFERROR(VLOOKUP($D140,prezence!A:F,3,0),"") ->  | G140: =IFERROR(VLOOKUP($D140,prezence!A:F,4,0),"") ->  | H140: =IFERROR(VLOOKUP($D140,prezence!A:F,5,0),"") ->  | I140: =IFERROR(VLOOKUP($D140,prezence!A:F,6,0),"") -> 
A141: 136 | C141: -0.0119212963 | E141: =IFERROR(VLOOKUP($D141,prezence!A:F,2,0),"") ->  | F141: =IFERROR(VLOOKUP($D141,prezence!A:F,3,0),"") ->  | G141: =IFERROR(VLOOKUP($D141,prezence!A:F,4,0),"") ->  | H141: =IFERROR(VLOOKUP($D141,prezence!A:F,5,0),"") ->  | I141: =IFERROR(VLOOKUP($D141,prezence!A:F,6,0),"") -> 
A142: 137 | C142: -0.0119212963 | E142: =IFERROR(VLOOKUP($D142,prezence!A:F,2,0),"") ->  | F142: =IFERROR(VLOOKUP($D142,prezence!A:F,3,0),"") ->  | G142: =IFERROR(VLOOKUP($D142,prezence!A:F,4,0),"") ->  | H142: =IFERROR(VLOOKUP($D142,prezence!A:F,5,0),"") ->  | I142: =IFERROR(VLOOKUP($D142,prezence!A:F,6,0),"") -> 
A143: 138 | C143: -0.0119212963 | E143: =IFERROR(VLOOKUP($D143,prezence!A:F,2,0),"") ->  | F143: =IFERROR(VLOOKUP($D143,prezence!A:F,3,0),"") ->  | G143: =IFERROR(VLOOKUP($D143,prezence!A:F,4,0),"") ->  | H143: =IFERROR(VLOOKUP($D143,prezence!A:F,5,0),"") ->  | I143: =IFERROR(VLOOKUP($D143,prezence!A:F,6,0),"") -> 
A144: 139 | C144: -0.0119212963 | E144: =IFERROR(VLOOKUP($D144,prezence!A:F,2,0),"") ->  | F144: =IFERROR(VLOOKUP($D144,prezence!A:F,3,0),"") ->  | G144: =IFERROR(VLOOKUP($D144,prezence!A:F,4,0),"") ->  | H144: =IFERROR(VLOOKUP($D144,prezence!A:F,5,0),"") ->  | I144: =IFERROR(VLOOKUP($D144,prezence!A:F,6,0),"") -> 
A145: 140 | C145: -0.0119212963 | E145: =IFERROR(VLOOKUP($D145,prezence!A:F,2,0),"") ->  | F145: =IFERROR(VLOOKUP($D145,prezence!A:F,3,0),"") ->  | G145: =IFERROR(VLOOKUP($D145,prezence!A:F,4,0),"") ->  | H145: =IFERROR(VLOOKUP($D145,prezence!A:F,5,0),"") ->  | I145: =IFERROR(VLOOKUP($D145,prezence!A:F,6,0),"") -> 
A146: 141 | C146: -0.0119212963 | E146: =IFERROR(VLOOKUP($D146,prezence!A:F,2,0),"") ->  | F146: =IFERROR(VLOOKUP($D146,prezence!A:F,3,0),"") ->  | G146: =IFERROR(VLOOKUP($D146,prezence!A:F,4,0),"") ->  | H146: =IFERROR(VLOOKUP($D146,prezence!A:F,5,0),"") ->  | I146: =IFERROR(VLOOKUP($D146,prezence!A:F,6,0),"") -> 
A147: 142 | C147: -0.0119212963 | E147: =IFERROR(VLOOKUP($D147,prezence!A:F,2,0),"") ->  | F147: =IFERROR(VLOOKUP($D147,prezence!A:F,3,0),"") ->  | G147: =IFERROR(VLOOKUP($D147,prezence!A:F,4,0),"") ->  | H147: =IFERROR(VLOOKUP($D147,prezence!A:F,5,0),"") ->  | I147: =IFERROR(VLOOKUP($D147,prezence!A:F,6,0),"") -> 
A148: 143 | C148: -0.0119212963 | E148: =IFERROR(VLOOKUP($D148,prezence!A:F,2,0),"") ->  | F148: =IFERROR(VLOOKUP($D148,prezence!A:F,3,0),"") ->  | G148: =IFERROR(VLOOKUP($D148,prezence!A:F,4,0),"") ->  | H148: =IFERROR(VLOOKUP($D148,prezence!A:F,5,0),"") ->  | I148: =IFERROR(VLOOKUP($D148,prezence!A:F,6,0),"") -> 
A149: 144 | C149: -0.0119212963 | E149: =IFERROR(VLOOKUP($D149,prezence!A:F,2,0),"") ->  | F149: =IFERROR(VLOOKUP($D149,prezence!A:F,3,0),"") ->  | G149: =IFERROR(VLOOKUP($D149,prezence!A:F,4,0),"") ->  | H149: =IFERROR(VLOOKUP($D149,prezence!A:F,5,0),"") ->  | I149: =IFERROR(VLOOKUP($D149,prezence!A:F,6,0),"") -> 
A150: 145 | C150: -0.0119212963 | E150: =IFERROR(VLOOKUP($D150,prezence!A:F,2,0),"") ->  | F150: =IFERROR(VLOOKUP($D150,prezence!A:F,3,0),"") ->  | G150: =IFERROR(VLOOKUP($D150,prezence!A:F,4,0),"") ->  | H150: =IFERROR(VLOOKUP($D150,prezence!A:F,5,0),"") ->  | I150: =IFERROR(VLOOKUP($D150,prezence!A:F,6,0),"") -> 
A151: 146 | C151: -0.0119212963 | E151: =IFERROR(VLOOKUP($D151,prezence!A:F,2,0),"") ->  | F151: =IFERROR(VLOOKUP($D151,prezence!A:F,3,0),"") ->  | G151: =IFERROR(VLOOKUP($D151,prezence!A:F,4,0),"") ->  | H151: =IFERROR(VLOOKUP($D151,prezence!A:F,5,0),"") ->  | I151: =IFERROR(VLOOKUP($D151,prezence!A:F,6,0),"") -> 
A152: 147 | C152: -0.0119212963 | E152: =IFERROR(VLOOKUP($D152,prezence!A:F,2,0),"") ->  | F152: =IFERROR(VLOOKUP($D152,prezence!A:F,3,0),"") ->  | G152: =IFERROR(VLOOKUP($D152,prezence!A:F,4,0),"") ->  | H152: =IFERROR(VLOOKUP($D152,prezence!A:F,5,0),"") ->  | I152: =IFERROR(VLOOKUP($D152,prezence!A:F,6,0),"") -> 
A153: 148 | C153: -0.0119212963 | E153: =IFERROR(VLOOKUP($D153,prezence!A:F,2,0),"") ->  | F153: =IFERROR(VLOOKUP($D153,prezence!A:F,3,0),"") ->  | G153: =IFERROR(VLOOKUP($D153,prezence!A:F,4,0),"") ->  | H153: =IFERROR(VLOOKUP($D153,prezence!A:F,5,0),"") ->  | I153: =IFERROR(VLOOKUP($D153,prezence!A:F,6,0),"") -> 
A154: 149 | C154: -0.0119212963 | E154: =IFERROR(VLOOKUP($D154,prezence!A:F,2,0),"") ->  | F154: =IFERROR(VLOOKUP($D154,prezence!A:F,3,0),"") ->  | G154: =IFERROR(VLOOKUP($D154,prezence!A:F,4,0),"") ->  | H154: =IFERROR(VLOOKUP($D154,prezence!A:F,5,0),"") ->  | I154: =IFERROR(VLOOKUP($D154,prezence!A:F,6,0),"") -> 
A155: 150 | C155: -0.0119212963 | E155: =IFERROR(VLOOKUP($D155,prezence!A:F,2,0),"") ->  | F155: =IFERROR(VLOOKUP($D155,prezence!A:F,3,0),"") ->  | G155: =IFERROR(VLOOKUP($D155,prezence!A:F,4,0),"") ->  | H155: =IFERROR(VLOOKUP($D155,prezence!A:F,5,0),"") ->  | I155: =IFERROR(VLOOKUP($D155,prezence!A:F,6,0),"") -> 
A156: 151 | C156: -0.0119212963 | E156: =IFERROR(VLOOKUP($D156,prezence!A:F,2,0),"") ->  | F156: =IFERROR(VLOOKUP($D156,prezence!A:F,3,0),"") ->  | G156: =IFERROR(VLOOKUP($D156,prezence!A:F,4,0),"") ->  | H156: =IFERROR(VLOOKUP($D156,prezence!A:F,5,0),"") ->  | I156: =IFERROR(VLOOKUP($D156,prezence!A:F,6,0),"") -> 
A157: 152 | C157: -0.0119212963 | E157: =IFERROR(VLOOKUP($D157,prezence!A:F,2,0),"") ->  | F157: =IFERROR(VLOOKUP($D157,prezence!A:F,3,0),"") ->  | G157: =IFERROR(VLOOKUP($D157,prezence!A:F,4,0),"") ->  | H157: =IFERROR(VLOOKUP($D157,prezence!A:F,5,0),"") ->  | I157: =IFERROR(VLOOKUP($D157,prezence!A:F,6,0),"") -> 
A158: 153 | C158: -0.0119212963 | E158: =IFERROR(VLOOKUP($D158,prezence!A:F,2,0),"") ->  | F158: =IFERROR(VLOOKUP($D158,prezence!A:F,3,0),"") ->  | G158: =IFERROR(VLOOKUP($D158,prezence!A:F,4,0),"") ->  | H158: =IFERROR(VLOOKUP($D158,prezence!A:F,5,0),"") ->  | I158: =IFERROR(VLOOKUP($D158,prezence!A:F,6,0),"") -> 
A159: 154 | C159: -0.0119212963 | E159: =IFERROR(VLOOKUP($D159,prezence!A:F,2,0),"") ->  | F159: =IFERROR(VLOOKUP($D159,prezence!A:F,3,0),"") ->  | G159: =IFERROR(VLOOKUP($D159,prezence!A:F,4,0),"") ->  | H159: =IFERROR(VLOOKUP($D159,prezence!A:F,5,0),"") ->  | I159: =IFERROR(VLOOKUP($D159,prezence!A:F,6,0),"") -> 
A160: 155 | C160: -0.0119212963 | E160: =IFERROR(VLOOKUP($D160,prezence!A:F,2,0),"") ->  | F160: =IFERROR(VLOOKUP($D160,prezence!A:F,3,0),"") ->  | G160: =IFERROR(VLOOKUP($D160,prezence!A:F,4,0),"") ->  | H160: =IFERROR(VLOOKUP($D160,prezence!A:F,5,0),"") ->  | I160: =IFERROR(VLOOKUP($D160,prezence!A:F,6,0),"") -> 
A161: 156 | C161: -0.0119212963 | E161: =IFERROR(VLOOKUP($D161,prezence!A:F,2,0),"") ->  | F161: =IFERROR(VLOOKUP($D161,prezence!A:F,3,0),"") ->  | G161: =IFERROR(VLOOKUP($D161,prezence!A:F,4,0),"") ->  | H161: =IFERROR(VLOOKUP($D161,prezence!A:F,5,0),"") ->  | I161: =IFERROR(VLOOKUP($D161,prezence!A:F,6,0),"") -> 
A162: 157 | C162: -0.0119212963 | E162: =IFERROR(VLOOKUP($D162,prezence!A:F,2,0),"") ->  | F162: =IFERROR(VLOOKUP($D162,prezence!A:F,3,0),"") ->  | G162: =IFERROR(VLOOKUP($D162,prezence!A:F,4,0),"") ->  | H162: =IFERROR(VLOOKUP($D162,prezence!A:F,5,0),"") ->  | I162: =IFERROR(VLOOKUP($D162,prezence!A:F,6,0),"") -> 
A163: 158 | C163: -0.0119212963 | E163: =IFERROR(VLOOKUP($D163,prezence!A:F,2,0),"") ->  | F163: =IFERROR(VLOOKUP($D163,prezence!A:F,3,0),"") ->  | G163: =IFERROR(VLOOKUP($D163,prezence!A:F,4,0),"") ->  | H163: =IFERROR(VLOOKUP($D163,prezence!A:F,5,0),"") ->  | I163: =IFERROR(VLOOKUP($D163,prezence!A:F,6,0),"") -> 
A164: 159 | C164: -0.0119212963 | E164: =IFERROR(VLOOKUP($D164,prezence!A:F,2,0),"") ->  | F164: =IFERROR(VLOOKUP($D164,prezence!A:F,3,0),"") ->  | G164: =IFERROR(VLOOKUP($D164,prezence!A:F,4,0),"") ->  | H164: =IFERROR(VLOOKUP($D164,prezence!A:F,5,0),"") ->  | I164: =IFERROR(VLOOKUP($D164,prezence!A:F,6,0),"") -> 
A165: 160 | C165: -0.0119212963 | E165: =IFERROR(VLOOKUP($D165,prezence!A:F,2,0),"") ->  | F165: =IFERROR(VLOOKUP($D165,prezence!A:F,3,0),"") ->  | G165: =IFERROR(VLOOKUP($D165,prezence!A:F,4,0),"") ->  | H165: =IFERROR(VLOOKUP($D165,prezence!A:F,5,0),"") ->  | I165: =IFERROR(VLOOKUP($D165,prezence!A:F,6,0),"") -> 
A166: 161 | C166: -0.0119212963 | E166: =IFERROR(VLOOKUP($D166,prezence!A:F,2,0),"") ->  | F166: =IFERROR(VLOOKUP($D166,prezence!A:F,3,0),"") ->  | G166: =IFERROR(VLOOKUP($D166,prezence!A:F,4,0),"") ->  | H166: =IFERROR(VLOOKUP($D166,prezence!A:F,5,0),"") ->  | I166: =IFERROR(VLOOKUP($D166,prezence!A:F,6,0),"") -> 
A167: 162 | C167: -0.0119212963 | E167: =IFERROR(VLOOKUP($D167,prezence!A:F,2,0),"") ->  | F167: =IFERROR(VLOOKUP($D167,prezence!A:F,3,0),"") ->  | G167: =IFERROR(VLOOKUP($D167,prezence!A:F,4,0),"") ->  | H167: =IFERROR(VLOOKUP($D167,prezence!A:F,5,0),"") ->  | I167: =IFERROR(VLOOKUP($D167,prezence!A:F,6,0),"") -> 
A168: 163 | C168: -0.0119212963 | E168: =IFERROR(VLOOKUP($D168,prezence!A:F,2,0),"") ->  | F168: =IFERROR(VLOOKUP($D168,prezence!A:F,3,0),"") ->  | G168: =IFERROR(VLOOKUP($D168,prezence!A:F,4,0),"") ->  | H168: =IFERROR(VLOOKUP($D168,prezence!A:F,5,0),"") ->  | I168: =IFERROR(VLOOKUP($D168,prezence!A:F,6,0),"") -> 
A169: 164 | C169: -0.0119212963 | E169: =IFERROR(VLOOKUP($D169,prezence!A:F,2,0),"") ->  | F169: =IFERROR(VLOOKUP($D169,prezence!A:F,3,0),"") ->  | G169: =IFERROR(VLOOKUP($D169,prezence!A:F,4,0),"") ->  | H169: =IFERROR(VLOOKUP($D169,prezence!A:F,5,0),"") ->  | I169: =IFERROR(VLOOKUP($D169,prezence!A:F,6,0),"") -> 
A170: 165 | C170: -0.0119212963 | E170: =IFERROR(VLOOKUP($D170,prezence!A:F,2,0),"") ->  | F170: =IFERROR(VLOOKUP($D170,prezence!A:F,3,0),"") ->  | G170: =IFERROR(VLOOKUP($D170,prezence!A:F,4,0),"") ->  | H170: =IFERROR(VLOOKUP($D170,prezence!A:F,5,0),"") ->  | I170: =IFERROR(VLOOKUP($D170,prezence!A:F,6,0),"") -> 
A171: 166 | C171: -0.0119212963 | E171: =IFERROR(VLOOKUP($D171,prezence!A:F,2,0),"") ->  | F171: =IFERROR(VLOOKUP($D171,prezence!A:F,3,0),"") ->  | G171: =IFERROR(VLOOKUP($D171,prezence!A:F,4,0),"") ->  | H171: =IFERROR(VLOOKUP($D171,prezence!A:F,5,0),"") ->  | I171: =IFERROR(VLOOKUP($D171,prezence!A:F,6,0),"") -> 
A172: 167 | C172: -0.0119212963 | E172: =IFERROR(VLOOKUP($D172,prezence!A:F,2,0),"") ->  | F172: =IFERROR(VLOOKUP($D172,prezence!A:F,3,0),"") ->  | G172: =IFERROR(VLOOKUP($D172,prezence!A:F,4,0),"") ->  | H172: =IFERROR(VLOOKUP($D172,prezence!A:F,5,0),"") ->  | I172: =IFERROR(VLOOKUP($D172,prezence!A:F,6,0),"") -> 
A173: 168 | C173: -0.0119212963 | E173: =IFERROR(VLOOKUP($D173,prezence!A:F,2,0),"") ->  | F173: =IFERROR(VLOOKUP($D173,prezence!A:F,3,0),"") ->  | G173: =IFERROR(VLOOKUP($D173,prezence!A:F,4,0),"") ->  | H173: =IFERROR(VLOOKUP($D173,prezence!A:F,5,0),"") ->  | I173: =IFERROR(VLOOKUP($D173,prezence!A:F,6,0),"") -> 
A174: 169 | C174: -0.0119212963 | E174: =IFERROR(VLOOKUP($D174,prezence!A:F,2,0),"") ->  | F174: =IFERROR(VLOOKUP($D174,prezence!A:F,3,0),"") ->  | G174: =IFERROR(VLOOKUP($D174,prezence!A:F,4,0),"") ->  | H174: =IFERROR(VLOOKUP($D174,prezence!A:F,5,0),"") ->  | I174: =IFERROR(VLOOKUP($D174,prezence!A:F,6,0),"") -> 
A175: 170 | C175: -0.0119212963 | E175: =IFERROR(VLOOKUP($D175,prezence!A:F,2,0),"") ->  | F175: =IFERROR(VLOOKUP($D175,prezence!A:F,3,0),"") ->  | G175: =IFERROR(VLOOKUP($D175,prezence!A:F,4,0),"") ->  | H175: =IFERROR(VLOOKUP($D175,prezence!A:F,5,0),"") ->  | I175: =IFERROR(VLOOKUP($D175,prezence!A:F,6,0),"") -> 
A176: 171 | C176: -0.0119212963 | E176: =IFERROR(VLOOKUP($D176,prezence!A:F,2,0),"") ->  | F176: =IFERROR(VLOOKUP($D176,prezence!A:F,3,0),"") ->  | G176: =IFERROR(VLOOKUP($D176,prezence!A:F,4,0),"") ->  | H176: =IFERROR(VLOOKUP($D176,prezence!A:F,5,0),"") ->  | I176: =IFERROR(VLOOKUP($D176,prezence!A:F,6,0),"") -> 
A177: 172 | C177: -0.0119212963 | E177: =IFERROR(VLOOKUP($D177,prezence!A:F,2,0),"") ->  | F177: =IFERROR(VLOOKUP($D177,prezence!A:F,3,0),"") ->  | G177: =IFERROR(VLOOKUP($D177,prezence!A:F,4,0),"") ->  | H177: =IFERROR(VLOOKUP($D177,prezence!A:F,5,0),"") ->  | I177: =IFERROR(VLOOKUP($D177,prezence!A:F,6,0),"") -> 
A178: 173 | C178: -0.0119212963 | E178: =IFERROR(VLOOKUP($D178,prezence!A:F,2,0),"") ->  | F178: =IFERROR(VLOOKUP($D178,prezence!A:F,3,0),"") ->  | G178: =IFERROR(VLOOKUP($D178,prezence!A:F,4,0),"") ->  | H178: =IFERROR(VLOOKUP($D178,prezence!A:F,5,0),"") ->  | I178: =IFERROR(VLOOKUP($D178,prezence!A:F,6,0),"") -> 
A179: 174 | C179: -0.0119212963 | E179: =IFERROR(VLOOKUP($D179,prezence!A:F,2,0),"") ->  | F179: =IFERROR(VLOOKUP($D179,prezence!A:F,3,0),"") ->  | G179: =IFERROR(VLOOKUP($D179,prezence!A:F,4,0),"") ->  | H179: =IFERROR(VLOOKUP($D179,prezence!A:F,5,0),"") ->  | I179: =IFERROR(VLOOKUP($D179,prezence!A:F,6,0),"") -> 
A180: 175 | C180: -0.0119212963 | E180: =IFERROR(VLOOKUP($D180,prezence!A:F,2,0),"") ->  | F180: =IFERROR(VLOOKUP($D180,prezence!A:F,3,0),"") ->  | G180: =IFERROR(VLOOKUP($D180,prezence!A:F,4,0),"") ->  | H180: =IFERROR(VLOOKUP($D180,prezence!A:F,5,0),"") ->  | I180: =IFERROR(VLOOKUP($D180,prezence!A:F,6,0),"") -> 
A181: 176 | C181: -0.0119212963 | E181: =IFERROR(VLOOKUP($D181,prezence!A:F,2,0),"") ->  | F181: =IFERROR(VLOOKUP($D181,prezence!A:F,3,0),"") ->  | G181: =IFERROR(VLOOKUP($D181,prezence!A:F,4,0),"") ->  | H181: =IFERROR(VLOOKUP($D181,prezence!A:F,5,0),"") ->  | I181: =IFERROR(VLOOKUP($D181,prezence!A:F,6,0),"") -> 
A182: 177 | C182: -0.0119212963 | E182: =IFERROR(VLOOKUP($D182,prezence!A:F,2,0),"") ->  | F182: =IFERROR(VLOOKUP($D182,prezence!A:F,3,0),"") ->  | G182: =IFERROR(VLOOKUP($D182,prezence!A:F,4,0),"") ->  | H182: =IFERROR(VLOOKUP($D182,prezence!A:F,5,0),"") ->  | I182: =IFERROR(VLOOKUP($D182,prezence!A:F,6,0),"") -> 
A183: 178 | C183: -0.0119212963 | E183: =IFERROR(VLOOKUP($D183,prezence!A:F,2,0),"") ->  | F183: =IFERROR(VLOOKUP($D183,prezence!A:F,3,0),"") ->  | G183: =IFERROR(VLOOKUP($D183,prezence!A:F,4,0),"") ->  | H183: =IFERROR(VLOOKUP($D183,prezence!A:F,5,0),"") ->  | I183: =IFERROR(VLOOKUP($D183,prezence!A:F,6,0),"") -> 
A184: 179 | C184: -0.0119212963 | E184: =IFERROR(VLOOKUP($D184,prezence!A:F,2,0),"") ->  | F184: =IFERROR(VLOOKUP($D184,prezence!A:F,3,0),"") ->  | G184: =IFERROR(VLOOKUP($D184,prezence!A:F,4,0),"") ->  | H184: =IFERROR(VLOOKUP($D184,prezence!A:F,5,0),"") ->  | I184: =IFERROR(VLOOKUP($D184,prezence!A:F,6,0),"") -> 
A185: 180 | C185: -0.0119212963 | E185: =IFERROR(VLOOKUP($D185,prezence!A:F,2,0),"") ->  | F185: =IFERROR(VLOOKUP($D185,prezence!A:F,3,0),"") ->  | G185: =IFERROR(VLOOKUP($D185,prezence!A:F,4,0),"") ->  | H185: =IFERROR(VLOOKUP($D185,prezence!A:F,5,0),"") ->  | I185: =IFERROR(VLOOKUP($D185,prezence!A:F,6,0),"") -> 
A186: 181 | C186: -0.0119212963 | E186: =IFERROR(VLOOKUP($D186,prezence!A:F,2,0),"") ->  | F186: =IFERROR(VLOOKUP($D186,prezence!A:F,3,0),"") ->  | G186: =IFERROR(VLOOKUP($D186,prezence!A:F,4,0),"") ->  | H186: =IFERROR(VLOOKUP($D186,prezence!A:F,5,0),"") ->  | I186: =IFERROR(VLOOKUP($D186,prezence!A:F,6,0),"") -> 
A187: 182 | C187: -0.0119212963 | E187: =IFERROR(VLOOKUP($D187,prezence!A:F,2,0),"") ->  | F187: =IFERROR(VLOOKUP($D187,prezence!A:F,3,0),"") ->  | G187: =IFERROR(VLOOKUP($D187,prezence!A:F,4,0),"") ->  | H187: =IFERROR(VLOOKUP($D187,prezence!A:F,5,0),"") ->  | I187: =IFERROR(VLOOKUP($D187,prezence!A:F,6,0),"") -> 
A188: 183 | C188: -0.0119212963 | E188: =IFERROR(VLOOKUP($D188,prezence!A:F,2,0),"") ->  | F188: =IFERROR(VLOOKUP($D188,prezence!A:F,3,0),"") ->  | G188: =IFERROR(VLOOKUP($D188,prezence!A:F,4,0),"") ->  | H188: =IFERROR(VLOOKUP($D188,prezence!A:F,5,0),"") ->  | I188: =IFERROR(VLOOKUP($D188,prezence!A:F,6,0),"") -> 
A189: 184 | C189: -0.0119212963 | E189: =IFERROR(VLOOKUP($D189,prezence!A:F,2,0),"") ->  | F189: =IFERROR(VLOOKUP($D189,prezence!A:F,3,0),"") ->  | G189: =IFERROR(VLOOKUP($D189,prezence!A:F,4,0),"") ->  | H189: =IFERROR(VLOOKUP($D189,prezence!A:F,5,0),"") ->  | I189: =IFERROR(VLOOKUP($D189,prezence!A:F,6,0),"") -> 
A190: 185 | C190: -0.0119212963 | E190: =IFERROR(VLOOKUP($D190,prezence!A:F,2,0),"") ->  | F190: =IFERROR(VLOOKUP($D190,prezence!A:F,3,0),"") ->  | G190: =IFERROR(VLOOKUP($D190,prezence!A:F,4,0),"") ->  | H190: =IFERROR(VLOOKUP($D190,prezence!A:F,5,0),"") ->  | I190: =IFERROR(VLOOKUP($D190,prezence!A:F,6,0),"") -> 
A191: 186 | C191: -0.0119212963 | E191: =IFERROR(VLOOKUP($D191,prezence!A:F,2,0),"") ->  | F191: =IFERROR(VLOOKUP($D191,prezence!A:F,3,0),"") ->  | G191: =IFERROR(VLOOKUP($D191,prezence!A:F,4,0),"") ->  | H191: =IFERROR(VLOOKUP($D191,prezence!A:F,5,0),"") ->  | I191: =IFERROR(VLOOKUP($D191,prezence!A:F,6,0),"") -> 
A192: 187 | C192: -0.0119212963 | E192: =IFERROR(VLOOKUP($D192,prezence!A:F,2,0),"") ->  | F192: =IFERROR(VLOOKUP($D192,prezence!A:F,3,0),"") ->  | G192: =IFERROR(VLOOKUP($D192,prezence!A:F,4,0),"") ->  | H192: =IFERROR(VLOOKUP($D192,prezence!A:F,5,0),"") ->  | I192: =IFERROR(VLOOKUP($D192,prezence!A:F,6,0),"") -> 
A193: 188 | C193: -0.0119212963 | E193: =IFERROR(VLOOKUP($D193,prezence!A:F,2,0),"") ->  | F193: =IFERROR(VLOOKUP($D193,prezence!A:F,3,0),"") ->  | G193: =IFERROR(VLOOKUP($D193,prezence!A:F,4,0),"") ->  | H193: =IFERROR(VLOOKUP($D193,prezence!A:F,5,0),"") ->  | I193: =IFERROR(VLOOKUP($D193,prezence!A:F,6,0),"") -> 
A194: 189 | C194: -0.0119212963 | E194: =IFERROR(VLOOKUP($D194,prezence!A:F,2,0),"") ->  | F194: =IFERROR(VLOOKUP($D194,prezence!A:F,3,0),"") ->  | G194: =IFERROR(VLOOKUP($D194,prezence!A:F,4,0),"") ->  | H194: =IFERROR(VLOOKUP($D194,prezence!A:F,5,0),"") ->  | I194: =IFERROR(VLOOKUP($D194,prezence!A:F,6,0),"") -> 
A195: 190 | C195: -0.0119212963 | E195: =IFERROR(VLOOKUP($D195,prezence!A:F,2,0),"") ->  | F195: =IFERROR(VLOOKUP($D195,prezence!A:F,3,0),"") ->  | G195: =IFERROR(VLOOKUP($D195,prezence!A:F,4,0),"") ->  | H195: =IFERROR(VLOOKUP($D195,prezence!A:F,5,0),"") ->  | I195: =IFERROR(VLOOKUP($D195,prezence!A:F,6,0),"") -> 
A196: 191 | C196: -0.0119212963 | E196: =IFERROR(VLOOKUP($D196,prezence!A:F,2,0),"") ->  | F196: =IFERROR(VLOOKUP($D196,prezence!A:F,3,0),"") ->  | G196: =IFERROR(VLOOKUP($D196,prezence!A:F,4,0),"") ->  | H196: =IFERROR(VLOOKUP($D196,prezence!A:F,5,0),"") ->  | I196: =IFERROR(VLOOKUP($D196,prezence!A:F,6,0),"") -> 
A197: 192 | C197: -0.0119212963 | E197: =IFERROR(VLOOKUP($D197,prezence!A:F,2,0),"") ->  | F197: =IFERROR(VLOOKUP($D197,prezence!A:F,3,0),"") ->  | G197: =IFERROR(VLOOKUP($D197,prezence!A:F,4,0),"") ->  | H197: =IFERROR(VLOOKUP($D197,prezence!A:F,5,0),"") ->  | I197: =IFERROR(VLOOKUP($D197,prezence!A:F,6,0),"") -> 
A198: 193 | C198: =B198-$B$6 -> -0.0119212963 | E198: =IFERROR(VLOOKUP($D198,prezence!A:F,2,0),"") ->  | F198: =IFERROR(VLOOKUP($D198,prezence!A:F,3,0),"") ->  | G198: =IFERROR(VLOOKUP($D198,prezence!A:F,4,0),"") ->  | H198: =IFERROR(VLOOKUP($D198,prezence!A:F,5,0),"") ->  | I198: =IFERROR(VLOOKUP($D198,prezence!A:F,6,0),"") -> 
A199: 194 | C199: -0.0119212963 | E199: =IFERROR(VLOOKUP($D199,prezence!A:F,2,0),"") ->  | F199: =IFERROR(VLOOKUP($D199,prezence!A:F,3,0),"") ->  | G199: =IFERROR(VLOOKUP($D199,prezence!A:F,4,0),"") ->  | H199: =IFERROR(VLOOKUP($D199,prezence!A:F,5,0),"") ->  | I199: =IFERROR(VLOOKUP($D199,prezence!A:F,6,0),"") -> 
A200: 195 | C200: -0.0119212963 | E200: =IFERROR(VLOOKUP($D200,prezence!A:F,2,0),"") ->  | F200: =IFERROR(VLOOKUP($D200,prezence!A:F,3,0),"") ->  | G200: =IFERROR(VLOOKUP($D200,prezence!A:F,4,0),"") ->  | H200: =IFERROR(VLOOKUP($D200,prezence!A:F,5,0),"") ->  | I200: =IFERROR(VLOOKUP($D200,prezence!A:F,6,0),"") -> 
... 5 more rows

Sheet prezence
A1: st.č. | B1: Příjmení | C1: Jméno | D1: r.n. | E1: Klub | F1: Kategorie | H1: Startovní číslo | I1: Jméno | J1: Příjmení | K1: Pohlaví | L1: Přezdívka
A2: 1 | B2: Müller | C2: Josef | D2: 1974 | E2: PEPINO | I2: Samuel | J2: Pásztor | K2: muž | L2: 2014
A3: 2 | B3: Peštová | C3: Jana | D3: 1980 | E3: TÉRA | I3: Antonín | J3: Šedivý | K3: muž | L3: 2020
A4: 3 | B4: Rohlová | C4: Jitka | D4: 1981 | E4: Jitka | I4: Petr | J4: Kulíšek | K4: muž | L4: 2013
A5: 4 | B5: Sejvalová | C5: Petra | D5: 1978 | E5: Peťuška | I5: Jaroslav | J5: Sedláček | K5: muž | L5: 2021
A6: 5 | B6: Gavelčík | C6: Tomáš | D6: 1985 | E6: Tomáš | I6: Matyáš | J6: Trubač | K6: muž | L6: 2013
A7: 6 | B7: Riedl | C7: Lukas | D7: 1983 | E7: PEKY | I7: Tomáš | J7: Trubač | K7: muž | L7: 2011
A8: 7 | B8: Horská | C8: Kateřina | D8: 1991 | E8: Khaty | I8: Marek | J8: Vaja | K8: muž | L8: 2009
A9: 8 | B9: Deverová | C9: Lenka | D9: 1992 | E9: Deverka | I9: Vojtěch | J9: Odvárka | K9: muž | L9: 2014
A10: 9 | B10: Macháčková | C10: Michaela | D10: 1980 | E10: Michaela | I10: Tomáš | J10: Formánek | K10: muž | L10: 2014
A11: 10 | B11: Reiner | C11: Lukáš | D11: 1980 | E11: Lukáš | I11: Jan | J11: Formánek | K11: muž | L11: 2011
A12: 11 | B12: Rousova | C12: Julie | D12: 1999 | E12: Julie | I12: Anežka | J12: Formánková | K12: žena | L12: 2016
A13: 12 | B13: Rousova | C13: Lucie | D13: 2002 | E13: Lucie | I13: Jiřina | J13: Formánková | K13: žena | L13: 2013
A14: 13 | B14: Burianová | C14: Denisa | D14: 1993 | E14: Denda | I14: Ondřej | J14: Světlý | K14: muž | L14: 2020
A15: 14 | B15: Karasová | C15: Anna | D15: 1984 | E15: Anna | I15: Tina | J15: Riedlová | K15: žena | L15: 2014
A16: 15 | B16: Karas | C16: Václav | D16: 1980 | E16: Václav | I16: Daniel | J16: Křivan | K16: muž | L16: 2017
A17: 16 | B17: Sainerova | C17: Kamila | D17: 1986 | E17: Kamila | I17: Vojtěch | J17: Devera | K17: muž | L17: 2015
A18: 17 | B18: Sainer | C18: Jiri | D18: 1983 | E18: Sainy | I18: Martin | J18: Kunz | K18: muž | L18: 2008
A19: 18 | B19: Sejval | C19: Jan | D19: 1979 | E19: Jan | I19: Marek | J19: Kudry | K19: muž | L19: 2013
A20: 19 | B20: Sejvalová | C20: Veronika | D20: 1986 | E20: Veronika | I20: Nikol | J20: Kudryová | K20: žena | L20: 2012
A21: 20 | B21: Huja | C21: Vitezslav | D21: 1987 | E21: Vitezslav | I21: Filip | J21: Vejlupek | K21: muž | L21: 2017
A22: 21 | B22: Urbanová | C22: Jaroslava | D22: 1964 | E22: Jaroslava | I22: Jiri | J22: Sainer | K22: muž | L22: 2011
A23: 22 | B23: Vitovský | C23: Petr | D23: 1964 | E23: Cukrar | I23: Šimon | J23: Sainer | K23: muž | L23: 2016
A24: 23 | B24: Lukšík | C24: Václav | D24: 1977 | E24: Čáryfuk | I24: Valerie | J24: Sejvalová | K24: žena | L24: 2019
B25: Horna | C25: Tereza | D25: 1995 | E25: Tereza | I25: Michal | J25: Veihand | K25: muž | L25: 2013
A26: 25 | B26: Kusá | C26: Lenka | D26: 1973 | E26: kusička | I26: Jiří | J26: Zach | K26: muž | L26: 2009
A27: 26 | B27: Kusý | C27: Jan | D27: 1974 | E27: kusič | I27: Metoděj | J27: Rohla | K27: muž | L27: 2012
A28: 27 | B28: Gaube | C28: Jitka | D28: 1983 | E28: Jíťa
A29: 28 | B29: RŮŽIČKA | C29: PAVEL | D29: 1964 | E29: PAVEL
B30: Gabrielová | C30: Lucie | D30: 1977 | E30: Lucie
A31: 30 | B31: Charvátová | C31: Michaela | D31: 1991 | E31: Michaela
A32: 31 | B32: Klánová | C32: Michaela | D32: 1991 | E32: Michaela
A33: 32 | B33: Oulická | C33: Jana | D33: 1984 | E33: Jana
A34: 33 | B34: Petrmichl | C34: Vít | D34: 1987 | E34: Vít
A35: 34 | B35: Odvárka | C35: Lukáš | D35: 1985 | E35: Lukáš
A36: 35 | B36: Světlý | C36: Ondřej | D36: 1979 | E36: Ondřej
A37: 36 | B37: Pfeiferová | C37: Veronika | D37: 1992 | E37: Veronika
A38: 37 | B38: Kosina | C38: Jakub | D38: 1990 | E38: Jakub
A39: 38 | B39: Jirmus | C39: Michal | D39: 1992 | E39: Michal
A40: 39 | B40: Pásztor | C40: Michal | D40: 1981 | E40: Michal
A41: 40 | B41: Doležalová | C41: Michaela | D41: 1980 | E41: Michaela
A42: 41 | B42: Sedláčková | C42: Petra | D42: 1993 | E42: Petra
A43: 42 | B43: Vajová | C43: Klára | D43: 2003 | E43: Klára
A44: 43 | B44: Honka | C44: Adela | D44: 1994 | E44: Adela

Sheet počet kol
A1: St. č. | B1: Příjmení | C1: Jméno | D1: Nar. | E1: Klub | F1: Kategorie | G1: uběhnuto | H1: zbývá
A2: 1 | B2: =IFERROR(VLOOKUP($A2,prezence!A:F,2,0),"") -> Müller | C2: =IFERROR(VLOOKUP($A2,prezence!A:F,3,0),"") -> Josef | D2: =IFERROR(VLOOKUP($A2,prezence!A:F,4,0),"") -> 1974 | E2: =IFERROR(VLOOKUP($A2,prezence!A:F,5,0),"") -> PEPINO | F2: =IFERROR(VLOOKUP($A2,prezence!A:F,6,0),"") -> 0 | G2: =COUNTIF(výsledky!D6:D3000,A2) -> 1 | H2: =43-G2 -> 42
A3: 2 | B3: =IFERROR(VLOOKUP($A3,prezence!A:F,2,0),"") -> Peštová | C3: =IFERROR(VLOOKUP($A3,prezence!A:F,3,0),"") -> Jana | D3: =IFERROR(VLOOKUP($A3,prezence!A:F,4,0),"") -> 1980 | E3: =IFERROR(VLOOKUP($A3,prezence!A:F,5,0),"") -> TÉRA | F3: =IFERROR(VLOOKUP($A3,prezence!A:F,6,0),"") -> 0 | G3: =COUNTIF(výsledky!D7:D3001,A3) -> 1 | H3: =43-G3 -> 42
A4: 3 | B4: =IFERROR(VLOOKUP($A4,prezence!A:F,2,0),"") -> Rohlová | C4: =IFERROR(VLOOKUP($A4,prezence!A:F,3,0),"") -> Jitka | D4: =IFERROR(VLOOKUP($A4,prezence!A:F,4,0),"") -> 1981 | E4: =IFERROR(VLOOKUP($A4,prezence!A:F,5,0),"") -> Jitka | F4: =IFERROR(VLOOKUP($A4,prezence!A:F,6,0),"") -> 0 | G4: =COUNTIF(výsledky!D8:D3002,A4) -> 0 | H4: 43
A5: 4 | B5: =IFERROR(VLOOKUP($A5,prezence!A:F,2,0),"") -> Sejvalová | C5: =IFERROR(VLOOKUP($A5,prezence!A:F,3,0),"") -> Petra | D5: =IFERROR(VLOOKUP($A5,prezence!A:F,4,0),"") -> 1978 | E5: =IFERROR(VLOOKUP($A5,prezence!A:F,5,0),"") -> Peťuška | F5: =IFERROR(VLOOKUP($A5,prezence!A:F,6,0),"") -> 0 | G5: =COUNTIF(výsledky!D9:D3003,A5) -> 1 | H5: 42
A6: 5 | B6: =IFERROR(VLOOKUP($A6,prezence!A:F,2,0),"") -> Gavelčík | C6: =IFERROR(VLOOKUP($A6,prezence!A:F,3,0),"") -> Tomáš | D6: =IFERROR(VLOOKUP($A6,prezence!A:F,4,0),"") -> 1985 | E6: =IFERROR(VLOOKUP($A6,prezence!A:F,5,0),"") -> Tomáš | F6: =IFERROR(VLOOKUP($A6,prezence!A:F,6,0),"") -> 0 | G6: =COUNTIF(výsledky!D10:D3004,A6) -> 1 | H6: 42
A7: 6 | B7: =IFERROR(VLOOKUP($A7,prezence!A:F,2,0),"") -> Riedl | C7: =IFERROR(VLOOKUP($A7,prezence!A:F,3,0),"") -> Lukas | D7: =IFERROR(VLOOKUP($A7,prezence!A:F,4,0),"") -> 1983 | E7: =IFERROR(VLOOKUP($A7,prezence!A:F,5,0),"") -> PEKY | F7: =IFERROR(VLOOKUP($A7,prezence!A:F,6,0),"") -> 0 | G7: =COUNTIF(výsledky!D11:D3005,A7) -> 1 | H7: 42
A8: 7 | B8: =IFERROR(VLOOKUP($A8,prezence!A:F,2,0),"") -> Horská | C8: =IFERROR(VLOOKUP($A8,prezence!A:F,3,0),"") -> Kateřina | D8: =IFERROR(VLOOKUP($A8,prezence!A:F,4,0),"") -> 1991 | E8: =IFERROR(VLOOKUP($A8,prezence!A:F,5,0),"") -> Khaty | F8: =IFERROR(VLOOKUP($A8,prezence!A:F,6,0),"") -> 0 | G8: =COUNTIF(výsledky!D12:D3006,A8) -> 1 | H8: 42
G9: 1. okruh
G10: měří
G11: 981,29 m

Sheet LCD
A1: Poř. | B1: Čas | C1: Ztráta | D1: St. č. | E1: Příjmení | F1: Jméno | G1: Nar.
A2: 1 | B2: =výsledky!B6 -> 00:17:10 | C2: - | D2: =výsledky!D6 -> 20 | E2: =IFERROR(VLOOKUP($D2,prezence!A:F,2,0),"") -> Huja | F2: =IFERROR(VLOOKUP($D2,prezence!A:F,3,0),"") -> Vitezslav | G2: =IFERROR(VLOOKUP($D2,prezence!A:F,4,0),"") -> 1987
A3: 2 | B3: =výsledky!B7 -> 00:17:32 | C3: =výsledky!C7 -> 00:00:22 | D3: =výsledky!D7 -> 10 | E3: =IFERROR(VLOOKUP($D3,prezence!A:F,2,0),"") -> Reiner | F3: =IFERROR(VLOOKUP($D3,prezence!A:F,3,0),"") -> Lukáš | G3: =IFERROR(VLOOKUP($D3,prezence!A:F,4,0),"") -> 1980
A4: 3 | B4: =výsledky!B8 -> 00:17:41 | C4: =výsledky!C8 -> 00:00:31 | D4: =výsledky!D8 -> 14 | E4: =IFERROR(VLOOKUP($D4,prezence!A:F,2,0),"") -> Karasová | F4: =IFERROR(VLOOKUP($D4,prezence!A:F,3,0),"") -> Anna | G4: =IFERROR(VLOOKUP($D4,prezence!A:F,4,0),"") -> 1984
A5: 4 | B5: =výsledky!B9 -> 00:18:56 | C5: =výsledky!C9 -> 00:01:46 | D5: =výsledky!D9 -> 27 | E5: =IFERROR(VLOOKUP($D5,prezence!A:F,2,0),"") -> Gaube | F5: =IFERROR(VLOOKUP($D5,prezence!A:F,3,0),"") -> Jitka | G5: =IFERROR(VLOOKUP($D5,prezence!A:F,4,0),"") -> 1983
A6: 5 | B6: =výsledky!B10 -> 00:19:23 | C6: =výsledky!C10 -> 00:02:13 | D6: =výsledky!D10 -> 37 | E6: =IFERROR(VLOOKUP($D6,prezence!A:F,2,0),"") -> Kosina | F6: =IFERROR(VLOOKUP($D6,prezence!A:F,3,0),"") -> Jakub | G6: =IFERROR(VLOOKUP($D6,prezence!A:F,4,0),"") -> 1990
A7: 6 | B7: =výsledky!B11 -> 00:19:35 | C7: =výsledky!C11 -> 00:02:25 | D7: =výsledky!D11 -> 13 | E7: =IFERROR(VLOOKUP($D7,prezence!A:F,2,0),"") -> Burianová | F7: =IFERROR(VLOOKUP($D7,prezence!A:F,3,0),"") -> Denisa | G7: =IFERROR(VLOOKUP($D7,prezence!A:F,4,0),"") -> 1993
A8: 7 | B8: =výsledky!B12 -> 00:20:07 | C8: =výsledky!C12 -> 00:02:57 | D8: =výsledky!D12 -> 34 | E8: =IFERROR(VLOOKUP($D8,prezence!A:F,2,0),"") -> Odvárka | F8: =IFERROR(VLOOKUP($D8,prezence!A:F,3,0),"") -> Lukáš | G8: =IFERROR(VLOOKUP($D8,prezence!A:F,4,0),"") -> 1985
A9: 8 | B9: =výsledky!B13 -> 00:20:21 | C9: =výsledky!C13 -> 00:03:11 | D9: =výsledky!D13 -> 33 | E9: =IFERROR(VLOOKUP($D9,prezence!A:F,2,0),"") -> Petrmichl | F9: =IFERROR(VLOOKUP($D9,prezence!A:F,3,0),"") -> Vít | G9: =IFERROR(VLOOKUP($D9,prezence!A:F,4,0),"") -> 1987
A10: 9 | B10: =výsledky!B14 -> 00:20:24 | C10: =výsledky!C14 -> 00:03:14 | D10: =výsledky!D14 -> 39 | E10: =IFERROR(VLOOKUP($D10,prezence!A:F,2,0),"") -> Pásztor | F10: =IFERROR(VLOOKUP($D10,prezence!A:F,3,0),"") -> Michal | G10: =IFERROR(VLOOKUP($D10,prezence!A:F,4,0),"") -> 1981
A11: 10 | B11: =výsledky!B15 -> 00:20:26 | C11: =výsledky!C15 -> 00:03:16 | D11: =výsledky!D15 -> 15 | E11: =IFERROR(VLOOKUP($D11,prezence!A:F,2,0),"") -> Karas | F11: =IFERROR(VLOOKUP($D11,prezence!A:F,3,0),"") -> Václav | G11: =IFERROR(VLOOKUP($D11,prezence!A:F,4,0),"") -> 1980
A12: 11 | B12: =výsledky!B16 -> 00:20:59 | C12: =výsledky!C16 -> 00:03:49 | D12: =výsledky!D16 -> 17 | E12: =IFERROR(VLOOKUP($D12,prezence!A:F,2,0),"") -> Sainer | F12: =IFERROR(VLOOKUP($D12,prezence!A:F,3,0),"") -> Jiri | G12: =IFERROR(VLOOKUP($D12,prezence!A:F,4,0),"") -> 1983
A13: 12 | B13: =výsledky!B17 -> 00:21:11 | C13: =výsledky!C17 -> 00:04:01 | D13: =výsledky!D17 -> 6 | E13: =IFERROR(VLOOKUP($D13,prezence!A:F,2,0),"") -> Riedl | F13: =IFERROR(VLOOKUP($D13,prezence!A:F,3,0),"") -> Lukas | G13: =IFERROR(VLOOKUP($D13,prezence!A:F,4,0),"") -> 1983
A14: 13 | B14: =výsledky!B18 -> 00:21:27 | C14: =výsledky!C18 -> 00:04:17 | D14: =výsledky!D18 -> 26 | E14: =IFERROR(VLOOKUP($D14,prezence!A:F,2,0),"") -> Kusý | F14: =IFERROR(VLOOKUP($D14,prezence!A:F,3,0),"") -> Jan | G14: =IFERROR(VLOOKUP($D14,prezence!A:F,4,0),"") -> 1974
A15: 14 | B15: =výsledky!B19 -> 00:21:31 | C15: =výsledky!C19 -> 00:04:21 | D15: =výsledky!D19 -> 19 | E15: =IFERROR(VLOOKUP($D15,prezence!A:F,2,0),"") -> Sejvalová | F15: =IFERROR(VLOOKUP($D15,prezence!A:F,3,0),"") -> Veronika | G15: =IFERROR(VLOOKUP($D15,prezence!A:F,4,0),"") -> 1986
A16: 15 | B16: =výsledky!B20 -> 00:21:37 | C16: =výsledky!C20 -> 00:04:27 | D16: =výsledky!D20 -> 9 | E16: =IFERROR(VLOOKUP($D16,prezence!A:F,2,0),"") -> Macháčková | F16: =IFERROR(VLOOKUP($D16,prezence!A:F,3,0),"") -> Michaela | G16: =IFERROR(VLOOKUP($D16,prezence!A:F,4,0),"") -> 1980
A17: 16 | B17: =výsledky!B21 -> 00:21:54 | C17: =výsledky!C21 -> 00:04:44 | D17: =výsledky!D21 -> 1 | E17: =IFERROR(VLOOKUP($D17,prezence!A:F,2,0),"") -> Müller | F17: =IFERROR(VLOOKUP($D17,prezence!A:F,3,0),"") -> Josef | G17: =IFERROR(VLOOKUP($D17,prezence!A:F,4,0),"") -> 1974
A18: 17 | B18: =výsledky!B22 -> 00:22:36 | C18: =výsledky!C22 -> 00:05:26 | D18: =výsledky!D22 -> 7 | E18: =IFERROR(VLOOKUP($D18,prezence!A:F,2,0),"") -> Horská | F18: =IFERROR(VLOOKUP($D18,prezence!A:F,3,0),"") -> Kateřina | G18: =IFERROR(VLOOKUP($D18,prezence!A:F,4,0),"") -> 1991
A19: 18 | B19: =výsledky!B23 -> 00:23:00 | C19: =výsledky!C23 -> 00:05:50 | D19: =výsledky!D23 -> 8 | E19: =IFERROR(VLOOKUP($D19,prezence!A:F,2,0),"") -> Deverová | F19: =IFERROR(VLOOKUP($D19,prezence!A:F,3,0),"") -> Lenka | G19: =IFERROR(VLOOKUP($D19,prezence!A:F,4,0),"") -> 1992
A20: 19 | B20: =výsledky!B24 -> 00:23:12 | C20: =výsledky!C24 -> 00:06:02 | D20: =výsledky!D24 -> 31 | E20: =IFERROR(VLOOKUP($D20,prezence!A:F,2,0),"") -> Klánová | F20: =IFERROR(VLOOKUP($D20,prezence!A:F,3,0),"") -> Michaela | G20: =IFERROR(VLOOKUP($D20,prezence!A:F,4,0),"") -> 1991
A21: 20 | B21: =výsledky!B25 -> 00:23:12 | C21: =výsledky!C25 -> 00:06:02 | D21: =výsledky!D25 -> 35 | E21: =IFERROR(VLOOKUP($D21,prezence!A:F,2,0),"") -> Světlý | F21: =IFERROR(VLOOKUP($D21,prezence!A:F,3,0),"") -> Ondřej | G21: =IFERROR(VLOOKUP($D21,prezence!A:F,4,0),"") -> 1979
A22: 21 | B22: =výsledky!B26 -> 00:23:49 | C22: =výsledky!C26 -> 00:06:39 | D22: =výsledky!D26 -> 41 | E22: =IFERROR(VLOOKUP($D22,prezence!A:F,2,0),"") -> Sedláčková | F22: =IFERROR(VLOOKUP($D22,prezence!A:F,3,0),"") -> Petra | G22: =IFERROR(VLOOKUP($D22,prezence!A:F,4,0),"") -> 1993
A23: 22 | B23: =výsledky!B27 -> 00:23:49 | C23: =výsledky!C27 -> 00:06:39 | D23: =výsledky!D27 -> 43 | E23: =IFERROR(VLOOKUP($D23,prezence!A:F,2,0),"") -> Honka | F23: =IFERROR(VLOOKUP($D23,prezence!A:F,3,0),"") -> Adela | G23: =IFERROR(VLOOKUP($D23,prezence!A:F,4,0),"") -> 1994
A24: 23 | B24: =výsledky!B28 -> 00:24:06 | C24: =výsledky!C28 -> 00:06:56 | D24: =výsledky!D28 -> 30 | E24: =IFERROR(VLOOKUP($D24,prezence!A:F,2,0),"") -> Charvátová | F24: =IFERROR(VLOOKUP($D24,prezence!A:F,3,0),"") -> Michaela | G24: =IFERROR(VLOOKUP($D24,prezence!A:F,4,0),"") -> 1991
A25: 24 | B25: =výsledky!B29 -> 00:24:10 | C25: =výsledky!C29 -> 00:07:00 | D25: =výsledky!D29 -> 23 | E25: =IFERROR(VLOOKUP($D25,prezence!A:F,2,0),"") -> Lukšík | F25: =IFERROR(VLOOKUP($D25,prezence!A:F,3,0),"") -> Václav | G25: =IFERROR(VLOOKUP($D25,prezence!A:F,4,0),"") -> 1977
A26: 25 | B26: =výsledky!B30 -> 00:24:16 | C26: =výsledky!C30 -> 00:07:06 | D26: =výsledky!D30 -> 25 | E26: =IFERROR(VLOOKUP($D26,prezence!A:F,2,0),"") -> Kusá | F26: =IFERROR(VLOOKUP($D26,prezence!A:F,3,0),"") -> Lenka | G26: =IFERROR(VLOOKUP($D26,prezence!A:F,4,0),"") -> 1973
A27: 26 | B27: =výsledky!B31 -> 00:24:31 | C27: =výsledky!C31 -> 00:07:21 | D27: =výsledky!D31 -> 21 | E27: =IFERROR(VLOOKUP($D27,prezence!A:F,2,0),"") -> Urbanová | F27: =IFERROR(VLOOKUP($D27,prezence!A:F,3,0),"") -> Jaroslava | G27: =IFERROR(VLOOKUP($D27,prezence!A:F,4,0),"") -> 1964
A28: 27 | B28: =výsledky!B32 -> 00:24:31 | C28: =výsledky!C32 -> 00:07:21 | D28: =výsledky!D32 -> 22 | E28: =IFERROR(VLOOKUP($D28,prezence!A:F,2,0),"") -> Vitovský | F28: =IFERROR(VLOOKUP($D28,prezence!A:F,3,0),"") -> Petr | G28: =IFERROR(VLOOKUP($D28,prezence!A:F,4,0),"") -> 1964
A29: 28 | B29: =výsledky!B33 -> 00:25:19 | C29: =výsledky!C33 -> 00:08:09 | D29: =výsledky!D33 -> 38 | E29: =IFERROR(VLOOKUP($D29,prezence!A:F,2,0),"") -> Jirmus | F29: =IFERROR(VLOOKUP($D29,prezence!A:F,3,0),"") -> Michal | G29: =IFERROR(VLOOKUP($D29,prezence!A:F,4,0),"") -> 1992
A30: 29 | B30: =výsledky!B34 -> 00:25:23 | C30: =výsledky!C34 -> 00:08:13 | D30: =výsledky!D34 -> 28 | E30: =IFERROR(VLOOKUP($D30,prezence!A:F,2,0),"") -> RŮŽIČKA | F30: =IFERROR(VLOOKUP($D30,prezence!A:F,3,0),"") -> PAVEL | G30: =IFERROR(VLOOKUP($D30,prezence!A:F,4,0),"") -> 1964
A31: 30 | B31: =výsledky!B35 -> 00:25:28 | C31: =výsledky!C35 -> 00:08:18 | D31: =výsledky!D35 -> 5 | E31: =IFERROR(VLOOKUP($D31,prezence!A:F,2,0),"") -> Gavelčík | F31: =IFERROR(VLOOKUP($D31,prezence!A:F,3,0),"") -> Tomáš | G31: =IFERROR(VLOOKUP($D31,prezence!A:F,4,0),"") -> 1985
A32: 31 | B32: =výsledky!B36 -> 00:26:54 | C32: =výsledky!C36 -> 00:09:44 | D32: =výsledky!D36 -> 18 | E32: =IFERROR(VLOOKUP($D32,prezence!A:F,2,0),"") -> Sejval | F32: =IFERROR(VLOOKUP($D32,prezence!A:F,3,0),"") -> Jan | G32: =IFERROR(VLOOKUP($D32,prezence!A:F,4,0),"") -> 1979
A33: 32 | B33: =výsledky!B37 -> 00:26:55 | C33: =výsledky!C37 -> 00:09:45 | D33: =výsledky!D37 -> 40 | E33: =IFERROR(VLOOKUP($D33,prezence!A:F,2,0),"") -> Doležalová | F33: =IFERROR(VLOOKUP($D33,prezence!A:F,3,0),"") -> Michaela | G33: =IFERROR(VLOOKUP($D33,prezence!A:F,4,0),"") -> 1980
A34: 33 | B34: =výsledky!B38 -> 00:28:15 | C34: =výsledky!C38 -> 00:11:05 | D34: =výsledky!D38 -> 2 | E34: =IFERROR(VLOOKUP($D34,prezence!A:F,2,0),"") -> Peštová | F34: =IFERROR(VLOOKUP($D34,prezence!A:F,3,0),"") -> Jana | G34: =IFERROR(VLOOKUP($D34,prezence!A:F,4,0),"") -> 1980
A35: 34 | B35: =výsledky!B39 -> 00:28:30 | C35: =výsledky!C39 -> 00:11:20 | D35: =výsledky!D39 -> 12 | E35: =IFERROR(VLOOKUP($D35,prezence!A:F,2,0),"") -> Rousova | F35: =IFERROR(VLOOKUP($D35,prezence!A:F,3,0),"") -> Lucie | G35: =IFERROR(VLOOKUP($D35,prezence!A:F,4,0),"") -> 2002
A36: 35 | B36: =výsledky!B40 -> 00:28:30 | C36: =výsledky!C40 -> 00:11:20 | D36: =výsledky!D40 -> 11 | E36: =IFERROR(VLOOKUP($D36,prezence!A:F,2,0),"") -> Rousova | F36: =IFERROR(VLOOKUP($D36,prezence!A:F,3,0),"") -> Julie | G36: =IFERROR(VLOOKUP($D36,prezence!A:F,4,0),"") -> 1999
A37: 36 | B37: =výsledky!B41 -> 00:29:59 | C37: =výsledky!C41 -> 00:12:49 | D37: =výsledky!D41 -> 36 | E37: =IFERROR(VLOOKUP($D37,prezence!A:F,2,0),"") -> Pfeiferová | F37: =IFERROR(VLOOKUP($D37,prezence!A:F,3,0),"") -> Veronika | G37: =IFERROR(VLOOKUP($D37,prezence!A:F,4,0),"") -> 1992
A38: 37 | B38: =výsledky!B42 -> 00:31:46 | C38: =výsledky!C42 -> 00:14:36 | D38: =výsledky!D42 -> 4 | E38: =IFERROR(VLOOKUP($D38,prezence!A:F,2,0),"") -> Sejvalová | F38: =IFERROR(VLOOKUP($D38,prezence!A:F,3,0),"") -> Petra | G38: =IFERROR(VLOOKUP($D38,prezence!A:F,4,0),"") -> 1978
A39: 38 | B39: =výsledky!B43 -> 00:34:55 | C39: =výsledky!C43 -> 00:17:45 | D39: 42 | E39: =IFERROR(VLOOKUP($D39,prezence!A:F,2,0),"") -> Vajová | F39: =IFERROR(VLOOKUP($D39,prezence!A:F,3,0),"") -> Klára | G39: =IFERROR(VLOOKUP($D39,prezence!A:F,4,0),"") -> 2003
A40: 39 | B40: =výsledky!B44 -> 00:00:00 | C40: =výsledky!C44 -> -0.0119212963 | D40: =výsledky!D44 -> 0 | E40: =IFERROR(VLOOKUP($D40,prezence!A:F,2,0),"") ->  | F40: =IFERROR(VLOOKUP($D40,prezence!A:F,3,0),"") ->  | G40: =IFERROR(VLOOKUP($D40,prezence!A:F,4,0),"") -> 
A41: 40 | B41: =výsledky!B45 -> 00:00:00 | C41: =výsledky!C45 -> -0.0119212963 | D41: =výsledky!D45 -> 0 | E41: =IFERROR(VLOOKUP($D41,prezence!A:F,2,0),"") ->  | F41: =IFERROR(VLOOKUP($D41,prezence!A:F,3,0),"") ->  | G41: =IFERROR(VLOOKUP($D41,prezence!A:F,4,0),"") -> 
A42: 41 | B42: =výsledky!B46 -> 00:00:00 | C42: =výsledky!C46 -> -0.0119212963 | D42: =výsledky!D46 -> 0 | E42: =IFERROR(VLOOKUP($D42,prezence!A:F,2,0),"") ->  | F42: =IFERROR(VLOOKUP($D42,prezence!A:F,3,0),"") ->  | G42: =IFERROR(VLOOKUP($D42,prezence!A:F,4,0),"") -> 
A43: 42 | B43: =výsledky!B47 -> 00:00:00 | C43: =výsledky!C47 -> -0.0119212963 | D43: =výsledky!D47 -> 0 | E43: =IFERROR(VLOOKUP($D43,prezence!A:F,2,0),"") ->  | F43: =IFERROR(VLOOKUP($D43,prezence!A:F,3,0),"") ->  | G43: =IFERROR(VLOOKUP($D43,prezence!A:F,4,0),"") -> 
A44: 43 | B44: =výsledky!B48 -> 00:00:00 | C44: =výsledky!C48 -> -0.0119212963 | D44: =výsledky!D48 -> 0 | E44: =IFERROR(VLOOKUP($D44,prezence!A:F,2,0),"") ->  | F44: =IFERROR(VLOOKUP($D44,prezence!A:F,3,0),"") ->  | G44: =IFERROR(VLOOKUP($D44,prezence!A:F,4,0),"") -> 
A45: 44 | B45: =výsledky!B49 -> 00:00:00 | C45: =výsledky!C49 -> -0.0119212963 | D45: =výsledky!D49 -> 0 | E45: =IFERROR(VLOOKUP($D45,prezence!A:F,2,0),"") ->  | F45: =IFERROR(VLOOKUP($D45,prezence!A:F,3,0),"") ->  | G45: =IFERROR(VLOOKUP($D45,prezence!A:F,4,0),"") -> 
A46: 45 | B46: =výsledky!B50 -> 00:00:00 | C46: =výsledky!C50 -> -0.0119212963 | D46: =výsledky!D50 -> 0 | E46: =IFERROR(VLOOKUP($D46,prezence!A:F,2,0),"") ->  | F46: =IFERROR(VLOOKUP($D46,prezence!A:F,3,0),"") ->  | G46: =IFERROR(VLOOKUP($D46,prezence!A:F,4,0),"") -> 
A47: 46 | B47: =výsledky!B51 -> 00:00:00 | C47: =výsledky!C51 -> -0.0119212963 | D47: =výsledky!D51 -> 0 | E47: =IFERROR(VLOOKUP($D47,prezence!A:F,2,0),"") ->  | F47: =IFERROR(VLOOKUP($D47,prezence!A:F,3,0),"") ->  | G47: =IFERROR(VLOOKUP($D47,prezence!A:F,4,0),"") -> 
A48: 47 | B48: =výsledky!B52 -> 00:00:00 | C48: =výsledky!C52 -> -0.0119212963 | D48: =výsledky!D52 -> 0 | E48: =IFERROR(VLOOKUP($D48,prezence!A:F,2,0),"") ->  | F48: =IFERROR(VLOOKUP($D48,prezence!A:F,3,0),"") ->  | G48: =IFERROR(VLOOKUP($D48,prezence!A:F,4,0),"") -> 
A49: 48 | B49: =výsledky!B53 -> 00:00:00 | C49: =výsledky!C53 -> -0.0119212963 | D49: =výsledky!D53 -> 0 | E49: =IFERROR(VLOOKUP($D49,prezence!A:F,2,0),"") ->  | F49: =IFERROR(VLOOKUP($D49,prezence!A:F,3,0),"") ->  | G49: =IFERROR(VLOOKUP($D49,prezence!A:F,4,0),"") -> 
A50: 49 | B50: =výsledky!B54 -> 00:00:00 | C50: =výsledky!C54 -> -0.0119212963 | D50: =výsledky!D54 -> 0 | E50: =IFERROR(VLOOKUP($D50,prezence!A:F,2,0),"") ->  | F50: =IFERROR(VLOOKUP($D50,prezence!A:F,3,0),"") ->  | G50: =IFERROR(VLOOKUP($D50,prezence!A:F,4,0),"") -> 
A51: 50 | B51: =výsledky!B55 -> 00:00:00 | C51: =výsledky!C55 -> -0.0119212963 | D51: =výsledky!D55 -> 0 | E51: =IFERROR(VLOOKUP($D51,prezence!A:F,2,0),"") ->  | F51: =IFERROR(VLOOKUP($D51,prezence!A:F,3,0),"") ->  | G51: =IFERROR(VLOOKUP($D51,prezence!A:F,4,0),"") -> 
A52: 51 | B52: =výsledky!B56 -> 00:00:00 | C52: =výsledky!C56 -> -0.0119212963 | D52: =výsledky!D56 -> 0 | E52: =IFERROR(VLOOKUP($D52,prezence!A:F,2,0),"") ->  | F52: =IFERROR(VLOOKUP($D52,prezence!A:F,3,0),"") ->  | G52: =IFERROR(VLOOKUP($D52,prezence!A:F,4,0),"") -> 
A53: 52 | B53: =výsledky!B57 -> 00:00:00 | C53: =výsledky!C57 -> -0.0119212963 | D53: =výsledky!D57 -> 0 | E53: =IFERROR(VLOOKUP($D53,prezence!A:F,2,0),"") ->  | F53: =IFERROR(VLOOKUP($D53,prezence!A:F,3,0),"") ->  | G53: =IFERROR(VLOOKUP($D53,prezence!A:F,4,0),"") -> 
A54: 53 | B54: =výsledky!B58 -> 00:00:00 | C54: =výsledky!C58 -> -0.0119212963 | D54: =výsledky!D58 -> 0 | E54: =IFERROR(VLOOKUP($D54,prezence!A:F,2,0),"") ->  | F54: =IFERROR(VLOOKUP($D54,prezence!A:F,3,0),"") ->  | G54: =IFERROR(VLOOKUP($D54,prezence!A:F,4,0),"") -> 
A55: 54 | B55: =výsledky!B59 -> 00:00:00 | C55: =výsledky!C59 -> -0.0119212963 | D55: =výsledky!D59 -> 0 | E55: =IFERROR(VLOOKUP($D55,prezence!A:F,2,0),"") ->  | F55: =IFERROR(VLOOKUP($D55,prezence!A:F,3,0),"") ->  | G55: =IFERROR(VLOOKUP($D55,prezence!A:F,4,0),"") -> 
A56: 55 | B56: =výsledky!B60 -> 00:00:00 | C56: =výsledky!C60 -> -0.0119212963 | D56: =výsledky!D60 -> 0 | E56: =IFERROR(VLOOKUP($D56,prezence!A:F,2,0),"") ->  | F56: =IFERROR(VLOOKUP($D56,prezence!A:F,3,0),"") ->  | G56: =IFERROR(VLOOKUP($D56,prezence!A:F,4,0),"") -> 
A57: 56 | B57: =výsledky!B61 -> 00:00:00 | C57: =výsledky!C61 -> -0.0119212963 | D57: =výsledky!D61 -> 0 | E57: =IFERROR(VLOOKUP($D57,prezence!A:F,2,0),"") ->  | F57: =IFERROR(VLOOKUP($D57,prezence!A:F,3,0),"") ->  | G57: =IFERROR(VLOOKUP($D57,prezence!A:F,4,0),"") -> 
A58: 57 | B58: =výsledky!B62 -> 00:00:00 | C58: =výsledky!C62 -> -0.0119212963 | D58: =výsledky!D62 -> 0 | E58: =IFERROR(VLOOKUP($D58,prezence!A:F,2,0),"") ->  | F58: =IFERROR(VLOOKUP($D58,prezence!A:F,3,0),"") ->  | G58: =IFERROR(VLOOKUP($D58,prezence!A:F,4,0),"") -> 
A59: 58 | B59: =výsledky!B63 -> 00:00:00 | C59: =výsledky!C63 -> -0.0119212963 | D59: =výsledky!D63 -> 0 | E59: =IFERROR(VLOOKUP($D59,prezence!A:F,2,0),"") ->  | F59: =IFERROR(VLOOKUP($D59,prezence!A:F,3,0),"") ->  | G59: =IFERROR(VLOOKUP($D59,prezence!A:F,4,0),"") -> 
A60: 59 | B60: =výsledky!B64 -> 00:00:00 | C60: =výsledky!C64 -> -0.0119212963 | D60: =výsledky!D64 -> 0 | E60: =IFERROR(VLOOKUP($D60,prezence!A:F,2,0),"") ->  | F60: =IFERROR(VLOOKUP($D60,prezence!A:F,3,0),"") ->  | G60: =IFERROR(VLOOKUP($D60,prezence!A:F,4,0),"") -> 
A61: 60 | B61: =výsledky!B65 -> 00:00:00 | C61: =výsledky!C65 -> -0.0119212963 | D61: =výsledky!D65 -> 0 | E61: =IFERROR(VLOOKUP($D61,prezence!A:F,2,0),"") ->  | F61: =IFERROR(VLOOKUP($D61,prezence!A:F,3,0),"") ->  | G61: =IFERROR(VLOOKUP($D61,prezence!A:F,4,0),"") -> 
A62: 61 | B62: =výsledky!B66 -> 00:00:00 | C62: =výsledky!C66 -> -0.0119212963 | D62: =výsledky!D66 -> 0 | E62: =IFERROR(VLOOKUP($D62,prezence!A:F,2,0),"") ->  | F62: =IFERROR(VLOOKUP($D62,prezence!A:F,3,0),"") ->  | G62: =IFERROR(VLOOKUP($D62,prezence!A:F,4,0),"") -> 
A63: 62 | B63: =výsledky!B67 -> 00:00:00 | C63: =výsledky!C67 -> -0.0119212963 | D63: =výsledky!D67 -> 0 | E63: =IFERROR(VLOOKUP($D63,prezence!A:F,2,0),"") ->  | F63: =IFERROR(VLOOKUP($D63,prezence!A:F,3,0),"") ->  | G63: =IFERROR(VLOOKUP($D63,prezence!A:F,4,0),"") -> 
A64: 63 | B64: =výsledky!B68 -> 00:00:00 | C64: =výsledky!C68 -> -0.0119212963 | D64: =výsledky!D68 -> 0 | E64: =IFERROR(VLOOKUP($D64,prezence!A:F,2,0),"") ->  | F64: =IFERROR(VLOOKUP($D64,prezence!A:F,3,0),"") ->  | G64: =IFERROR(VLOOKUP($D64,prezence!A:F,4,0),"") -> 
A65: 64 | B65: =výsledky!B69 -> 00:00:00 | C65: =výsledky!C69 -> -0.0119212963 | D65: =výsledky!D69 -> 0 | E65: =IFERROR(VLOOKUP($D65,prezence!A:F,2,0),"") ->  | F65: =IFERROR(VLOOKUP($D65,prezence!A:F,3,0),"") ->  | G65: =IFERROR(VLOOKUP($D65,prezence!A:F,4,0),"") -> 
A66: 65 | B66: =výsledky!B70 -> 00:00:00 | C66: =výsledky!C70 -> -0.0119212963 | D66: =výsledky!D70 -> 0 | E66: =IFERROR(VLOOKUP($D66,prezence!A:F,2,0),"") ->  | F66: =IFERROR(VLOOKUP($D66,prezence!A:F,3,0),"") ->  | G66: =IFERROR(VLOOKUP($D66,prezence!A:F,4,0),"") -> 
A67: 66 | B67: =výsledky!B71 -> 00:00:00 | C67: =výsledky!C71 -> -0.0119212963 | D67: =výsledky!D71 -> 0 | E67: =IFERROR(VLOOKUP($D67,prezence!A:F,2,0),"") ->  | F67: =IFERROR(VLOOKUP($D67,prezence!A:F,3,0),"") ->  | G67: =IFERROR(VLOOKUP($D67,prezence!A:F,4,0),"") -> 
A68: 67 | B68: =výsledky!B72 -> 00:00:00 | C68: =výsledky!C72 -> -0.0119212963 | D68: =výsledky!D72 -> 0 | E68: =IFERROR(VLOOKUP($D68,prezence!A:F,2,0),"") ->  | F68: =IFERROR(VLOOKUP($D68,prezence!A:F,3,0),"") ->  | G68: =IFERROR(VLOOKUP($D68,prezence!A:F,4,0),"") -> 
A69: 68 | B69: =výsledky!B73 -> 00:00:00 | C69: =výsledky!C73 -> -0.0119212963 | D69: =výsledky!D73 -> 0 | E69: =IFERROR(VLOOKUP($D69,prezence!A:F,2,0),"") ->  | F69: =IFERROR(VLOOKUP($D69,prezence!A:F,3,0),"") ->  | G69: =IFERROR(VLOOKUP($D69,prezence!A:F,4,0),"") -> 
A70: 69 | B70: =výsledky!B74 -> 00:00:00 | C70: =výsledky!C74 -> -0.0119212963 | D70: =výsledky!D74 -> 0 | E70: =IFERROR(VLOOKUP($D70,prezence!A:F,2,0),"") ->  | F70: =IFERROR(VLOOKUP($D70,prezence!A:F,3,0),"") ->  | G70: =IFERROR(VLOOKUP($D70,prezence!A:F,4,0),"") -> 
A71: 70 | B71: =výsledky!B75 -> 00:00:00 | C71: =výsledky!C75 -> -0.0119212963 | D71: =výsledky!D75 -> 0 | E71: =IFERROR(VLOOKUP($D71,prezence!A:F,2,0),"") ->  | F71: =IFERROR(VLOOKUP($D71,prezence!A:F,3,0),"") ->  | G71: =IFERROR(VLOOKUP($D71,prezence!A:F,4,0),"") -> 
A72: 71 | B72: =výsledky!B76 -> 00:00:00 | C72: =výsledky!C76 -> -0.0119212963 | D72: =výsledky!D76 -> 0 | E72: =IFERROR(VLOOKUP($D72,prezence!A:F,2,0),"") ->  | F72: =IFERROR(VLOOKUP($D72,prezence!A:F,3,0),"") ->  | G72: =IFERROR(VLOOKUP($D72,prezence!A:F,4,0),"") -> 
A73: 72 | B73: =výsledky!B77 -> 00:00:00 | C73: =výsledky!C77 -> -0.0119212963 | D73: =výsledky!D77 -> 0 | E73: =IFERROR(VLOOKUP($D73,prezence!A:F,2,0),"") ->  | F73: =IFERROR(VLOOKUP($D73,prezence!A:F,3,0),"") ->  | G73: =IFERROR(VLOOKUP($D73,prezence!A:F,4,0),"") -> 
A74: 73 | B74: =výsledky!B78 -> 00:00:00 | C74: =výsledky!C78 -> -0.0119212963 | D74: =výsledky!D78 -> 0 | E74: =IFERROR(VLOOKUP($D74,prezence!A:F,2,0),"") ->  | F74: =IFERROR(VLOOKUP($D74,prezence!A:F,3,0),"") ->  | G74: =IFERROR(VLOOKUP($D74,prezence!A:F,4,0),"") -> 
A75: 74 | B75: =výsledky!B79 -> 00:00:00 | C75: =výsledky!C79 -> -0.0119212963 | D75: =výsledky!D79 -> 0 | E75: =IFERROR(VLOOKUP($D75,prezence!A:F,2,0),"") ->  | F75: =IFERROR(VLOOKUP($D75,prezence!A:F,3,0),"") ->  | G75: =IFERROR(VLOOKUP($D75,prezence!A:F,4,0),"") -> 
A76: 75 | B76: =výsledky!B80 -> 00:00:00 | C76: =výsledky!C80 -> -0.0119212963 | D76: =výsledky!D80 -> 0 | E76: =IFERROR(VLOOKUP($D76,prezence!A:F,2,0),"") ->  | F76: =IFERROR(VLOOKUP($D76,prezence!A:F,3,0),"") ->  | G76: =IFERROR(VLOOKUP($D76,prezence!A:F,4,0),"") -> 
A77: 76 | B77: =výsledky!B81 -> 00:00:00 | C77: =výsledky!C81 -> -0.0119212963 | D77: =výsledky!D81 -> 0 | E77: =IFERROR(VLOOKUP($D77,prezence!A:F,2,0),"") ->  | F77: =IFERROR(VLOOKUP($D77,prezence!A:F,3,0),"") ->  | G77: =IFERROR(VLOOKUP($D77,prezence!A:F,4,0),"") -> 
A78: 77 | B78: =výsledky!B82 -> 00:00:00 | C78: =výsledky!C82 -> -0.0119212963 | D78: =výsledky!D82 -> 0 | E78: =IFERROR(VLOOKUP($D78,prezence!A:F,2,0),"") ->  | F78: =IFERROR(VLOOKUP($D78,prezence!A:F,3,0),"") ->  | G78: =IFERROR(VLOOKUP($D78,prezence!A:F,4,0),"") -> 
A79: 78 | B79: =výsledky!B83 -> 00:00:00 | C79: =výsledky!C83 -> -0.0119212963 | D79: =výsledky!D83 -> 0 | E79: =IFERROR(VLOOKUP($D79,prezence!A:F,2,0),"") ->  | F79: =IFERROR(VLOOKUP($D79,prezence!A:F,3,0),"") ->  | G79: =IFERROR(VLOOKUP($D79,prezence!A:F,4,0),"") -> 
A80: 79 | B80: =výsledky!B84 -> 00:00:00 | C80: =výsledky!C84 -> -0.0119212963 | D80: =výsledky!D84 -> 0 | E80: =IFERROR(VLOOKUP($D80,prezence!A:F,2,0),"") ->  | F80: =IFERROR(VLOOKUP($D80,prezence!A:F,3,0),"") ->  | G80: =IFERROR(VLOOKUP($D80,prezence!A:F,4,0),"") -> 
A81: 80 | B81: =výsledky!B85 -> 00:00:00 | C81: =výsledky!C85 -> -0.0119212963 | D81: =výsledky!D85 -> 0 | E81: =IFERROR(VLOOKUP($D81,prezence!A:F,2,0),"") ->  | F81: =IFERROR(VLOOKUP($D81,prezence!A:F,3,0),"") ->  | G81: =IFERROR(VLOOKUP($D81,prezence!A:F,4,0),"") -> 
A82: 81 | B82: =výsledky!B86 -> 00:00:00 | C82: =výsledky!C86 -> -0.0119212963 | D82: =výsledky!D86 -> 0 | E82: =IFERROR(VLOOKUP($D82,prezence!A:F,2,0),"") ->  | F82: =IFERROR(VLOOKUP($D82,prezence!A:F,3,0),"") ->  | G82: =IFERROR(VLOOKUP($D82,prezence!A:F,4,0),"") -> 
A83: 82 | B83: =výsledky!B87 -> 00:00:00 | C83: =výsledky!C87 -> -0.0119212963 | D83: =výsledky!D87 -> 0 | E83: =IFERROR(VLOOKUP($D83,prezence!A:F,2,0),"") ->  | F83: =IFERROR(VLOOKUP($D83,prezence!A:F,3,0),"") ->  | G83: =IFERROR(VLOOKUP($D83,prezence!A:F,4,0),"") -> 
A84: 83 | B84: =výsledky!B88 -> 00:00:00 | C84: =výsledky!C88 -> -0.0119212963 | D84: =výsledky!D88 -> 0 | E84: =IFERROR(VLOOKUP($D84,prezence!A:F,2,0),"") ->  | F84: =IFERROR(VLOOKUP($D84,prezence!A:F,3,0),"") ->  | G84: =IFERROR(VLOOKUP($D84,prezence!A:F,4,0),"") -> 
A85: 84 | B85: =výsledky!B89 -> 00:00:00 | C85: =výsledky!C89 -> -0.0119212963 | D85: =výsledky!D89 -> 0 | E85: =IFERROR(VLOOKUP($D85,prezence!A:F,2,0),"") ->  | F85: =IFERROR(VLOOKUP($D85,prezence!A:F,3,0),"") ->  | G85: =IFERROR(VLOOKUP($D85,prezence!A:F,4,0),"") -> 
A86: 85 | B86: =výsledky!B90 -> 00:00:00 | C86: =výsledky!C90 -> -0.0119212963 | D86: =výsledky!D90 -> 0 | E86: =IFERROR(VLOOKUP($D86,prezence!A:F,2,0),"") ->  | F86: =IFERROR(VLOOKUP($D86,prezence!A:F,3,0),"") ->  | G86: =IFERROR(VLOOKUP($D86,prezence!A:F,4,0),"") -> 
A87: 86 | B87: =výsledky!B91 -> 00:00:00 | C87: =výsledky!C91 -> -0.0119212963 | D87: =výsledky!D91 -> 0 | E87: =IFERROR(VLOOKUP($D87,prezence!A:F,2,0),"") ->  | F87: =IFERROR(VLOOKUP($D87,prezence!A:F,3,0),"") ->  | G87: =IFERROR(VLOOKUP($D87,prezence!A:F,4,0),"") -> 
A88: 87 | B88: =výsledky!B92 -> 00:00:00 | C88: =výsledky!C92 -> -0.0119212963 | D88: =výsledky!D92 -> 0 | E88: =IFERROR(VLOOKUP($D88,prezence!A:F,2,0),"") ->  | F88: =IFERROR(VLOOKUP($D88,prezence!A:F,3,0),"") ->  | G88: =IFERROR(VLOOKUP($D88,prezence!A:F,4,0),"") -> 
A89: 88 | B89: =výsledky!B93 -> 00:00:00 | C89: =výsledky!C93 -> -0.0119212963 | D89: =výsledky!D93 -> 0 | E89: =IFERROR(VLOOKUP($D89,prezence!A:F,2,0),"") ->  | F89: =IFERROR(VLOOKUP($D89,prezence!A:F,3,0),"") ->  | G89: =IFERROR(VLOOKUP($D89,prezence!A:F,4,0),"") -> 
A90: 89 | B90: =výsledky!B94 -> 00:00:00 | C90: =výsledky!C94 -> -0.0119212963 | D90: =výsledky!D94 -> 0 | E90: =IFERROR(VLOOKUP($D90,prezence!A:F,2,0),"") ->  | F90: =IFERROR(VLOOKUP($D90,prezence!A:F,3,0),"") ->  | G90: =IFERROR(VLOOKUP($D90,prezence!A:F,4,0),"") -> 
A91: 90 | B91: =výsledky!B95 -> 00:00:00 | C91: =výsledky!C95 -> -0.0119212963 | D91: =výsledky!D95 -> 0 | E91: =IFERROR(VLOOKUP($D91,prezence!A:F,2,0),"") ->  | F91: =IFERROR(VLOOKUP($D91,prezence!A:F,3,0),"") ->  | G91: =IFERROR(VLOOKUP($D91,prezence!A:F,4,0),"") -> 
A92: 91 | B92: =výsledky!B96 -> 00:00:00 | C92: =výsledky!C96 -> -0.0119212963 | D92: =výsledky!D96 -> 0 | E92: =IFERROR(VLOOKUP($D92,prezence!A:F,2,0),"") ->  | F92: =IFERROR(VLOOKUP($D92,prezence!A:F,3,0),"") ->  | G92: =IFERROR(VLOOKUP($D92,prezence!A:F,4,0),"") -> 
A93: 92 | B93: =výsledky!B97 -> 00:00:00 | C93: =výsledky!C97 -> -0.0119212963 | D93: =výsledky!D97 -> 0 | E93: =IFERROR(VLOOKUP($D93,prezence!A:F,2,0),"") ->  | F93: =IFERROR(VLOOKUP($D93,prezence!A:F,3,0),"") ->  | G93: =IFERROR(VLOOKUP($D93,prezence!A:F,4,0),"") -> 
A94: 93 | B94: =výsledky!B98 -> 00:00:00 | C94: =výsledky!C98 -> -0.0119212963 | D94: =výsledky!D98 -> 0 | E94: =IFERROR(VLOOKUP($D94,prezence!A:F,2,0),"") ->  | F94: =IFERROR(VLOOKUP($D94,prezence!A:F,3,0),"") ->  | G94: =IFERROR(VLOOKUP($D94,prezence!A:F,4,0),"") -> 
A95: 94 | B95: =výsledky!B99 -> 00:00:00 | C95: =výsledky!C99 -> -0.0119212963 | D95: =výsledky!D99 -> 0 | E95: =IFERROR(VLOOKUP($D95,prezence!A:F,2,0),"") ->  | F95: =IFERROR(VLOOKUP($D95,prezence!A:F,3,0),"") ->  | G95: =IFERROR(VLOOKUP($D95,prezence!A:F,4,0),"") -> 
A96: 95 | B96: =výsledky!B100 -> 00:00:00 | C96: =výsledky!C100 -> -0.0119212963 | D96: =výsledky!D100 -> 0 | E96: =IFERROR(VLOOKUP($D96,prezence!A:F,2,0),"") ->  | F96: =IFERROR(VLOOKUP($D96,prezence!A:F,3,0),"") ->  | G96: =IFERROR(VLOOKUP($D96,prezence!A:F,4,0),"") -> 
A97: 96 | B97: =výsledky!B101 -> 00:00:00 | C97: =výsledky!C101 -> -0.0119212963 | D97: =výsledky!D101 -> 0 | E97: =IFERROR(VLOOKUP($D97,prezence!A:F,2,0),"") ->  | F97: =IFERROR(VLOOKUP($D97,prezence!A:F,3,0),"") ->  | G97: =IFERROR(VLOOKUP($D97,prezence!A:F,4,0),"") -> 
A98: 97 | B98: =výsledky!B102 -> 00:00:00 | C98: =výsledky!C102 -> -0.0119212963 | D98: =výsledky!D102 -> 0 | E98: =IFERROR(VLOOKUP($D98,prezence!A:F,2,0),"") ->  | F98: =IFERROR(VLOOKUP($D98,prezence!A:F,3,0),"") ->  | G98: =IFERROR(VLOOKUP($D98,prezence!A:F,4,0),"") -> 
A99: 98 | B99: =výsledky!B103 -> 00:00:00 | C99: =výsledky!C103 -> -0.0119212963 | D99: =výsledky!D103 -> 0 | E99: =IFERROR(VLOOKUP($D99,prezence!A:F,2,0),"") ->  | F99: =IFERROR(VLOOKUP($D99,prezence!A:F,3,0),"") ->  | G99: =IFERROR(VLOOKUP($D99,prezence!A:F,4,0),"") -> 
A100: 99 | B100: =výsledky!B104 -> 00:00:00 | C100: =výsledky!C104 -> -0.0119212963 | D100: =výsledky!D104 -> 0 | E100: =IFERROR(VLOOKUP($D100,prezence!A:F,2,0),"") ->  | F100: =IFERROR(VLOOKUP($D100,prezence!A:F,3,0),"") ->  | G100: =IFERROR(VLOOKUP($D100,prezence!A:F,4,0),"") -> 
A101: 100 | B101: =výsledky!B105 -> 00:00:00 | C101: =výsledky!C105 -> -0.0119212963 | D101: =výsledky!D105 -> 0 | E101: =IFERROR(VLOOKUP($D101,prezence!A:F,2,0),"") ->  | F101: =IFERROR(VLOOKUP($D101,prezence!A:F,3,0),"") ->  | G101: =IFERROR(VLOOKUP($D101,prezence!A:F,4,0),"") -> 
A102: 101 | B102: =výsledky!B106 -> 00:00:00 | C102: =výsledky!C106 -> -0.0119212963 | D102: =výsledky!D106 -> 0 | E102: =IFERROR(VLOOKUP($D102,prezence!A:F,2,0),"") ->  | F102: =IFERROR(VLOOKUP($D102,prezence!A:F,3,0),"") ->  | G102: =IFERROR(VLOOKUP($D102,prezence!A:F,4,0),"") -> 
A103: 102 | B103: =výsledky!B107 -> 00:00:00 | C103: =výsledky!C107 -> -0.0119212963 | D103: =výsledky!D107 -> 0 | E103: =IFERROR(VLOOKUP($D103,prezence!A:F,2,0),"") ->  | F103: =IFERROR(VLOOKUP($D103,prezence!A:F,3,0),"") ->  | G103: =IFERROR(VLOOKUP($D103,prezence!A:F,4,0),"") -> 
A104: 103 | B104: =výsledky!B108 -> 00:00:00 | C104: =výsledky!C108 -> -0.0119212963 | D104: =výsledky!D108 -> 0 | E104: =IFERROR(VLOOKUP($D104,prezence!A:F,2,0),"") ->  | F104: =IFERROR(VLOOKUP($D104,prezence!A:F,3,0),"") ->  | G104: =IFERROR(VLOOKUP($D104,prezence!A:F,4,0),"") -> 
A105: 104 | B105: =výsledky!B109 -> 00:00:00 | C105: =výsledky!C109 -> -0.0119212963 | D105: =výsledky!D109 -> 0 | E105: =IFERROR(VLOOKUP($D105,prezence!A:F,2,0),"") ->  | F105: =IFERROR(VLOOKUP($D105,prezence!A:F,3,0),"") ->  | G105: =IFERROR(VLOOKUP($D105,prezence!A:F,4,0),"") -> 
A106: 105 | B106: =výsledky!B110 -> 00:00:00 | C106: =výsledky!C110 -> -0.0119212963 | D106: =výsledky!D110 -> 0 | E106: =IFERROR(VLOOKUP($D106,prezence!A:F,2,0),"") ->  | F106: =IFERROR(VLOOKUP($D106,prezence!A:F,3,0),"") ->  | G106: =IFERROR(VLOOKUP($D106,prezence!A:F,4,0),"") -> 
A107: 106 | B107: =výsledky!B111 -> 00:00:00 | C107: =výsledky!C111 -> -0.0119212963 | D107: =výsledky!D111 -> 0 | E107: =IFERROR(VLOOKUP($D107,prezence!A:F,2,0),"") ->  | F107: =IFERROR(VLOOKUP($D107,prezence!A:F,3,0),"") ->  | G107: =IFERROR(VLOOKUP($D107,prezence!A:F,4,0),"") -> 
A108: 107 | B108: =výsledky!B112 -> 00:00:00 | C108: =výsledky!C112 -> -0.0119212963 | D108: =výsledky!D112 -> 0 | E108: =IFERROR(VLOOKUP($D108,prezence!A:F,2,0),"") ->  | F108: =IFERROR(VLOOKUP($D108,prezence!A:F,3,0),"") ->  | G108: =IFERROR(VLOOKUP($D108,prezence!A:F,4,0),"") -> 
A109: 108 | B109: =výsledky!B113 -> 00:00:00 | C109: =výsledky!C113 -> -0.0119212963 | D109: =výsledky!D113 -> 0 | E109: =IFERROR(VLOOKUP($D109,prezence!A:F,2,0),"") ->  | F109: =IFERROR(VLOOKUP($D109,prezence!A:F,3,0),"") ->  | G109: =IFERROR(VLOOKUP($D109,prezence!A:F,4,0),"") -> 
A110: 109 | B110: =výsledky!B114 -> 00:00:00 | C110: =výsledky!C114 -> -0.0119212963 | D110: =výsledky!D114 -> 0 | E110: =IFERROR(VLOOKUP($D110,prezence!A:F,2,0),"") ->  | F110: =IFERROR(VLOOKUP($D110,prezence!A:F,3,0),"") ->  | G110: =IFERROR(VLOOKUP($D110,prezence!A:F,4,0),"") -> 
A111: 110 | B111: =výsledky!B115 -> 00:00:00 | C111: =výsledky!C115 -> -0.0119212963 | D111: =výsledky!D115 -> 0 | E111: =IFERROR(VLOOKUP($D111,prezence!A:F,2,0),"") ->  | F111: =IFERROR(VLOOKUP($D111,prezence!A:F,3,0),"") ->  | G111: =IFERROR(VLOOKUP($D111,prezence!A:F,4,0),"") -> 
A112: 111 | B112: =výsledky!B116 -> 00:00:00 | C112: =výsledky!C116 -> -0.0119212963 | D112: =výsledky!D116 -> 0 | E112: =IFERROR(VLOOKUP($D112,prezence!A:F,2,0),"") ->  | F112: =IFERROR(VLOOKUP($D112,prezence!A:F,3,0),"") ->  | G112: =IFERROR(VLOOKUP($D112,prezence!A:F,4,0),"") -> 
A113: 112 | B113: =výsledky!B117 -> 00:00:00 | C113: =výsledky!C117 -> -0.0119212963 | D113: =výsledky!D117 -> 0 | E113: =IFERROR(VLOOKUP($D113,prezence!A:F,2,0),"") ->  | F113: =IFERROR(VLOOKUP($D113,prezence!A:F,3,0),"") ->  | G113: =IFERROR(VLOOKUP($D113,prezence!A:F,4,0),"") -> 
A114: 113 | B114: =výsledky!B118 -> 00:00:00 | C114: =výsledky!C118 -> -0.0119212963 | D114: =výsledky!D118 -> 0 | E114: =IFERROR(VLOOKUP($D114,prezence!A:F,2,0),"") ->  | F114: =IFERROR(VLOOKUP($D114,prezence!A:F,3,0),"") ->  | G114: =IFERROR(VLOOKUP($D114,prezence!A:F,4,0),"") -> 
A115: 114 | B115: =výsledky!B119 -> 00:00:00 | C115: =výsledky!C119 -> -0.0119212963 | D115: =výsledky!D119 -> 0 | E115: =IFERROR(VLOOKUP($D115,prezence!A:F,2,0),"") ->  | F115: =IFERROR(VLOOKUP($D115,prezence!A:F,3,0),"") ->  | G115: =IFERROR(VLOOKUP($D115,prezence!A:F,4,0),"") -> 
A116: 115 | B116: =výsledky!B120 -> 00:00:00 | C116: =výsledky!C120 -> -0.0119212963 | D116: =výsledky!D120 -> 0 | E116: =IFERROR(VLOOKUP($D116,prezence!A:F,2,0),"") ->  | F116: =IFERROR(VLOOKUP($D116,prezence!A:F,3,0),"") ->  | G116: =IFERROR(VLOOKUP($D116,prezence!A:F,4,0),"") -> 
A117: 116 | B117: =výsledky!B121 -> 00:00:00 | C117: =výsledky!C121 -> -0.0119212963 | D117: =výsledky!D121 -> 0 | E117: =IFERROR(VLOOKUP($D117,prezence!A:F,2,0),"") ->  | F117: =IFERROR(VLOOKUP($D117,prezence!A:F,3,0),"") ->  | G117: =IFERROR(VLOOKUP($D117,prezence!A:F,4,0),"") -> 
A118: 117 | B118: =výsledky!B122 -> 00:00:00 | C118: =výsledky!C122 -> -0.0119212963 | D118: =výsledky!D122 -> 0 | E118: =IFERROR(VLOOKUP($D118,prezence!A:F,2,0),"") ->  | F118: =IFERROR(VLOOKUP($D118,prezence!A:F,3,0),"") ->  | G118: =IFERROR(VLOOKUP($D118,prezence!A:F,4,0),"") -> 
A119: 118 | B119: =výsledky!B123 -> 00:00:00 | C119: =výsledky!C123 -> -0.0119212963 | D119: =výsledky!D123 -> 0 | E119: =IFERROR(VLOOKUP($D119,prezence!A:F,2,0),"") ->  | F119: =IFERROR(VLOOKUP($D119,prezence!A:F,3,0),"") ->  | G119: =IFERROR(VLOOKUP($D119,prezence!A:F,4,0),"") -> 
A120: 119 | B120: =výsledky!B124 -> 00:00:00 | C120: =výsledky!C124 -> -0.0119212963 | D120: =výsledky!D124 -> 0 | E120: =IFERROR(VLOOKUP($D120,prezence!A:F,2,0),"") ->  | F120: =IFERROR(VLOOKUP($D120,prezence!A:F,3,0),"") ->  | G120: =IFERROR(VLOOKUP($D120,prezence!A:F,4,0),"") -> 
A121: 120 | B121: =výsledky!B125 -> 00:00:00 | C121: =výsledky!C125 -> -0.0119212963 | D121: =výsledky!D125 -> 0 | E121: =IFERROR(VLOOKUP($D121,prezence!A:F,2,0),"") ->  | F121: =IFERROR(VLOOKUP($D121,prezence!A:F,3,0),"") ->  | G121: =IFERROR(VLOOKUP($D121,prezence!A:F,4,0),"") -> 
A122: 121 | B122: =výsledky!B126 -> 00:00:00 | C122: =výsledky!C126 -> -0.0119212963 | D122: =výsledky!D126 -> 0 | E122: =IFERROR(VLOOKUP($D122,prezence!A:F,2,0),"") ->  | F122: =IFERROR(VLOOKUP($D122,prezence!A:F,3,0),"") ->  | G122: =IFERROR(VLOOKUP($D122,prezence!A:F,4,0),"") -> 
A123: 122 | B123: =výsledky!B127 -> 00:00:00 | C123: =výsledky!C127 -> -0.0119212963 | D123: =výsledky!D127 -> 0 | E123: =IFERROR(VLOOKUP($D123,prezence!A:F,2,0),"") ->  | F123: =IFERROR(VLOOKUP($D123,prezence!A:F,3,0),"") ->  | G123: =IFERROR(VLOOKUP($D123,prezence!A:F,4,0),"") -> 
A124: 123 | B124: =výsledky!B128 -> 00:00:00 | C124: =výsledky!C128 -> -0.0119212963 | D124: =výsledky!D128 -> 0 | E124: =IFERROR(VLOOKUP($D124,prezence!A:F,2,0),"") ->  | F124: =IFERROR(VLOOKUP($D124,prezence!A:F,3,0),"") ->  | G124: =IFERROR(VLOOKUP($D124,prezence!A:F,4,0),"") -> 
A125: 124 | B125: =výsledky!B129 -> 00:00:00 | C125: =výsledky!C129 -> -0.0119212963 | D125: =výsledky!D129 -> 0 | E125: =IFERROR(VLOOKUP($D125,prezence!A:F,2,0),"") ->  | F125: =IFERROR(VLOOKUP($D125,prezence!A:F,3,0),"") ->  | G125: =IFERROR(VLOOKUP($D125,prezence!A:F,4,0),"") -> 
A126: 125 | B126: =výsledky!B130 -> 00:00:00 | C126: =výsledky!C130 -> -0.0119212963 | D126: =výsledky!D130 -> 0 | E126: =IFERROR(VLOOKUP($D126,prezence!A:F,2,0),"") ->  | F126: =IFERROR(VLOOKUP($D126,prezence!A:F,3,0),"") ->  | G126: =IFERROR(VLOOKUP($D126,prezence!A:F,4,0),"") -> 
A127: 126 | B127: =výsledky!B131 -> 00:00:00 | C127: =výsledky!C131 -> -0.0119212963 | D127: =výsledky!D131 -> 0 | E127: =IFERROR(VLOOKUP($D127,prezence!A:F,2,0),"") ->  | F127: =IFERROR(VLOOKUP($D127,prezence!A:F,3,0),"") ->  | G127: =IFERROR(VLOOKUP($D127,prezence!A:F,4,0),"") -> 
A128: 127 | B128: =výsledky!B132 -> 00:00:00 | C128: =výsledky!C132 -> -0.0119212963 | D128: =výsledky!D132 -> 0 | E128: =IFERROR(VLOOKUP($D128,prezence!A:F,2,0),"") ->  | F128: =IFERROR(VLOOKUP($D128,prezence!A:F,3,0),"") ->  | G128: =IFERROR(VLOOKUP($D128,prezence!A:F,4,0),"") -> 
A129: 128 | B129: =výsledky!B133 -> 00:00:00 | C129: =výsledky!C133 -> -0.0119212963 | D129: =výsledky!D133 -> 0 | E129: =IFERROR(VLOOKUP($D129,prezence!A:F,2,0),"") ->  | F129: =IFERROR(VLOOKUP($D129,prezence!A:F,3,0),"") ->  | G129: =IFERROR(VLOOKUP($D129,prezence!A:F,4,0),"") -> 
A130: 129 | B130: =výsledky!B134 -> 00:00:00 | C130: =výsledky!C134 -> -0.0119212963 | D130: =výsledky!D134 -> 0 | E130: =IFERROR(VLOOKUP($D130,prezence!A:F,2,0),"") ->  | F130: =IFERROR(VLOOKUP($D130,prezence!A:F,3,0),"") ->  | G130: =IFERROR(VLOOKUP($D130,prezence!A:F,4,0),"") -> 
A131: 130 | B131: =výsledky!B135 -> 00:00:00 | C131: =výsledky!C135 -> -0.0119212963 | D131: =výsledky!D135 -> 0 | E131: =IFERROR(VLOOKUP($D131,prezence!A:F,2,0),"") ->  | F131: =IFERROR(VLOOKUP($D131,prezence!A:F,3,0),"") ->  | G131: =IFERROR(VLOOKUP($D131,prezence!A:F,4,0),"") -> 
A132: 131 | B132: =výsledky!B136 -> 00:00:00 | C132: =výsledky!C136 -> -0.0119212963 | D132: =výsledky!D136 -> 0 | E132: =IFERROR(VLOOKUP($D132,prezence!A:F,2,0),"") ->  | F132: =IFERROR(VLOOKUP($D132,prezence!A:F,3,0),"") ->  | G132: =IFERROR(VLOOKUP($D132,prezence!A:F,4,0),"") -> 
A133: 132 | B133: =výsledky!B137 -> 00:00:00 | C133: =výsledky!C137 -> -0.0119212963 | D133: =výsledky!D137 -> 0 | E133: =IFERROR(VLOOKUP($D133,prezence!A:F,2,0),"") ->  | F133: =IFERROR(VLOOKUP($D133,prezence!A:F,3,0),"") ->  | G133: =IFERROR(VLOOKUP($D133,prezence!A:F,4,0),"") -> 
A134: 133 | B134: =výsledky!B138 -> 00:00:00 | C134: =výsledky!C138 -> -0.0119212963 | D134: =výsledky!D138 -> 0 | E134: =IFERROR(VLOOKUP($D134,prezence!A:F,2,0),"") ->  | F134: =IFERROR(VLOOKUP($D134,prezence!A:F,3,0),"") ->  | G134: =IFERROR(VLOOKUP($D134,prezence!A:F,4,0),"") -> 
A135: 134 | B135: =výsledky!B139 -> 00:00:00 | C135: =výsledky!C139 -> -0.0119212963 | D135: =výsledky!D139 -> 0 | E135: =IFERROR(VLOOKUP($D135,prezence!A:F,2,0),"") ->  | F135: =IFERROR(VLOOKUP($D135,prezence!A:F,3,0),"") ->  | G135: =IFERROR(VLOOKUP($D135,prezence!A:F,4,0),"") -> 
A136: 135 | B136: =výsledky!B140 -> 00:00:00 | C136: =výsledky!C140 -> -0.0119212963 | D136: =výsledky!D140 -> 0 | E136: =IFERROR(VLOOKUP($D136,prezence!A:F,2,0),"") ->  | F136: =IFERROR(VLOOKUP($D136,prezence!A:F,3,0),"") ->  | G136: =IFERROR(VLOOKUP($D136,prezence!A:F,4,0),"") -> 
A137: 136 | B137: =výsledky!B141 -> 00:00:00 | C137: =výsledky!C141 -> -0.0119212963 | D137: =výsledky!D141 -> 0 | E137: =IFERROR(VLOOKUP($D137,prezence!A:F,2,0),"") ->  | F137: =IFERROR(VLOOKUP($D137,prezence!A:F,3,0),"") ->  | G137: =IFERROR(VLOOKUP($D137,prezence!A:F,4,0),"") -> 
A138: 137 | B138: =výsledky!B142 -> 00:00:00 | C138: =výsledky!C142 -> -0.0119212963 | D138: =výsledky!D142 -> 0 | E138: =IFERROR(VLOOKUP($D138,prezence!A:F,2,0),"") ->  | F138: =IFERROR(VLOOKUP($D138,prezence!A:F,3,0),"") ->  | G138: =IFERROR(VLOOKUP($D138,prezence!A:F,4,0),"") -> 
A139: 138 | B139: =výsledky!B143 -> 00:00:00 | C139: =výsledky!C143 -> -0.0119212963 | D139: =výsledky!D143 -> 0 | E139: =IFERROR(VLOOKUP($D139,prezence!A:F,2,0),"") ->  | F139: =IFERROR(VLOOKUP($D139,prezence!A:F,3,0),"") ->  | G139: =IFERROR(VLOOKUP($D139,prezence!A:F,4,0),"") -> 
A140: 139 | B140: =výsledky!B144 -> 00:00:00 | C140: =výsledky!C144 -> -0.0119212963 | D140: =výsledky!D144 -> 0 | E140: =IFERROR(VLOOKUP($D140,prezence!A:F,2,0),"") ->  | F140: =IFERROR(VLOOKUP($D140,prezence!A:F,3,0),"") ->  | G140: =IFERROR(VLOOKUP($D140,prezence!A:F,4,0),"") -> 
A141: 140 | B141: =výsledky!B145 -> 00:00:00 | C141: =výsledky!C145 -> -0.0119212963 | D141: =výsledky!D145 -> 0 | E141: =IFERROR(VLOOKUP($D141,prezence!A:F,2,0),"") ->  | F141: =IFERROR(VLOOKUP($D141,prezence!A:F,3,0),"") ->  | G141: =IFERROR(VLOOKUP($D141,prezence!A:F,4,0),"") -> 
A142: 141 | B142: =výsledky!B146 -> 00:00:00 | C142: =výsledky!C146 -> -0.0119212963 | D142: =výsledky!D146 -> 0 | E142: =IFERROR(VLOOKUP($D142,prezence!A:F,2,0),"") ->  | F142: =IFERROR(VLOOKUP($D142,prezence!A:F,3,0),"") ->  | G142: =IFERROR(VLOOKUP($D142,prezence!A:F,4,0),"") -> 
A143: 142 | B143: =výsledky!B147 -> 00:00:00 | C143: =výsledky!C147 -> -0.0119212963 | D143: =výsledky!D147 -> 0 | E143: =IFERROR(VLOOKUP($D143,prezence!A:F,2,0),"") ->  | F143: =IFERROR(VLOOKUP($D143,prezence!A:F,3,0),"") ->  | G143: =IFERROR(VLOOKUP($D143,prezence!A:F,4,0),"") -> 
A144: 143 | B144: =výsledky!B148 -> 00:00:00 | C144: =výsledky!C148 -> -0.0119212963 | D144: =výsledky!D148 -> 0 | E144: =IFERROR(VLOOKUP($D144,prezence!A:F,2,0),"") ->  | F144: =IFERROR(VLOOKUP($D144,prezence!A:F,3,0),"") ->  | G144: =IFERROR(VLOOKUP($D144,prezence!A:F,4,0),"") -> 
A145: 144 | B145: =výsledky!B149 -> 00:00:00 | C145: =výsledky!C149 -> -0.0119212963 | D145: =výsledky!D149 -> 0 | E145: =IFERROR(VLOOKUP($D145,prezence!A:F,2,0),"") ->  | F145: =IFERROR(VLOOKUP($D145,prezence!A:F,3,0),"") ->  | G145: =IFERROR(VLOOKUP($D145,prezence!A:F,4,0),"") -> 
A146: 145 | B146: =výsledky!B150 -> 00:00:00 | C146: =výsledky!C150 -> -0.0119212963 | D146: =výsledky!D150 -> 0 | E146: =IFERROR(VLOOKUP($D146,prezence!A:F,2,0),"") ->  | F146: =IFERROR(VLOOKUP($D146,prezence!A:F,3,0),"") ->  | G146: =IFERROR(VLOOKUP($D146,prezence!A:F,4,0),"") -> 
A147: 146 | B147: =výsledky!B151 -> 00:00:00 | C147: =výsledky!C151 -> -0.0119212963 | D147: =výsledky!D151 -> 0 | E147: =IFERROR(VLOOKUP($D147,prezence!A:F,2,0),"") ->  | F147: =IFERROR(VLOOKUP($D147,prezence!A:F,3,0),"") ->  | G147: =IFERROR(VLOOKUP($D147,prezence!A:F,4,0),"") -> 
A148: 147 | B148: =výsledky!B152 -> 00:00:00 | C148: =výsledky!C152 -> -0.0119212963 | D148: =výsledky!D152 -> 0 | E148: =IFERROR(VLOOKUP($D148,prezence!A:F,2,0),"") ->  | F148: =IFERROR(VLOOKUP($D148,prezence!A:F,3,0),"") ->  | G148: =IFERROR(VLOOKUP($D148,prezence!A:F,4,0),"") -> 
A149: 148 | B149: =výsledky!B153 -> 00:00:00 | C149: =výsledky!C153 -> -0.0119212963 | D149: =výsledky!D153 -> 0 | E149: =IFERROR(VLOOKUP($D149,prezence!A:F,2,0),"") ->  | F149: =IFERROR(VLOOKUP($D149,prezence!A:F,3,0),"") ->  | G149: =IFERROR(VLOOKUP($D149,prezence!A:F,4,0),"") -> 
A150: 149 | B150: =výsledky!B154 -> 00:00:00 | C150: =výsledky!C154 -> -0.0119212963 | D150: =výsledky!D154 -> 0 | E150: =IFERROR(VLOOKUP($D150,prezence!A:F,2,0),"") ->  | F150: =IFERROR(VLOOKUP($D150,prezence!A:F,3,0),"") ->  | G150: =IFERROR(VLOOKUP($D150,prezence!A:F,4,0),"") -> 
A151: 150 | B151: =výsledky!B155 -> 00:00:00 | C151: =výsledky!C155 -> -0.0119212963 | D151: =výsledky!D155 -> 0 | E151: =IFERROR(VLOOKUP($D151,prezence!A:F,2,0),"") ->  | F151: =IFERROR(VLOOKUP($D151,prezence!A:F,3,0),"") ->  | G151: =IFERROR(VLOOKUP($D151,prezence!A:F,4,0),"") -> 
A152: 151 | B152: =výsledky!B156 -> 00:00:00 | C152: =výsledky!C156 -> -0.0119212963 | D152: =výsledky!D156 -> 0 | E152: =IFERROR(VLOOKUP($D152,prezence!A:F,2,0),"") ->  | F152: =IFERROR(VLOOKUP($D152,prezence!A:F,3,0),"") ->  | G152: =IFERROR(VLOOKUP($D152,prezence!A:F,4,0),"") -> 
A153: 152 | B153: =výsledky!B157 -> 00:00:00 | C153: =výsledky!C157 -> -0.0119212963 | D153: =výsledky!D157 -> 0 | E153: =IFERROR(VLOOKUP($D153,prezence!A:F,2,0),"") ->  | F153: =IFERROR(VLOOKUP($D153,prezence!A:F,3,0),"") ->  | G153: =IFERROR(VLOOKUP($D153,prezence!A:F,4,0),"") -> 
A154: 153 | B154: =výsledky!B158 -> 00:00:00 | C154: =výsledky!C158 -> -0.0119212963 | D154: =výsledky!D158 -> 0 | E154: =IFERROR(VLOOKUP($D154,prezence!A:F,2,0),"") ->  | F154: =IFERROR(VLOOKUP($D154,prezence!A:F,3,0),"") ->  | G154: =IFERROR(VLOOKUP($D154,prezence!A:F,4,0),"") -> 
A155: 154 | B155: =výsledky!B159 -> 00:00:00 | C155: =výsledky!C159 -> -0.0119212963 | D155: =výsledky!D159 -> 0 | E155: =IFERROR(VLOOKUP($D155,prezence!A:F,2,0),"") ->  | F155: =IFERROR(VLOOKUP($D155,prezence!A:F,3,0),"") ->  | G155: =IFERROR(VLOOKUP($D155,prezence!A:F,4,0),"") -> 
A156: 155 | B156: =výsledky!B160 -> 00:00:00 | C156: =výsledky!C160 -> -0.0119212963 | D156: =výsledky!D160 -> 0 | E156: =IFERROR(VLOOKUP($D156,prezence!A:F,2,0),"") ->  | F156: =IFERROR(VLOOKUP($D156,prezence!A:F,3,0),"") ->  | G156: =IFERROR(VLOOKUP($D156,prezence!A:F,4,0),"") -> 
A157: 156 | B157: =výsledky!B161 -> 00:00:00 | C157: =výsledky!C161 -> -0.0119212963 | D157: =výsledky!D161 -> 0 | E157: =IFERROR(VLOOKUP($D157,prezence!A:F,2,0),"") ->  | F157: =IFERROR(VLOOKUP($D157,prezence!A:F,3,0),"") ->  | G157: =IFERROR(VLOOKUP($D157,prezence!A:F,4,0),"") -> 
A158: 157 | B158: =výsledky!B162 -> 00:00:00 | C158: =výsledky!C162 -> -0.0119212963 | D158: =výsledky!D162 -> 0 | E158: =IFERROR(VLOOKUP($D158,prezence!A:F,2,0),"") ->  | F158: =IFERROR(VLOOKUP($D158,prezence!A:F,3,0),"") ->  | G158: =IFERROR(VLOOKUP($D158,prezence!A:F,4,0),"") -> 
A159: 158 | B159: =výsledky!B163 -> 00:00:00 | C159: =výsledky!C163 -> -0.0119212963 | D159: =výsledky!D163 -> 0 | E159: =IFERROR(VLOOKUP($D159,prezence!A:F,2,0),"") ->  | F159: =IFERROR(VLOOKUP($D159,prezence!A:F,3,0),"") ->  | G159: =IFERROR(VLOOKUP($D159,prezence!A:F,4,0),"") -> 
A160: 159 | B160: =výsledky!B164 -> 00:00:00 | C160: =výsledky!C164 -> -0.0119212963 | D160: =výsledky!D164 -> 0 | E160: =IFERROR(VLOOKUP($D160,prezence!A:F,2,0),"") ->  | F160: =IFERROR(VLOOKUP($D160,prezence!A:F,3,0),"") ->  | G160: =IFERROR(VLOOKUP($D160,prezence!A:F,4,0),"") -> 
A161: 160 | B161: =výsledky!B165 -> 00:00:00 | C161: =výsledky!C165 -> -0.0119212963 | D161: =výsledky!D165 -> 0 | E161: =IFERROR(VLOOKUP($D161,prezence!A:F,2,0),"") ->  | F161: =IFERROR(VLOOKUP($D161,prezence!A:F,3,0),"") ->  | G161: =IFERROR(VLOOKUP($D161,prezence!A:F,4,0),"") -> 
A162: 161 | B162: =výsledky!B166 -> 00:00:00 | C162: =výsledky!C166 -> -0.0119212963 | D162: =výsledky!D166 -> 0 | E162: =IFERROR(VLOOKUP($D162,prezence!A:F,2,0),"") ->  | F162: =IFERROR(VLOOKUP($D162,prezence!A:F,3,0),"") ->  | G162: =IFERROR(VLOOKUP($D162,prezence!A:F,4,0),"") -> 
A163: 162 | B163: =výsledky!B167 -> 00:00:00 | C163: =výsledky!C167 -> -0.0119212963 | D163: =výsledky!D167 -> 0 | E163: =IFERROR(VLOOKUP($D163,prezence!A:F,2,0),"") ->  | F163: =IFERROR(VLOOKUP($D163,prezence!A:F,3,0),"") ->  | G163: =IFERROR(VLOOKUP($D163,prezence!A:F,4,0),"") -> 
A164: 163 | B164: =výsledky!B168 -> 00:00:00 | C164: =výsledky!C168 -> -0.0119212963 | D164: =výsledky!D168 -> 0 | E164: =IFERROR(VLOOKUP($D164,prezence!A:F,2,0),"") ->  | F164: =IFERROR(VLOOKUP($D164,prezence!A:F,3,0),"") ->  | G164: =IFERROR(VLOOKUP($D164,prezence!A:F,4,0),"") -> 
A165: 164 | B165: =výsledky!B169 -> 00:00:00 | C165: =výsledky!C169 -> -0.0119212963 | D165: =výsledky!D169 -> 0 | E165: =IFERROR(VLOOKUP($D165,prezence!A:F,2,0),"") ->  | F165: =IFERROR(VLOOKUP($D165,prezence!A:F,3,0),"") ->  | G165: =IFERROR(VLOOKUP($D165,prezence!A:F,4,0),"") -> 
A166: 165 | B166: =výsledky!B170 -> 00:00:00 | C166: =výsledky!C170 -> -0.0119212963 | D166: =výsledky!D170 -> 0 | E166: =IFERROR(VLOOKUP($D166,prezence!A:F,2,0),"") ->  | F166: =IFERROR(VLOOKUP($D166,prezence!A:F,3,0),"") ->  | G166: =IFERROR(VLOOKUP($D166,prezence!A:F,4,0),"") -> 
A167: 166 | B167: =výsledky!B171 -> 00:00:00 | C167: =výsledky!C171 -> -0.0119212963 | D167: =výsledky!D171 -> 0 | E167: =IFERROR(VLOOKUP($D167,prezence!A:F,2,0),"") ->  | F167: =IFERROR(VLOOKUP($D167,prezence!A:F,3,0),"") ->  | G167: =IFERROR(VLOOKUP($D167,prezence!A:F,4,0),"") -> 
A168: 167 | B168: =výsledky!B172 -> 00:00:00 | C168: =výsledky!C172 -> -0.0119212963 | D168: =výsledky!D172 -> 0 | E168: =IFERROR(VLOOKUP($D168,prezence!A:F,2,0),"") ->  | F168: =IFERROR(VLOOKUP($D168,prezence!A:F,3,0),"") ->  | G168: =IFERROR(VLOOKUP($D168,prezence!A:F,4,0),"") -> 
A169: 168 | B169: =výsledky!B173 -> 00:00:00 | C169: =výsledky!C173 -> -0.0119212963 | D169: =výsledky!D173 -> 0 | E169: =IFERROR(VLOOKUP($D169,prezence!A:F,2,0),"") ->  | F169: =IFERROR(VLOOKUP($D169,prezence!A:F,3,0),"") ->  | G169: =IFERROR(VLOOKUP($D169,prezence!A:F,4,0),"") -> 
A170: 169 | B170: =výsledky!B174 -> 00:00:00 | C170: =výsledky!C174 -> -0.0119212963 | D170: =výsledky!D174 -> 0 | E170: =IFERROR(VLOOKUP($D170,prezence!A:F,2,0),"") ->  | F170: =IFERROR(VLOOKUP($D170,prezence!A:F,3,0),"") ->  | G170: =IFERROR(VLOOKUP($D170,prezence!A:F,4,0),"") -> 
A171: 170 | B171: =výsledky!B175 -> 00:00:00 | C171: =výsledky!C175 -> -0.0119212963 | D171: =výsledky!D175 -> 0 | E171: =IFERROR(VLOOKUP($D171,prezence!A:F,2,0),"") ->  | F171: =IFERROR(VLOOKUP($D171,prezence!A:F,3,0),"") ->  | G171: =IFERROR(VLOOKUP($D171,prezence!A:F,4,0),"") -> 
A172: 171 | B172: =výsledky!B176 -> 00:00:00 | C172: =výsledky!C176 -> -0.0119212963 | D172: =výsledky!D176 -> 0 | E172: =IFERROR(VLOOKUP($D172,prezence!A:F,2,0),"") ->  | F172: =IFERROR(VLOOKUP($D172,prezence!A:F,3,0),"") ->  | G172: =IFERROR(VLOOKUP($D172,prezence!A:F,4,0),"") -> 
A173: 172 | B173: =výsledky!B177 -> 00:00:00 | C173: =výsledky!C177 -> -0.0119212963 | D173: =výsledky!D177 -> 0 | E173: =IFERROR(VLOOKUP($D173,prezence!A:F,2,0),"") ->  | F173: =IFERROR(VLOOKUP($D173,prezence!A:F,3,0),"") ->  | G173: =IFERROR(VLOOKUP($D173,prezence!A:F,4,0),"") -> 
A174: 173 | B174: =výsledky!B178 -> 00:00:00 | C174: =výsledky!C178 -> -0.0119212963 | D174: =výsledky!D178 -> 0 | E174: =IFERROR(VLOOKUP($D174,prezence!A:F,2,0),"") ->  | F174: =IFERROR(VLOOKUP($D174,prezence!A:F,3,0),"") ->  | G174: =IFERROR(VLOOKUP($D174,prezence!A:F,4,0),"") -> 
A175: 174 | B175: =výsledky!B179 -> 00:00:00 | C175: =výsledky!C179 -> -0.0119212963 | D175: =výsledky!D179 -> 0 | E175: =IFERROR(VLOOKUP($D175,prezence!A:F,2,0),"") ->  | F175: =IFERROR(VLOOKUP($D175,prezence!A:F,3,0),"") ->  | G175: =IFERROR(VLOOKUP($D175,prezence!A:F,4,0),"") -> 
A176: 175 | B176: =výsledky!B180 -> 00:00:00 | C176: =výsledky!C180 -> -0.0119212963 | D176: =výsledky!D180 -> 0 | E176: =IFERROR(VLOOKUP($D176,prezence!A:F,2,0),"") ->  | F176: =IFERROR(VLOOKUP($D176,prezence!A:F,3,0),"") ->  | G176: =IFERROR(VLOOKUP($D176,prezence!A:F,4,0),"") -> 
A177: 176 | B177: =výsledky!B181 -> 00:00:00 | C177: =výsledky!C181 -> -0.0119212963 | D177: =výsledky!D181 -> 0 | E177: =IFERROR(VLOOKUP($D177,prezence!A:F,2,0),"") ->  | F177: =IFERROR(VLOOKUP($D177,prezence!A:F,3,0),"") ->  | G177: =IFERROR(VLOOKUP($D177,prezence!A:F,4,0),"") -> 
A178: 177 | B178: =výsledky!B182 -> 00:00:00 | C178: =výsledky!C182 -> -0.0119212963 | D178: =výsledky!D182 -> 0 | E178: =IFERROR(VLOOKUP($D178,prezence!A:F,2,0),"") ->  | F178: =IFERROR(VLOOKUP($D178,prezence!A:F,3,0),"") ->  | G178: =IFERROR(VLOOKUP($D178,prezence!A:F,4,0),"") -> 
A179: 178 | B179: =výsledky!B183 -> 00:00:00 | C179: =výsledky!C183 -> -0.0119212963 | D179: =výsledky!D183 -> 0 | E179: =IFERROR(VLOOKUP($D179,prezence!A:F,2,0),"") ->  | F179: =IFERROR(VLOOKUP($D179,prezence!A:F,3,0),"") ->  | G179: =IFERROR(VLOOKUP($D179,prezence!A:F,4,0),"") -> 
A180: 179 | B180: =výsledky!B184 -> 00:00:00 | C180: =výsledky!C184 -> -0.0119212963 | D180: =výsledky!D184 -> 0 | E180: =IFERROR(VLOOKUP($D180,prezence!A:F,2,0),"") ->  | F180: =IFERROR(VLOOKUP($D180,prezence!A:F,3,0),"") ->  | G180: =IFERROR(VLOOKUP($D180,prezence!A:F,4,0),"") -> 
A181: 180 | B181: =výsledky!B185 -> 00:00:00 | C181: =výsledky!C185 -> -0.0119212963 | D181: =výsledky!D185 -> 0 | E181: =IFERROR(VLOOKUP($D181,prezence!A:F,2,0),"") ->  | F181: =IFERROR(VLOOKUP($D181,prezence!A:F,3,0),"") ->  | G181: =IFERROR(VLOOKUP($D181,prezence!A:F,4,0),"") -> 
A182: 181 | B182: =výsledky!B186 -> 00:00:00 | C182: =výsledky!C186 -> -0.0119212963 | D182: =výsledky!D186 -> 0 | E182: =IFERROR(VLOOKUP($D182,prezence!A:F,2,0),"") ->  | F182: =IFERROR(VLOOKUP($D182,prezence!A:F,3,0),"") ->  | G182: =IFERROR(VLOOKUP($D182,prezence!A:F,4,0),"") -> 
A183: 182 | B183: =výsledky!B187 -> 00:00:00 | C183: =výsledky!C187 -> -0.0119212963 | D183: =výsledky!D187 -> 0 | E183: =IFERROR(VLOOKUP($D183,prezence!A:F,2,0),"") ->  | F183: =IFERROR(VLOOKUP($D183,prezence!A:F,3,0),"") ->  | G183: =IFERROR(VLOOKUP($D183,prezence!A:F,4,0),"") -> 
A184: 183 | B184: =výsledky!B188 -> 00:00:00 | C184: =výsledky!C188 -> -0.0119212963 | D184: =výsledky!D188 -> 0 | E184: =IFERROR(VLOOKUP($D184,prezence!A:F,2,0),"") ->  | F184: =IFERROR(VLOOKUP($D184,prezence!A:F,3,0),"") ->  | G184: =IFERROR(VLOOKUP($D184,prezence!A:F,4,0),"") -> 
A185: 184 | B185: =výsledky!B189 -> 00:00:00 | C185: =výsledky!C189 -> -0.0119212963 | D185: =výsledky!D189 -> 0 | E185: =IFERROR(VLOOKUP($D185,prezence!A:F,2,0),"") ->  | F185: =IFERROR(VLOOKUP($D185,prezence!A:F,3,0),"") ->  | G185: =IFERROR(VLOOKUP($D185,prezence!A:F,4,0),"") -> 
A186: 185 | B186: =výsledky!B190 -> 00:00:00 | C186: =výsledky!C190 -> -0.0119212963 | D186: =výsledky!D190 -> 0 | E186: =IFERROR(VLOOKUP($D186,prezence!A:F,2,0),"") ->  | F186: =IFERROR(VLOOKUP($D186,prezence!A:F,3,0),"") ->  | G186: =IFERROR(VLOOKUP($D186,prezence!A:F,4,0),"") -> 
A187: 186 | B187: =výsledky!B191 -> 00:00:00 | C187: =výsledky!C191 -> -0.0119212963 | D187: =výsledky!D191 -> 0 | E187: =IFERROR(VLOOKUP($D187,prezence!A:F,2,0),"") ->  | F187: =IFERROR(VLOOKUP($D187,prezence!A:F,3,0),"") ->  | G187: =IFERROR(VLOOKUP($D187,prezence!A:F,4,0),"") -> 
A188: 187 | B188: =výsledky!B192 -> 00:00:00 | C188: =výsledky!C192 -> -0.0119212963 | D188: =výsledky!D192 -> 0 | E188: =IFERROR(VLOOKUP($D188,prezence!A:F,2,0),"") ->  | F188: =IFERROR(VLOOKUP($D188,prezence!A:F,3,0),"") ->  | G188: =IFERROR(VLOOKUP($D188,prezence!A:F,4,0),"") -> 
A189: 188 | B189: =výsledky!B193 -> 00:00:00 | C189: =výsledky!C193 -> -0.0119212963 | D189: =výsledky!D193 -> 0 | E189: =IFERROR(VLOOKUP($D189,prezence!A:F,2,0),"") ->  | F189: =IFERROR(VLOOKUP($D189,prezence!A:F,3,0),"") ->  | G189: =IFERROR(VLOOKUP($D189,prezence!A:F,4,0),"") -> 
A190: 189 | B190: =výsledky!B194 -> 00:00:00 | C190: =výsledky!C194 -> -0.0119212963 | D190: =výsledky!D194 -> 0 | E190: =IFERROR(VLOOKUP($D190,prezence!A:F,2,0),"") ->  | F190: =IFERROR(VLOOKUP($D190,prezence!A:F,3,0),"") ->  | G190: =IFERROR(VLOOKUP($D190,prezence!A:F,4,0),"") -> 
A191: 190 | B191: =výsledky!B195 -> 00:00:00 | C191: =výsledky!C195 -> -0.0119212963 | D191: =výsledky!D195 -> 0 | E191: =IFERROR(VLOOKUP($D191,prezence!A:F,2,0),"") ->  | F191: =IFERROR(VLOOKUP($D191,prezence!A:F,3,0),"") ->  | G191: =IFERROR(VLOOKUP($D191,prezence!A:F,4,0),"") -> 
A192: 191 | B192: =výsledky!B196 -> 00:00:00 | C192: =výsledky!C196 -> -0.0119212963 | D192: =výsledky!D196 -> 0 | E192: =IFERROR(VLOOKUP($D192,prezence!A:F,2,0),"") ->  | F192: =IFERROR(VLOOKUP($D192,prezence!A:F,3,0),"") ->  | G192: =IFERROR(VLOOKUP($D192,prezence!A:F,4,0),"") -> 
A193: 192 | B193: =výsledky!B197 -> 00:00:00 | C193: =výsledky!C197 -> -0.0119212963 | D193: =výsledky!D197 -> 0 | E193: =IFERROR(VLOOKUP($D193,prezence!A:F,2,0),"") ->  | F193: =IFERROR(VLOOKUP($D193,prezence!A:F,3,0),"") ->  | G193: =IFERROR(VLOOKUP($D193,prezence!A:F,4,0),"") -> 
A194: 193 | B194: =výsledky!B198 -> 00:00:00 | C194: =výsledky!C198 -> -0.0119212963 | D194: =výsledky!D198 -> 0 | E194: =IFERROR(VLOOKUP($D194,prezence!A:F,2,0),"") ->  | F194: =IFERROR(VLOOKUP($D194,prezence!A:F,3,0),"") ->  | G194: =IFERROR(VLOOKUP($D194,prezence!A:F,4,0),"") -> 
A195: 194 | B195: =výsledky!B199 -> 00:00:00 | C195: =výsledky!C199 -> -0.0119212963 | D195: =výsledky!D199 -> 0 | E195: =IFERROR(VLOOKUP($D195,prezence!A:F,2,0),"") ->  | F195: =IFERROR(VLOOKUP($D195,prezence!A:F,3,0),"") ->  | G195: =IFERROR(VLOOKUP($D195,prezence!A:F,4,0),"") -> 
A196: 195 | B196: =výsledky!B200 -> 00:00:00 | C196: =výsledky!C200 -> -0.0119212963 | D196: =výsledky!D200 -> 0 | E196: =IFERROR(VLOOKUP($D196,prezence!A:F,2,0),"") ->  | F196: =IFERROR(VLOOKUP($D196,prezence!A:F,3,0),"") ->  | G196: =IFERROR(VLOOKUP($D196,prezence!A:F,4,0),"") -> 
A197: 196 | B197: =výsledky!B201 -> 00:00:00 | C197: =výsledky!C201 -> -0.0119212963 | D197: =výsledky!D201 -> 0 | E197: =IFERROR(VLOOKUP($D197,prezence!A:F,2,0),"") ->  | F197: =IFERROR(VLOOKUP($D197,prezence!A:F,3,0),"") ->  | G197: =IFERROR(VLOOKUP($D197,prezence!A:F,4,0),"") -> 
A198: 197 | B198: =výsledky!B202 -> 00:00:00 | C198: =výsledky!C202 -> -0.0119212963 | D198: =výsledky!D202 -> 0 | E198: =IFERROR(VLOOKUP($D198,prezence!A:F,2,0),"") ->  | F198: =IFERROR(VLOOKUP($D198,prezence!A:F,3,0),"") ->  | G198: =IFERROR(VLOOKUP($D198,prezence!A:F,4,0),"") -> 
A199: 198 | B199: =výsledky!B203 -> 00:00:00 | C199: =výsledky!C203 -> -0.0119212963 | D199: =výsledky!D203 -> 0 | E199: =IFERROR(VLOOKUP($D199,prezence!A:F,2,0),"") ->  | F199: =IFERROR(VLOOKUP($D199,prezence!A:F,3,0),"") ->  | G199: =IFERROR(VLOOKUP($D199,prezence!A:F,4,0),"") -> 
A200: 199 | B200: =výsledky!B204 -> 00:00:00 | C200: =výsledky!C204 -> -0.0119212963 | D200: =výsledky!D204 -> 0 | E200: =IFERROR(VLOOKUP($D200,prezence!A:F,2,0),"") ->  | F200: =IFERROR(VLOOKUP($D200,prezence!A:F,3,0),"") ->  | G200: =IFERROR(VLOOKUP($D200,prezence!A:F,4,0),"") -> 
... 1 more rows
